{"text_format":"1","workbook":"xlsx","n_sheets":71,"sheets":["TitlePage","Disclaimer","General Notes","Chemical Notes","Revisions","Contents","A01","A02a","A02b","A02c","A02d","A03","B01","B02","B03a","B03b","B04a","B04b","C01","C02a","C02b","C03a","C03b","D05","D06","D07","D08a","D08b","D09a","D09b","D09c","D09d","D11","E01","E02","E03","E04","F02a","F02b","F02c","F02d","F02e","F02f","F03a","F03b","F03c","F06a","F06b","F06c","F06d","F06e","F06f","F09a","F09b","F09c","F12a","F12b","F12c","F12d","F12e","F12f","F13a","F13b","F13c","G01","G02","G03","G06a","G09","References","PlntRunoV5"],"not_rendered":{"charts":15,"images":19,"macros":1,"external_links":0,"defined_names":656,"comments":0,"pivot_tables":0},"unopened":[],"bounds":{"document_bytes":16777216,"sheet_cells":100000,"rows_first":2000,"rows_last":500,"rows_between":2000,"halvings":0,"cell_chars":16384,"cell_head_chars":4096},"cells_cut":0,"cells_raw":0,"read":"whole","date_system":"1900"}

{"sheet":"TitlePage","index":0,"n_rows":51,"n_cols":6,"rows_kept":51,"cut":false,"hidden":false,"merged":[[0,1,4,7],[5,2,7,6],[50,0,50,8]]}
["Title page"]
[]
[]
[]
[]
[null,null,"Habitat - Aquatic Application :Imazapyr"]
[]
[]
[]
[]
[]
[]
[]
[]
[]
[]
[null,null,null,null,"WorksheetMaker Version ","6.00.07"]
[]
[]
[]
[]
[]
[]
[]
[]
[]
[]
[]
[]
[]
[]
[]
[]
[]
[]
[]
[]
[]
[]
[]
[]
[]
[]
[]
[]
[]
[]
[]
[]
[]
["2011-12-16"]

{"sheet":"Disclaimer","index":1,"n_rows":1,"n_cols":1,"rows_kept":1,"cut":false,"hidden":false,"merged":[]}
["DISCLAIMER"]

{"sheet":"General Notes","index":2,"n_rows":59,"n_cols":3,"rows_kept":59,"cut":false,"hidden":false,"merged":[[0,0,0,2]]}
["General Notes"]
[null,"Prepared by:","Patrick R Durkin"]
[null,"Program Version:","6.00.07"]
[null,"Database Used:","FS WsMkr V06-00-01.mdb"]
[null,"Template Workbook:","FS WsMkr V06-00-01.mdb"]
[null,"Base Workbook:","FS WSMkr Blank V06-00-01.xlsm"]
[]
["Color Codes in WorksheetMaker"]
[]
[]
[]
[]
["Color Codes used in Workbook for Front Matter, Data and Calculation Worksheets"]
[null,"Green shading ","This is a default value or a user specified a value.  You can change these values as you see fit but you should have a reason for doing so."]
[null,"Yellow shading ","This is a source for a link in other parts of the workbook.  If you have good reason to change the value, you should note the change (with your reason) in the “Revisions” page."]
[null,"Blue shading ","This cell is linked to another cell in the workbook.  Do not change this value.  If you change any of these values, the workbook may not update correctly."]
[null,"Blue shading blue border ","This cell is linked to a Program parameter in Worksheet A01.  Do not change this value.  If you want the value to change, go to Worksheet A01 and change the value in that worksheet."]
[null,"Purple Shading","Indicates (for information only) that the typical of order of Lower and Upper values is intentionally reversed.  This is only used in the second (label) column."]
[null,"Italics, no shading","The value in this cell is generated by a formula (the number that you see is the result of an equation).  This cell is linked only to other cells in the worksheet.  Do not change this value."]
[]
[]
[]
[]
[]
["Color Codes used in Workbook for Risk Characterization Worksheets"]
[null,"HQ ≥ 2","For hazard quotient greater than 2, the number is in bold font with a red background and rounded to the nearest integer."]
[null,"HQ > 1 but < 2","For hazard quotient greater than 1 but less than two, the number is in bold font with a white background and rounded to one significant place after the decimal."]
[null,"HQ ≥ 0.1 but <1","For hazard quotient greater than 0.1 but less than one, the number is in regular font with a white background and rounded to one significant place after the decimal."]
[null,"HQ < 0.1","For hazard quotient less than 0.1, the number is in regular font with a white background.   The number is expressed in scientific notation and rounded to one significant place -- e.g., 2E-02 rather than 0.02."]
[]
[]
[]
[]
[]
[]
[]
[]
[]
[]
[]
[]
[]
[]
[]
[]
[]
[]
[]
[]
[]
[]
[]
[]
[]
[null,"Prepared by:","Patrick R Durkin"]
[null,"Program Version:","6.00.07"]
[null,"Database Used:","FS WsMkr V06-00-01.mdb"]
[null,"Template Workbook:","FS WsMkr V06-00-01.mdb"]
[null,"Base Workbook:","FS WSMkr Blank V06-00-01.xlsm"]

{"sheet":"Chemical Notes","index":3,"n_rows":6,"n_cols":4,"rows_kept":6,"cut":false,"hidden":false,"merged":[[0,0,0,2],[1,0,1,2],[2,0,2,2],[1,3,1,5],[2,3,2,4]]}
["Chemical specific notes"]
["Risk Assessment:",null,null,"SERA TR-052-29-03a"]
["Report Date:",null,null,"2011-12-16"]
[]
[]
["The area below is an embedded MS Word Document.  Add chemical-specific notes as appropriate."]

{"sheet":"Revisions","index":4,"n_rows":8,"n_cols":1,"rows_kept":8,"cut":false,"hidden":false,"merged":[]}
["Revision Histroy"]
[]
[]
[]
[]
[]
[]
["The area below is an embedded MS Word Document.  Add revision notes as appropriate."]

{"sheet":"Contents","index":5,"n_rows":72,"n_cols":3,"rows_kept":72,"cut":false,"hidden":false,"merged":[]}
[null,"Table of Contents","Toc"]
["Work-sheet No.","Worksheet Title"]
["TitlePage","Title page"]
["Disclaimer","DISCLAIMER"]
["General Notes","General Notes"]
["Chemical Notes","Chemical specific notes"]
["Revisions","Revision Histroy"]
["Contents"]
["A01","Program Data: Application rates, application volumns, and concentrations in field solutions"]
["A02a","General reference values and exposure factors used in worksheets."]
["A02b","General reference values and exposure factors used in worksheets."]
["A02c","General reference values and exposure factors used in worksheets."]
["A02d","General reference values and exposure factors used in worksheets."]
["A03","Consumption values used in worksheets"]
["B01","Chemical and Physical Properties for  Imazapyr"]
["B02","Toxicity values for  Imazapyr"]
["B03a","Calculation of Zero-Order Dermal Permeability Rate (Kp) in cm/hour"]
["B03b","Calculation of First-Order Dermal Absorption Rate"]
["B04a","Estimates of Peak Concentrations of the Pesticide in Water After Aquatic Applications Expressed in Units of Pound Per Acre of Surface Water"]
["B04b","Pond: Concentration of pesticide (liquid formulation) in pond water after an accidental spill"]
["C01","Worker exposure estimates and risk characterization for direct applications to water."]
["C02a","Accidental Dermal Exposure Assessment Using Zero-Order Absorption, Worker, Surface Area, Hands, for 1 minute(s)"]
["C02b","Accidental Dermal Exposure Assessment Using Zero-Order Absorption, Worker, Surface Area, Hands, for 60 minute(s)"]
["C03a","Accidental Dermal Exposure Assessment Using First-Order Absorption, Worker, Surface Area, Hands, for 60 minute(s)"]
["C03b","Accidental Dermal Exposure Assessment Using First-Order Absorption, Worker, Surface Area, Lower legs, for 60 minute(s)"]
["D05","Consumption of contaminated water by Child, Accidental Spill "]
["D06","Consumption of contaminated water by Child, Peak Conentrations "]
["D07","Consumption of contaminated water by Adult Male, Longer-term Conentrations "]
["D08a","Consumption of Contaminated Fish (Accidental Spill), Adult Male, acute exposure"]
["D08b","Consumption of Contaminated Fish (Accidental Spill), Subsistence Populations, acute exposure"]
["D09a","Consumption of Contaminated Fish (Longer-term), Adult Male, chronic exposure"]
["D09b","Consumption of Contaminated Fish (Longer-term), Subsistence Populations, chronic exposure"]
["D09c","Consumption of Contaminated Fish (Peak Exposure), Adult Male, acute exposure"]
["D09d","Consumption of Contaminated Fish (Peak Exposure), Subsistence Populations, acute exposure"]
["D11","Swimming Exposure Assessment Using Zero-Order Absorption, Adult Female, Surface Area, Whole body, for 60 minute(s)"]
["E01","Worksheet E01: Summary of Worker Exposure Assessments"]
["E02","Worksheet E01: Summary of Worker Hazard Quotients (Toxicity)"]
["E03","Worksheet E03: Summary of Exposure Assessments for the General Public"]
["E04","Worksheet E03: Summary of Hazard Quotients (Toxicity) for the General Public"]
["F02a","Consumption of contaminated water by Mammal, small, Accidental Spill "]
["F02b","Consumption of contaminated water by Mammal, 400 g, Accidental Spill "]
["F02c","Consumption of contaminated water by Mammal, carnivorous, Accidental Spill "]
["F02d","Consumption of contaminated water by Mammal, large, Accidental Spill "]
["F02e","Consumption of contaminated water by Bird, small, Accidental Spill "]
["F02f","Consumption of contaminated water by Bird, large, Accidental Spill "]
["F03a","Acute scenario for the consumption of Contaminated Fish ( Accidental Spill) by Mammal, large carnivorous "]
["F03b","Acute scenario for the consumption of Contaminated Fish ( Accidental Spill) by Mammal, carnivorous "]
["F03c","Acute scenario for the consumption of Contaminated Fish ( Accidental Spill) by Bird, piscivorous "]
["F06a","Consumption of contaminated water by Mammal, small, Peak Concentrations "]
["F06b","Consumption of contaminated water by Mammal, 400 g, Peak Concentrations "]
["F06c","Consumption of contaminated water by Mammal, carnivorous, Peak Concentrations "]
["F06d","Consumption of contaminated water by Mammal, large, Peak Concentrations "]
["F06e","Consumption of contaminated water by Bird, small, Peak Concentrations "]
["F06f","Consumption of contaminated water by Bird, large, Peak Concentrations "]
["F09a","Acute scenario for the consumption of Contaminated Fish (Peak) by Mammal, large carnivorous "]
["F09b","Acute scenario for the consumption of Contaminated Fish (Peak) by Mammal, carnivorous "]
["F09c","Acute scenario for the consumption of Contaminated Fish (Peak) by Bird, piscivorous "]
["F12a","Consumption of contaminated water by Mammal, small, Longer-term Concentrations "]
["F12b","Consumption of contaminated water by Mammal, 400 g, Longer-term Concentrations "]
["F12c","Consumption of contaminated water by Mammal, carnivorous, Longer-term Concentrations "]
["F12d","Consumption of contaminated water by Mammal, large, Longer-term Concentrations "]
["F12e","Consumption of contaminated water by Bird, small, Longer-term Concentrations "]
["F12f","Consumption of contaminated water by Bird, large, Longer-term Concentrations "]
["F13a","Chronic scenario for the consumption of Contaminated Fish (Longer-term) by Mammal, large carnivorous "]
["F13b","Chronic scenario for the consumption of Contaminated Fish (Longer-term) by Mammal, carnivorous "]
["F13c","Chronic scenario for the consumption of Contaminated Fish (Longer-term) by Bird, piscivorous "]
["G01","Summary of Exposure Assessments for the Terrestrial Animals"]
["G02","Summary of Hazard Quotients (Toxicity) for the Terrestrial Animals"]
["G03","Worksheet G03: Summary of Hazard Quotients for Aquatic Species"]
["G06a","Potential exposure of non-target plants through the use of contaminated irrigation water based on estimates concentrations in ambient water."]
["G09","Exposures and HQs for a Terrestrial Insect (Honeybee) Associated with Direct Spray or Drift Following Terrestrial Applications"]
["References","References cited in workbook"]

{"sheet":"A01","index":6,"n_rows":55,"n_cols":5,"rows_kept":55,"cut":false,"hidden":false,"merged":[[51,0,54,0],[0,0,0,4],[4,0,7,0],[8,0,11,0],[13,0,16,0],[17,0,19,0],[22,0,25,0],[31,0,34,0],[35,0,38,0],[39,0,42,0],[43,0,46,0],[47,0,50,0]]}
["Program Data: Application rates, application volumns, and concentrations in field solutions"]
["Parameter/Assumption","Code / Range","Equation/ Value","Units","Reference/Equation"]
["Application Information in Terms of Surface Area of Water "]
["Application Rate","ApRt",1,"lb/acre","Program Input"]
["Application Volume","ApVol"]
[null,"Central ",20,"gal/acre","Program Input"]
[null,"Upper ",100,null,"Program Input"]
[null,"Lower ",5,null,"Program Input"]
["Concentration in field solution (lb/gal)","Concppg","ApRt (lb/acre) / ApVol (gal/acre)"]
[null,"Central ",{"$f":"ApRt_C/C6","v":0.05},"lb/gal","Eq"]
[null,"Lower ",{"$f":"ApRt_C/C7","v":0.01},null,"Eq"]
[null,"Upper ",{"$f":"ApRt_C/C8","v":0.2},null,"Eq"]
["Conversion Factor for lbs/gal to mg/mL","CnvF",119.8,"mg/mL/lb/gal"]
["Concentration in field solution (mg/mL)","FldConc","Concppg * CnvF"]
[null,"Central ",{"$f":"IF(C6>0, DigitRound( C10*C$13, C$18), \"NA\")","v":6},"mg/mL","Eq"]
[null,"Lower ",{"$f":"IF(C7>0, DigitRound( C11*C$13, C$18), \"NA\")","v":1.2},null,"Eq"]
[null,"Upper ",{"$f":"IF(C8>0, DigitRound( C12*C$13, C$18), \"NA\")","v":24},null,"Eq"]
["Number of significant figures in mg/L concentration.","NSig",2]
[]
[]
["Information on Water Body"]
["Surface Area to be Treated","SurfA",10,"acres"]
["Depth of Water in feet","WBDft"]
[null,"Central ",3,"feet"]
[null,"Lower ",1]
[null,"Upper ",10]
["Standard Values/Options for Scenarios"]
["Surface area of pond for spill","PondSA_M",1000,"Sq. Meters","Risk assessment."]
["Pond depth","PondDepthM",1,"Meters","Risk assessment."]
["Duration for longer-term exposures","SubChDays",90,"Days","Risk assessment."]
["Duration for swimming scenarios","SwimMin",60,"Minutes","Risk assessment."]
["Protection factor for workers based on PPE.","WrkProtectFact"]
[null,"Central",0,null,"Risk assessment."]
[null,"Lower",0]
[null,"Upper",0]
["Toxic Equivalency Factor for formulation","TEF"]
[null,"Central",1,null,"Risk assessment."]
[null,"Lower",1]
[null,"Upper",1]
["Used in food commody worksheets","DriftToFood"]
[null,"Central",1,null,"Risk assessment."]
[null,"Lower",1]
[null,"Upper",1]
["Amount spilled into ponds","PondSpillVolGal"]
[null,"Central",100,"Gal","Risk assessment."]
[null,"Lower",20]
[null,"Upper",200]
["Worker Exposure Rate","WrkExpRate"]
[null,"Central",8.9999999999999998E-4,"Mg/kg bw per lb","Risk assessment."]
[null,"Lower",4.0000000000000002E-4]
[null,"Upper",2E-3]
["Field half-life in water body (aquatic apps in lb/acre)","WatBodTD50"]
[null,"Central",65,"per day","Risk assessment."]
[null,"Lower",25]
[null,"Upper",180]

{"sheet":"A02a","index":7,"n_rows":41,"n_cols":6,"rows_kept":41,"cut":false,"hidden":false,"merged":[[0,0,0,4]]}
["General reference values and exposure factors used in worksheets."]
[]
["Receptor","Factor","Value","Units"," Reference","Reference Note"]
["Adult Female","Body weight",64,"kg","U.S. EPA/ORD 1985","page 5, Table 2-2"]
["Adult Female","Surface Area, Feet and lower Legs",2915,"cm2","U.S. EPA/ORD 1992","p. 8-11, Table 8-3, total for feet and lower legs"]
["Adult Female","Surface Area, Wearing shorts and T-shirt",5300,"cm2","U.S. EPA/ORD 1992","p. 8-11, Table 8-3, total for arms, hands, lower legs, and feet."]
["Adult Female","Surface Area, Whole body",16900,"cm2","U.S. EPA/ORD 1997","p. 6-13, Table 6-3, whole body, 50th percentile"]
["Adult Male","Body weight",70,"kg","ICRP 1975","p. 13."]
["Subsistence Populations","Body weight",70,"kg","ICRP 1975","p. 13"]
["Worker, Aerial Spray","Absorbed dose rate, central estimate",3.0000000000000001E-5,"(mg/kg bw)/(lbs handled per day)","SERA 2007","Acres treated per hour"]
["Worker, Aerial Spray","Absorbed dose rate, lower range",9.9999999999999995E-7,"(mg/kg bw)/(lbs handled per day)","SERA 2007","Acres treated per hour"]
["Worker, Aerial Spray","Absorbed dose rate, upper range",1E-4,"(mg/kg bw)/(lbs handled per day)","SERA 2007","Acres treated per hour"]
["Worker, Aerial Spray","Hours of application per day, central estimate",7,"Hours per day","USDA 1989a","N/A"]
["Worker, Aerial Spray","Hours of application per day, lower range",6,"Hours per day","USDA 1989a","N/A"]
["Worker, Aerial Spray","Hours of application per day, upper range",8,"Hours per day","USDA 1989a","N/A"]
["Worker, Aerial Spray","Acres treated per hour, central estimate",70,"acres/hour","USDA 1989a","Acres treated per hour"]
["Worker, Aerial Spray","Acres treated per hour, lower range",40,"acres/hour","USDA 1989a","Acres treated per hour"]
["Worker, Aerial Spray","Acres treated per hour, upper range",100,"acres/hour","USDA 1989a","Acres treated per hour"]
["Worker, Backpack","Absorbed dose rate, central estimate",3.0000000000000001E-3,"(mg/kg bw)/(lbs handled per day)","SERA 2007","Acres treated per hour"]
["Worker, Backpack","Absorbed dose rate, lower range",2.9999999999999997E-4,"(mg/kg bw)/(lbs handled per day)","SERA 2007","Acres treated per hour"]
["Worker, Backpack","Absorbed dose rate, upper range",0.01,"(mg/kg bw)/(lbs handled per day)","SERA 2007","Acres treated per hour"]
["Worker, Backpack","Hours of application per day, central estimate",7,"Hours per day","USDA 1989a","N/A"]
["Worker, Backpack","Hours of application per day, lower range",6,"Hours per day","USDA 1989a","N/A"]
["Worker, Backpack","Hours of application per day, upper range",8,"Hours per day","USDA 1989a","N/A"]
["Worker, Backpack","Acres treated per hour, central estimate",0.625,"acres/hour","USDA 1989a","Acres treated per hour"]
["Worker, Backpack","Acres treated per hour, lower range",0.25,"acres/hour","USDA 1989a","Acres treated per hour"]
["Worker, Backpack","Acres treated per hour, upper range",1,"acres/hour","USDA 1989a","Acres treated per hour"]
["Child","Body weight",13.3,"kg","U.S. EPA/ORD 1996","p. 7-1, Table 7-2"]
["Child","Surface Area, Whole body",6030,"cm2","U.S. EPA/ORD 1996","p. 6-15, Table 6-6, 50th percentile."]
["Worker, Ground Spray","Absorbed dose rate, central estimate",2.0000000000000001E-4,"(mg/kg bw)/(lbs handled per day)","SERA 2007","Acres treated per hour"]
["Worker, Ground Spray","Absorbed dose rate, lower range",1.0000000000000001E-5,"(mg/kg bw)/(lbs handled per day)","SERA 2007","Acres treated per hour"]
["Worker, Ground Spray","Absorbed dose rate, upper range",8.9999999999999998E-4,"(mg/kg bw)/(lbs handled per day)","SERA 2007","Acres treated per hour"]
["Worker, Ground Spray","Hours of application per day, central estimate",7,"Hours per day","USDA 1989a","N/A"]
["Worker, Ground Spray","Hours of application per day, lower range",6,"Hours per day","USDA 1989a","N/A"]
["Worker, Ground Spray","Hours of application per day, upper range",8,"Hours per day","USDA 1989a","N/A"]
["Worker, Ground Spray","Acres treated per hour, central estimate",16,"acres/hour","USDA 1989a","Acres treated per hour"]
["Worker, Ground Spray","Acres treated per hour, lower range",11,"acres/hour","USDA 1989a","Acres treated per hour"]
["Worker, Ground Spray","Acres treated per hour, upper range",21,"acres/hour","USDA 1989a","Acres treated per hour"]
["Worker","Body weight",70,"kg","ICRP 1975","p. 13"]
["Worker","Surface Area, Hands",840,"cm2","U.S. EPA/ORD 1992"," p. 8-11"]
["Worker","Surface Area, Lower legs",2070,"cm2","U.S. EPA/ORD 1992","p. 8-11"]

{"sheet":"A02b","index":8,"n_rows":80,"n_cols":6,"rows_kept":80,"cut":false,"hidden":false,"merged":[[0,0,0,4]]}
["General reference values and exposure factors used in worksheets."]
[]
["Receptor","Factor","Value","Units"," Reference","Reference Note"]
["Amphibian","Kilocalories, alpha parameter for allometric equation",5.3999999999999999E-2,"BW(g),Kcal (kcal/day)","U.S. EPA/ORD 1993","p. 3-7, equation 3-14"]
["Amphibian","Kilocalories, beta parameter for allometric equation",0.79900000000000004,"BW(g),Kcal (kcal/day)","U.S. EPA/ORD 1993","p. 3-7, equation 3-14"]
["Amphibian, bull frog","Food consumption, alpha parameter for allometric equation",1.0900000000000001,"BW(g),FC(g)","SERA 2010","Figure 15"]
["Amphibian, bull frog","Food consumption, beta parameter for allometric equation",0.17230000000000001,"BW(g),FC(g)","SERA 2010","Figure 15"]
["Bird, NOS","Food consumption, alpha parameter for allometric equation",0.64800000000000002,"BW(g),FC(g)","U.S. EPA/ORD 1993","Eq. 3-3, p. 3-4, all birds"]
["Bird, NOS","Food consumption, beta parameter for allometric equation",0.65100000000000002,"BW(g),FC(g)","U.S. EPA/ORD 1993","Eq. 3-3, p. 3-4, all birds"]
["Bird, carnivorous","Body weight",0.64,"kg","Dunning 1993","p. 97. Female Spotted Owl (Strix occidentalis).  Range of 548 to 760 g."]
["Bird, carnivorous","Kilocalories, alpha parameter for allometric equation",1.1459999999999999,"BW(g),KCal(kcal/day)","U.S. EPA/ORD 1993","Eq. 3-37, nonpasserines"]
["Bird, carnivorous","Kilocalories, beta parameter for allometric equation",0.749,"BW(g),KCal(kcal/day)","U.S. EPA/ORD 1993","Eq. 3-37, nonpasserines"]
["Bird, carnivorous","Water consumption, alpha parameter for allometric equation",5.8999999999999997E-2,"BW(kg), WC(L)","U.S. EPA/ORD 1993","Eq. 3-15, p. 3-8"]
["Bird, carnivorous","Water consumption, beta parameter for allometric equation",0.67,"BW(kg), WC(L)","U.S. EPA/ORD 1993","Eq. 3-15, p. 3-8"]
["Bird, large","Body weight",4,"kg","Default","Canada goose"]
["Bird, large","Kilocalories, alpha parameter for allometric equation",1.1459999999999999,"BW(g),KCal(kcal/day)","U.S. EPA/ORD 1993","Eq. 3-37, non-passerines"]
["Bird, large","Kilocalories, beta parameter for allometric equation",0.749,"BW(g),KCal(kcal/day)","U.S. EPA/ORD 1993","Eq. 3-37, non-passerines"]
["Bird, large","Water consumption, alpha parameter for allometric equation",5.8999999999999997E-2,"BW(kg), WC(L)","U.S. EPA/ORD 1993","Eq. 3-15, p. 3-8"]
["Bird, large","Water consumption, beta parameter for allometric equation",0.67,"BW(kg), WC(L)","U.S. EPA/ORD 1993","Eq. 3-15, p. 3-8"]
["Bird, non-Passerine","Food consumption, alpha parameter for allometric equation",0.30099999999999999,"BW(g),FC(g)","U.S. EPA/ORD 1993","Eq. 3-5, p. 3-5, non-passerines"]
["Bird, non-Passerine","Food consumption, beta parameter for allometric equation",0.751,"BW(g),FC(g)","U.S. EPA/ORD 1993","Eq. 3-5, p. 3-5, non-passerines"]
["Bird, Passerine","Food consumption, alpha parameter for allometric equation",0.39800000000000002,"BW(g),FC(g)","U.S. EPA/ORD 1993","Eq. 3-4, p. 3-4, passerines"]
["Bird, Passerine","Food consumption, beta parameter for allometric equation",0.85,"BW(g),FC(g)","U.S. EPA/ORD 1993","Eq. 3-4, p. 3-4, passerines"]
["Bird, piscivorous","Body weight",2.4,"kg","Sibley 2000","p. 60. Great Blue Heron"]
["Bird, piscivorous","Food consumption, alpha parameter for allometric equation",0.495,"BW(g), FC(g)","U.S. EPA/ORD 1993","Eq. 3-6, p. 3-5, seabird"]
["Bird, piscivorous","Food consumption, beta parameter for allometric equation",0.70399999999999996,"BW(g), FC(g)","U.S. EPA/ORD 1993","Eq. 3-6, p. 3-5, seabird"]
["Bird, piscivorous","Kilocalories, alpha parameter for allometric equation",1.9159999999999999,"BW(g),KCal(kcal/day)","U.S. EPA/ORD 1993","Eq. 3-38, p. 3-23, seabird"]
["Bird, piscivorous","Kilocalories, beta parameter for allometric equation",0.70399999999999996,"BW(g),KCal(kcal/day)","U.S. EPA/ORD 1993","Eq. 3-38, p. 3-23, seabird"]
["Bird, piscivorous","Water consumption, alpha parameter for allometric equation",5.8999999999999997E-2,"BW(kg), WC(L)","U.S. EPA/ORD 1993","Eq. 3-15, p. 3-8"]
["Bird, piscivorous","Water consumption, beta parameter for allometric equation",0.67,"BW(kg), WC(L)","U.S. EPA/ORD 1993","Eq. 3-15, p. 3-8"]
["Bird, small","Body weight",0.01,"kg","Default","N/A"]
["Bird, small","Kilocalories, alpha parameter for allometric equation",3.12,"BW(g),KCal(kcal/day)","U.S. EPA/ORD 1993","Equation 3-36, passerines"]
["Bird, small","Kilocalories, beta parameter for allometric equation",0.60499999999999998,"BW(g),KCal(kcal/day)","U.S. EPA/ORD 1993","Equation 3-36, passerines"]
["Bird, small","Water consumption, alpha parameter for allometric equation",5.8999999999999997E-2,"BW(kg), WC(L)","U.S. EPA/ORD 1993","Eq. 3-15, p. 3-8"]
["Bird, small","Water consumption, beta parameter for allometric equation",0.67,"BW(kg), WC(L)","U.S. EPA/ORD 1993","Eq. 3-15, p. 3-8"]
["Honeybee","Body weight",1.16E-4,"kg","Winston 1987","p. 54. Arithmetic average of range: 81 to 151 mg/bee."]
["Honeybee","Surface Area, Whole body",1.42,"cm2","Humphery and Dykes 2008","Based on a bee with a body length of 1.44 cm."]
["Mammal, Nos","Food consumption, alpha parameter for allometric equation",0.23499999999999999,"BW(g),FC(g)","U.S. EPA/ORD 1993","Eq. 3-7 ,p. 3-6, all mammals"]
["Mammal, Nos","Food consumption, beta parameter for allometric equation",0.82199999999999995,"BW(g),FC(g)","U.S. EPA/ORD 1993","Eq. 3-7 ,p. 3-6, all mammals"]
["Mammal, 400 g","Body weight",0.4,"kg","Default","N/A"]
["Mammal, 400 g","Food consumption, alpha parameter for allometric equation",0.621,"BW(g),FC(g)","U.S. EPA/ORD 1993","Eq. 3-8, p. 3-6, equation for rodents"]
["Mammal, 400 g","Food consumption, beta parameter for allometric equation",0.56399999999999995,"BW(g),FC(g)","U.S. EPA/ORD 1993","Eq. 3-8, p. 3-6, equation for rodents"]
["Mammal, 400 g","Kilocalories, alpha parameter for allometric equation",2.5139999999999998,"BW(g),KCal(kcal/day)","U.S. EPA/ORD 1993","Equation 3-48, rodent"]
["Mammal, 400 g","Kilocalories, beta parameter for allometric equation",0.50700000000000001,"BW(g),KCal(kcal/day)","U.S. EPA/ORD 1993","Equation 3-48, rodent"]
["Mammal, 400 g","Water consumption, alpha parameter for allometric equation",9.9000000000000005E-2,"BW(kg),WC(L)","U.S. EPA/ORD 1993","Eq. 3-17, p. 3-10, all mammals"]
["Mammal, 400 g","Water consumption, beta parameter for allometric equation",0.9,"BW(kg),WC(L)","U.S. EPA/ORD 1993","Eq. 3-17, p. 3-10, all mammals"]
["Mammal, carnivorous","Body weight",5,"kg","U.S. EPA/ORD 1993","p. 2-221.  Central value for red fox with a range of 3 to 7 kg."]
["Mammal, carnivorous","Kilocalories, alpha parameter for allometric equation",0.61670000000000003,"BW(g),KCal(kcal/day)","U.S. EPA/ORD 1993","Equation 3-47, non-herbivore"]
["Mammal, carnivorous","Kilocalories, beta parameter for allometric equation",0.86199999999999999,"BW(g),KCal(kcal/day)","U.S. EPA/ORD 1993","Equation 3-47, non-herbivore"]
["Mammal, carnivorous","Water consumption, alpha parameter for allometric equation",9.9000000000000005E-2,"BW(kg),WC(L)","U.S. EPA/ORD 1993","Eq. 3-17, p. 3-10, all mammals"]
["Mammal, carnivorous","Water consumption, beta parameter for allometric equation",0.9,"BW(kg), WC(L)","U.S. EPA/ORD 1993","Eq. 3-17, p. 3-10, all mammals"]
["Mammal, large carnivorous","Body weight",70,"kg","Reid 2006"," pp. 451-453.  Black bear or small grizzly."]
["Mammal, large carnivorous","Kilocalories, alpha parameter for allometric equation",0.61670000000000003,"BW(g),KCal(kcal/day)","U.S. EPA/ORD 1993","Equation 3-47, non-herbivore"]
["Mammal, large carnivorous","Kilocalories, beta parameter for allometric equation",0.86199999999999999,"BW(g),KCal(kcal/day)","U.S. EPA/ORD 1993","Equation 3-47, non-herbivore"]
["Mammal, large carnivorous","Water consumption, alpha parameter for allometric equation",9.9000000000000005E-2,"BW(kg),WC(L)","U.S. EPA/ORD 1993","Eq. 3-17, p. 3-10, all mammals"]
["Mammal, large carnivorous","Water consumption, beta parameter for allometric equation",0.9,"BW(kg), WC(L)","U.S. EPA/ORD 1993","Eq. 3-17, p. 3-10, all mammals"]
["Mammal, herbivorous","Food consumption, alpha parameter for allometric equation",0.57699999999999996,"BW(g),FC(g)","U.S. EPA/ORD 1993","Eq. 3-9, p. 3-6, equation for herbivores"]
["Mammal, herbivorous","Food consumption, beta parameter for allometric equation",0.72699999999999998,"BW(g),FC(g)","U.S. EPA/ORD 1993","Eq. 3-9, p. 3-6, equation for herbivores"]
["Mammal, herbivorous","Kilocalories, alpha parameter for allometric equation",1.518,"BW(g),KCal(kcal/day)","U.S. EPA/ORD 1993","Equation 3-46, herbivores"]
["Mammal, herbivorous","Kilocalories, beta parameter for allometric equation",0.73,"BW(g),KCal(kcal/day)","U.S. EPA/ORD 1993","Equation 3-46, herbivores"]
["Mammal, large","Body weight",70,"kg","Default","N/A"]
["Mammal, large","Kilocalories, alpha parameter for allometric equation",1.518,"BW(g),KCal(kcal/day)","U.S. EPA/ORD 1993","p. 3-6, Eq. 3-10, herbivores"]
["Mammal, large","Kilocalories, beta parameter for allometric equation",0.73,"BW(g),KCal(kcal/day)","U.S. EPA/ORD 1993","p. 3-6, Eq. 3-10, herbivores"]
["Mammal, large","Water consumption, alpha parameter for allometric equation",9.9000000000000005E-2,"BW(kg),WC(L)","U.S. EPA/ORD 1993","Eq. 3-17, p. 3-10, all mammals"]
["Mammal, large","Water consumption, beta parameter for allometric equation",0.9,"BW(kg), WC(L)","U.S. EPA/ORD 1993","Eq. 3-17, p. 3-10, all mammals"]
["Mammal, rabbit","Body weight",1.3,"kg","Default","N/A"]
["Mammal, rabbit","Surface Area, alpha parameter for allometric equation",0.11,"BW(kg),SA(m2)","U.S. EPA/ORD 1993","p. 3-14, Eq. 3-22, for all mammals"]
["Mammal, rabbit","Surface Area, beta parameter for allometric equation",0.65,"BW(kg),SA(m2)","U.S. EPA/ORD 1993","p. 3-14, Eq. 3-22, for all mammals"]
["Mammal, rodent","Food consumption, alpha parameter for allometric equation",0.621,"BW(g),FC(g)","U.S. EPA/ORD 1993","Eq. 3-8, p. 3-6, equation for rodents"]
["Mammal, rodent","Food consumption, beta parameter for allometric equation",0.58399999999999996,"BW(g),FC(g)","U.S. EPA/ORD 1993","Eq. 3-8,p. 3-6, equation for rodents"]
["Mammal, small","Body weight",0.02,"kg","Default","N/A"]
["Mammal, small","Caloric content (wet weight)",1.7,"kcal/g  (wet weight)","U.S. EPA/ORD 1993","Table 4-1, p. 4-13. Value for small mammals. Wet weight."]
["Mammal, small","Food consumption, alpha parameter for allometric equation",0.621,"BW(g),FC(g)","U.S. EPA/ORD 1993","Eq. 3-8, p. 3-6, equation for rodents"]
["Mammal, small","Food consumption, beta parameter for allometric equation",0.56399999999999995,"BW(g),FC(g)","U.S. EPA/ORD 1993","Eq. 3-8, p. 3-6, equation for rodents"]
["Mammal, small","Kilocalories, alpha parameter for allometric equation",2.5139999999999998,"BW(g),KCal(kcal/day)","U.S. EPA/ORD 1993","Equation 3-48, rodent"]
["Mammal, small","Kilocalories, beta parameter for allometric equation",0.50700000000000001,"BW(g),KCal(kcal/day)","U.S. EPA/ORD 1993","Equation 3-48, rodent"]
["Mammal, small","Surface Area, alpha parameter for allometric equation",0.11,"BW(kg),SA(m2)","U.S. EPA/ORD 1993","p. 3-14, Eq. 3-22, for all mammals"]
["Mammal, small","Surface Area, beta parameter for allometric equation",0.65,"BW(kg),SA(m2)","U.S. EPA/ORD 1993","p. 3-14, Eq. 3-22, for all mammals"]
["Mammal, small","Water consumption, alpha parameter for allometric equation",9.9000000000000005E-2,"BW(kg),WC(L)","U.S. EPA/ORD 1993","Eq. 3-17, p. 3-10, all mammals"]
["Mammal, small","Water consumption, beta parameter for allometric equation",0.9,"BW(kg),WC(L)","U.S. EPA/ORD 1993","Eq. 3-17, p. 3-10, all mammals"]

{"sheet":"A02c","index":9,"n_rows":24,"n_cols":6,"rows_kept":24,"cut":false,"hidden":false,"merged":[[0,0,0,4]]}
["General reference values and exposure factors used in worksheets."]
[]
["Receptor","Factor","Value","Units"," Reference","Reference Note"]
["Small Insects","Caloric content (wet weight)",1.5,"kcal/g (wet weight)","U.S. EPA/ORD 1993","Table 4-1, p. 4-13.  Value for beetles. Wet weight"]
["Fish","Caloric content (wet weight)",1.2,"kcal/g (wet weight)","U.S. EPA/ORD 1993","Table 4-1, p. 4-13.  Value for bony fish. Wet weight"]
["Vegetation","Caloric content (dry weight)",2.2599999999999998,"kcal/g","U.S. EPA/ORD 1993","p. 3-5, Table 3-1"]
["Vegetation","Water content (proportion)",0.85,"unitless","U.S. EPA/ORD 1993","p. 4-14"]
["VegRR","Broadleaf/forage plants and small insects, central estimate",45,"mg chem/kg veg","Fletcher et al. 1994","Broadleaf/forage plants and small insects"]
["VegRR","Broadleaf/forage plants and small insects, upper range",135,"mg chem/kg veg","Fletcher et al. 1994","Broadleaf/forage plants and small insects"]
["VegRR","Fruits, pods, seeds, and large insects, central estimate",7,"mg chem/kg veg","Fletcher et al. 1994","Fruits, pods, seeds, and large insects"]
["VegRR","Fruits, pods, seeds, and large insects, upper range",15,"mg chem/kg veg","Fletcher et al. 1994","Fruits, pods, seeds, and large insects"]
["VegRR","Broadleaf plants and small insects, granular applications, central estimate",1.8,"mg chem/kg veg","SERA 2005","Broadleaf forage plants and contaminated insects after granular application"]
["VegRR","Broadleaf plants and small insects, granular applications, upper range",5.4,"mg chem/kg veg","SERA 2005","Broadleaf forage plants and contaminated insects after granular application"]
["VegRR","Fruits, granular applications, central estimate",0.28000000000000003,"mg chem/kg veg","SERA 2005","Fruit after granular application"]
["VegRR","Fruits, granular applications, upper range",0.6,"mg chem/kg veg","SERA 2005","Fruit after granular application"]
["VegRR","Short grass, granular applications, lower range",1.2,"mg chem/kg veg","SERA 2005","Short grass after granular application"]
["VegRR","Short grass, granular applications, upper range",9.6,"mg chem/kg veg","SERA 2005","Short grass after granular application"]
["VegRR","Tall grass, granular applications, central estimate",1.44,"mg chem/kg veg","SERA 2005","Tall grass after granular application"]
["VegRR","Tall grass, granular applications, upper range",4.4000000000000004,"mg chem/kg veg","SERA 2005","Tall grass after granular application"]
["VegRR","Short grass, central estimate",85,"mg chem/kg veg","Fletcher et al. 1994","Short grass"]
["VegRR","Short grass, lower range",30,"mg chem/kg veg","SERA 2007","Short grass"]
["VegRR","Short grass, upper range",240,"mg chem/kg veg","Fletcher et al. 1994","Short grass"]
["VegRR","Tall grass, central estimate",36,"mg chem/kg veg","Fletcher et al. 1994","Tall grass"]
["VegRR","Tall grass, upper range",110,"mg chem/kg veg","Fletcher et al. 1994","Tall grass"]

{"sheet":"A02d","index":10,"n_rows":24,"n_cols":6,"rows_kept":24,"cut":false,"hidden":false,"merged":[[0,0,0,4]]}
["General reference values and exposure factors used in worksheets."]
[]
["Receptor","Factor","Value","Units"," Reference","Reference Note"]
["Conversion Factors","acrefoot2gal",325900,"gal/acre-foot","Budavari  1989","N/A"]
["Conversion Factors","liters per gal",3.7850000000000001,"L/gal","Budavari  1989","N/A"]
["Conversion Factors","pound per milligram",453600,"mg/lb","Budavari  1989","N/A"]
["Conversion Factors","lbac2mgcm2",1.1209999999999999E-2,"mg/cm2 per lb/acre","Budavari  1989","N/A"]
["Conversion Factors","lbac2ugcm2",11.21,"ug/cm2 per lb/acre","Budavari  1989","N/A"]
["Conversion Factors","conversion for milligrams to pounds",2.204E-6,"lb/mg","Budavari  1989","N/A"]
["Conversion Factors","conversion for milliliters to gallons",3785,"ml/gal","Budavari  1989","N/A"]
["Misc","Liquid adhering to skin",8.0000000000000002E-3,"mL/cm2","Mason and Johnson 1987","Weight of liquid adhering to surface of skin after a spill"]
["Misc","Dislodgeable residue as proportion",0.1,"none","Harris and Solomon 1992","Estimate of dislodgeable residue as a proportion of application rate shortly after application based on 2,4-D."]
["Standard Pond","Depth",1,"m","Default","Depth of pond"]
["Standard Pond","Surface Area",1000,"m^2","Default","Surface Area"]
["Standard Pond","Volume of Spill ",200,"gallons","Default","Volume of spill"]
["VegRR","Broadleaf/forage plants and small insects, lower range",15,"mg chem/kg veg","SERA 2007","Broadleaf/forage plants and small insects"]
["VegRR","Fruits, pods, seeds, and large insects, lower range",3.2,"mg chem/kg veg","SERA 2007","Fruits, pods, seeds, and large insects"]
["VegRR","Broadleaf plants and small insects, granular applications, lower range",0.6,"mg chem/kg veg","SERA 2007","Broadleaf/forage plants after granular application"]
["VegRR","Fruits, granular applications, lower range",0.13,"mg chem/kg veg","SERA 2007","Fruit after granular application"]
["VegRR","Short grass, granular applications, central estimate",3.4,"mg chem/kg veg","SERA 2005","Short grass after granular application"]
["VegRR","Short grass, granular applications, lower range",1.2,"mg chem/kg veg","SERA 2007","Short grass after granular application"]
["VegRR","Tall grass, granular applications, lower range",0.48,"mg chem/kg veg","SERA 2007","Tall grass after granular application"]
["VegRR","Short grass, lower range",30,"mg chem/kg veg","Fletcher et al. 1994","Short grass"]
["VegRR","Tall grass, lower range",12,"mg chem/kg veg","SERA 2007","Tall grass"]

{"sheet":"A03","index":11,"n_rows":50,"n_cols":8,"rows_kept":50,"cut":false,"hidden":false,"merged":[[0,0,0,6]]}
["Consumption values used in worksheets"]
[]
["Receptor","Item","Qualifier","Modifier","Value","Units"," Reference","Reference Note"]
["Adult Female","Fish","Amount","central estimate",0.01,"kg/day","U.S. EPA/ORD 1996","p. 10-51, average of means from four studies rounded to one significant place."]
["Adult Female","Fish","Amount","upper range",0.158,"kg/day","Ruffle et al. 1994","N/A"]
["Adult Female","Fruit","Proportion of body weight","central estimate",1.6800000000000001E-3,"kg fruit/kg bw/day","U.S. EPA/ORD 1996","Table 9-3, p. 9-11, mean value."]
["Adult Female","Fruit","Proportion of body weight","lower range",1.6800000000000001E-3,"kg fruit/kg bw/day","U.S. EPA/ORD 1996","Table 9-3, p. 9-11. The 5th percentile is given as zero.  For these worksheets, the central estimate is used for the lower bound."]
["Adult Female","Fruit","Proportion of body weight","upper range",1.244E-2,"kg fruit/kg bw/day","U.S. EPA/ORD 1996","Table 9-3, p. 9-11, 95th percentile value."]
["Adult Female","Vegetation, home grown","Proportion of body weight","central estimate",7.6000000000000004E-4,"kg veg/kg bw/day","U.S. EPA/ORD 1996","Table 12-15, p. 9-14, mean for individuals between 20 and 39 years old."]
["Adult Female","Vegetation, home grown","Proportion of body weight","lower range",8.0000000000000007E-5,"kg veg/kg bw/day","U.S. EPA/ORD 1996","Table 12-15, p. 9-14, 5th percentile for individuals between 20 and 39 years old."]
["Adult Female","Vegetation, home grown","Proportion of body weight","upper range",4.9199999999999999E-3,"kg veg/kg bw/day","U.S. EPA/ORD 1996","Table 12-15, p. 9-14, 95th percentile for individuals between 20 and 39 years old."]
["Adult Female","Vegetation","Amount","Extreme",0.45400000000000001,"kg food","U.S. EPA/ORD 1996","1 lb.  The approximate mid range of the above typical and upper limits based on the 64 kg body weight."]
["Adult Female","Vegetation","Proportion of body weight","central estimate",3.5999999999999999E-3,"kg veg/kg bw/day","U.S. EPA/ORD 1996","Table 9-12, p. 9-12, mean."]
["Adult Female","Vegetation","Proportion of body weight","lower range",7.5000000000000002E-4,"kg veg/kg bw/day","U.S. EPA/ORD 1996","Table 9-12, p. 9-12, 5th percentile."]
["Adult Female","Vegetation","Proportion of body weight","upper range",0.01,"kg veg/kg bw/day","U.S. EPA/ORD 1996","Table 9-12, p. 9-12, 95th percentile."]
["Adult Female","Water","Amount","central estimate",2,"L/day","U.S. EPA/ORD 1996","p. 3-28, Table 3-30, midpoint of mean (1.4 L/day) and 90th percentile (2.4 L/day) rounded to one significant place."]
["Adult Female","Water","Amount","lower range",1.4,"L/day","U.S. EPA/ORD 1996","p. 3-28, Table 3-30, mean"]
["Adult Female","Water","Amount","upper range",2.4,"L/day","U.S. EPA/ORD 1996","p. 3-28, Table 3-30, 90th percentile"]
["Adult Male","Fish","Amount","central estimate",0.01,"kg/day","U.S. EPA/ORD 1996","p. 10-51, average of means from four studies rounded to one significant place."]
["Adult Male","Fish","Amount","upper range",0.158,"kg/day","Ruffle et al. 1994","N/A"]
["Adult Male","Fruit","Proportion of body weight","central estimate",1.6800000000000001E-3,"unitless","U.S. EPA/ORD 1996","Table 9-3, p. 9-11, mean value."]
["Adult Male","Fruit","Proportion of body weight","lower range",1.6800000000000001E-3,"unitless","U.S. EPA/ORD 1996","Table 9-3, p. 9-11. The 5th percentile is given as zero.  For these worksheets, the central estimate is used for the lower bound."]
["Adult Male","Fruit","Proportion of body weight","upper range",1.244E-2,"unitless","U.S. EPA/ORD 1996","Table 9-3, p. 9-11, 95th percentile value."]
["Adult Male","Vegetation, home grown","Proportion of body weight","central estimate",7.6000000000000004E-4,"unitless","U.S. EPA/ORD 1996","Table 12-15, p. 9-14, mean for individuals between 20 and 39 years old."]
["Adult Male","Vegetation, home grown","Proportion of body weight","lower range",8.0000000000000007E-5,"unitless","U.S. EPA/ORD 1996","Table 12-15, p. 9-14, 5th percentile for individuals between 20 and 39 years old."]
["Adult Male","Vegetation, home grown","Proportion of body weight","upper range",4.9199999999999999E-3,"unitless","U.S. EPA/ORD 1996","Table 12-15, p. 9-14, 95th percentile for individuals between 20 and 39 years old."]
["Adult Male","Vegetation","Amount","Extreme",0.45400000000000001,"kg/day","U.S. EPA/ORD 1996","1 lb.  The approximate mid range of the above typical and upper limits based on the 64 kg body weight."]
["Adult Male","Vegetation","Proportion of body weight","central estimate",3.5999999999999999E-3,"unitless","U.S. EPA/ORD 1996","Table 9-12, p. 9-12, mean."]
["Adult Male","Vegetation","Proportion of body weight","lower range",7.5000000000000002E-4,"unitless","U.S. EPA/ORD 1996","Table 9-12, p. 9-12, 5th percentile."]
["Adult Male","Vegetation","Proportion of body weight","upper range",0.01,"unitless","U.S. EPA/ORD 1996","Table 9-12, p. 9-12, 95th percentile."]
["Adult Male","Water","Amount","central estimate",2,"L/day","U.S. EPA/ORD 1996","p. 3-28, Table 3-30, midpoint of mean (1.4 L/day) and 90th percentile (2.4 L/day) rounded to one significant place."]
["Adult Male","Water","Amount","lower range",1.4,"L/day","U.S. EPA/ORD 1996","p. 3-28, Table 3-30, mean"]
["Adult Male","Water","Amount","upper range",2.4,"L/day","U.S. EPA/ORD 1996","p. 3-28, Table 3-30, 90th percentile"]
["Subsistence Populations","Fish","Amount","central estimate",8.1000000000000003E-2,"kg/day","U.S. EPA/ORD 1996","p. 10-51, median value of 94 individuals"]
["Subsistence Populations","Fish","Amount","upper range",0.77,"kg/day","U.S. EPA/ORD 1996","p. 10-51, highest value of 94 individuals"]
["Child","Water","Amount","central estimate",1,"L/day","U.S. EPA/ORD 1996","p. 3-28, Table 3-30, midpoint of mean (0.61L/day) and 90th percentile (1.5 L/day) rounded to one significant place."]
["Child","Water","Amount","lower range",0.61,"L/day","U.S. EPA/ORD 1996","p. 3-28, Table 3-30, mean"]
["Child","Water","Amount","upper range",1.5,"L/day","U.S. EPA/ORD 1996","p. 3-28, Table 3-30, 90th percentile"]
["Herbivorous Insect","Broadleaf/Small Insects","Proportion of body weight","central estimate",1.3,"kg food/kg bw/day","Waldbauer 1968","N/A"]
["Herbivorous Insect","Broadleaf/Small Insects","Proportion of body weight","lower range",0.6,"kg food/kg bw/day","Reichle et al. 1973","N/A"]
["Herbivorous Insect","Broadleaf/Small Insects","Proportion of body weight","upper range",2.2000000000000002,"kg food/kg bw/day","Waldbauer 1968","N/A"]
["Herbivorous Insect","Fruit","Proportion of body weight","central estimate",1.3,"kg food/kg bw/day","Waldbauer 1968","N/A"]
["Herbivorous Insect","Fruit","Proportion of body weight","lower range",0.6,"kg food/kg bw/day","Reichle et al. 1973","N/A"]
["Herbivorous Insect","Fruit","Proportion of body weight","upper range",2.2000000000000002,"kg food/kg bw/day","Waldbauer 1968","N/A"]
["Herbivorous Insect","Short grass","Proportion of body weight","central estimate",1.3,"kg food/kg bw/day","Waldbauer 1968","N/A"]
["Herbivorous Insect","Short grass","Proportion of body weight","lower range",0.6,"kg food/kg bw/day","Reichle et al. 1973","N/A"]
["Herbivorous Insect","Short grass","Proportion of body weight","upper range",2.2000000000000002,"kg food/kg bw/day","Waldbauer 1968","N/A"]
["Herbivorous Insect","Tall Grass","Proportion of body weight","central estimate",1.3,"kg food/kg bw/day","Waldbauer 1968","N/A"]
["Herbivorous Insect","Tall Grass","Proportion of body weight","lower range",0.6,"kg food/kg bw/day","Reichle et al. 1973","N/A"]
["Herbivorous Insect","Tall Grass","Proportion of body weight","upper range",2.2000000000000002,"kg food/kg bw/day","Waldbauer 1968","N/A"]

{"sheet":"B01","index":12,"n_rows":22,"n_cols":5,"rows_kept":22,"cut":false,"hidden":false,"merged":[[0,0,0,4]]}
["Chemical and Physical Properties for  Imazapyr"]
[]
["Property","Receptor","Value","Units","Document Reference"]
["Bioconcentration Factor (BCF), edible, acute","N/A",0.5,"L/kg fish","Section 3.2.3.5."]
["Bioconcentration Factor (BCF), edible, chronic","N/A",0.5,"L/kg fish","Section 3.2.3.5."]
["Bioconcentration Factor (BCF), whole fish, acute","N/A",0.5,"L/kg fish","Section 3.2.3.5."]
["Bioconcentration Factor (BCF), whole fish, chronic","N/A",0.5,"L/kg fish","Section 3.2.3.5."]
["Kow (Octanol-water partition coefficient)","N/A",1.3,"unitless","Table 2-1"]
["Molecular weight","N/A",261.3,"grams/mole","Table 2-1"]
["Water Solubility","N/A",13100,"mg/L","Table 2-1"]
["First order dermal absorption rate (ka), central estimate","N/A",1.1000000000000001E-3,"per hour","Section 3.2.2.2"]
["First order dermal absorption rate (ka), lower range","N/A",4.4000000000000002E-4,"per hour","Section 3.2.2.2"]
["First order dermal absorption rate (ka), upper range","N/A",2.8999999999999998E-3,"per hour","Section 3.2.2.2"]
["Dermal permeability (Kp), central estimate","N/A",5.5999999999999999E-5,"cm/hour","Section 3.2.2.2"]
["Dermal permeability (Kp), lower range","N/A",2.8E-5,"cm/hour","Section 3.2.2.2"]
["Dermal permeability (Kp), upper range","N/A",1.1E-4,"cm/hour","Section 3.2.2.2"]
["Halftime, central estimate","Fruit",30,"days","Section 3.2.3.6 "]
["Halftime, lower range","Fruit",15,"days","Section 3.2.3.6 "]
["Halftime, upper range","Fruit",37,"days","Section 3.2.3.6 "]
["Halftime, central estimate","Vegetation",30,"days","Section 3.2.3.6 "]
["Halftime, lower range","Vegetation",15,"days","Section 3.2.3.6 "]
["Halftime, upper range","Vegetation",37,"days","Section 3.2.3.6 "]

{"sheet":"B02","index":13,"n_rows":26,"n_cols":7,"rows_kept":26,"cut":false,"hidden":false,"merged":[[0,0,0,6]]}
["Toxicity values for  Imazapyr"]
[]
["Receptor","Receptor","Qualifier","Endpoint","Value","Units","Document Reference"]
["Human","acute","N/A","Reference Dose (RfD)",2.5,"mg/kg bw","Table 21"]
["Human","chronic","N/A","Reference Dose (RfD)",2.5,"mg/kg bw/day","Table 21"]
["Mammal, Nos","acute","N/A","NOAEL",738,"mg/kg bw","Table 21"]
["Mammal, Nos","chronic","N/A","NOAEL",738,"mg/kg bw/day","Table 21"]
["Bird, NOS","acute","N/A","NOAEL",2510,"mg/kg bw","Table 21"]
["Bird, NOS","chronic","N/A","NOAEL",610,"mg/kg bw/day","Table 21"]
["Honeybee","acute","N/A","NOAEL",860,"mg/kg bw","Table 21"]
["Fish","acute","sensitive species","NOAEC",10.4,"mg/L","Table 21"]
["Fish","chronic","sensitive species","NOAEC*",4,"mg/L","Table 21"]
["Fish","chronic","tolerant species","NOEC",12,"mg/L","Table 21"]
["Aquatic invertebrate","acute","tolerant species","NOAEC",41,"mg/L","Table 21"]
["Aquatic invertebrate","chronic","tolerant species","NOAEC",12,"mg/L","Table 21"]
["Algae","N/A","sensitive species","NOAEC",7.6,"mg/L","Table 21"]
["Algae","N/A","tolerant species","NOEC",50.9,"mg/L","Table 21"]
["Mammal, carnivorous","acute","N/A","NOAEL",250,"mg/kg bw","Table 21"]
["Macrophyte, aquatic","N/A","sensitive species","NOAEC",3.0000000000000001E-3,"mg/L","Table 21"]
["Macrophyte, aquatic","N/A","tolerant species","NOAEC",0.1,"mg/L","Table 21"]
["Terrestrial plant","Seedling Emergence","sensitive species","NOAEL",1.7000000000000001E-4,"lb/acre","Table 21"]
["Terrestrial plant","Seedling Emergence","tolerant species","NOAEL",1.5599999999999999E-2,"lb/acre","Table 21"]
["Terrestrial plant","Vegetative vigor","sensitive species","NOAEL",6.3999999999999997E-5,"lb/acre","Table 21"]
["Terrestrial plant","Vegetative vigor","tolerant species","NOAEL",0.4,"lb/acre","Table 21"]
["Mammal, carnivorous","chronic","N/A","NOAEL",250,"mg/kg bw/day","Table 21"]
["Herbivorous Insect","acute","N/A","NOAEL",860,"mg/kg bw","Table 21"]

{"sheet":"B03a","index":14,"n_rows":28,"n_cols":5,"rows_kept":28,"cut":false,"hidden":false,"merged":[[24,0,27,0],[0,0,0,4],[1,1,1,3],[5,0,7,0],[9,0,12,0],[20,0,23,0]]}
["Calculation of Zero-Order Dermal Permeability Rate (Kp) in cm/hour"]
["Short Title","Calculation of Kp",null,null,"ChemDrmKp"]
["Parameter/Assumption","Code / Range","Equation/   Value","Units","Reference/Designation"]
["Molecular weight","MW",{"$f":"'B01'!$C$9","v":261.3},"g/mole","Table 2-1"]
["Ko/w","Kow",{"$f":"'B01'!$C$8","v":1.3},"unitless","Table 2-1"]
["Vector a[]","a[1]",1]
[null,"a[2]",{"$f":"C4","v":261.3}]
[null,"a[3]",{"$f":"LOG10(C5)","v":0.11394335230683679}]
["Transpose of a[] (a')",{"$f":"$C$6","v":1},{"$f":"$C$7","v":261.3},{"$f":"$C$8","v":0.11394335230683679}]
["X'X Cross Product Matrix","X'X"]
[null,5.5931000000000002E-2,-9.4154599999999995E-5,-1.0344300000000001E-2]
[null,-9.4154599999999995E-5,5.9780000000000002E-7,-2.22508E-5]
[null,-1.0344300000000001E-2,-2.22508E-5,7.40677E-3]
["a'X'X a","a'X'X a",{"$f":"MMULT(B9:D9,MMULT(B11:D13, C6:C8))","v":4.395607958016802E-2}]
["Coefficients for model"]
["Intercept","K0",-2.7257600000000002]
["Coeff for MW","K1",-6.1510000000000002E-3]
["Coeff for Log10(Kow)","K2",0.70664800000000005]
["Standard deviation of model","s",0.72712900000000003]
["Critical value at 0.025 with 87 d.f.","t0.025",1.96]
["Log10 of Estimated dermal permeability rate (Kp)","Log(Kp) = ","K0 + K1  MW + K2 Log10(Kow) "]
[null,"Central",{"$f":" $C$16 + ($C$17*$C$4) + ($C$18*LOG10($C$5))","v":-4.2524984579790788},null,"Eq"]
[null,"Lower 95% CI",{"$f":"$C$22 - ($C$20 * $C$19 * ($C$14^0.5))","v":-4.5512959946350433},null,"Eq"]
[null,"Upper 95% CI",{"$f":"$C$22 + ($C$20 * $C$19 * ($C$14^0.5))","v":-3.9537009213231138},null,"Eq"]
["Estimated dermal permeability rate (Kp)","Kp = ","10Log(Kp)"]
[null,"Central",{"$f":"10^C22","v":5.5911551278180088E-5},"cm/hour","Eq"]
[null,"Lower 95% CI",{"$f":"10^C23","v":2.8099850243540084E-5},null,"Eq"]
[null,"Upper 95% CI",{"$f":"10^C24","v":1.1124975895738894E-4},null,"Eq"]

{"sheet":"B03b","index":15,"n_rows":28,"n_cols":5,"rows_kept":28,"cut":false,"hidden":false,"merged":[[24,0,27,0],[0,0,0,4],[1,1,1,3],[5,0,7,0],[9,0,12,0],[20,0,23,0]]}
["Calculation of First-Order Dermal Absorption Rate"]
["Short Title","Calculation of ka",null,null,"ChemDrmKa"]
["Parameter/Assumption","Code / Range","Equation/   Value","Units","Reference/Designation"]
["Molecular weight","MW",{"$f":"'B01'!$C$9","v":261.3},"g/mole","Table 2-1"]
["Ko/w","Kow",{"$f":"'B01'!$C$8","v":1.3},"unitless","Table 2-1"]
["Vector a[]","a[1]",1]
[null,"a[2]",{"$f":"C4","v":261.3}]
[null,"a[3]",{"$f":"LOG10(C5)","v":0.11394335230683679}]
["Transpose of a[] (a')",{"$f":"$C$6","v":1},{"$f":"$C$7","v":261.3},{"$f":"$C$8","v":0.11394335230683679}]
["X'X Cross Product Matrix","X'X"]
[null,0.307537,-1.03089E-3,8.2276899999999993E-3]
[null,-1.03089E-3,4.3769999999999998E-6,-9.4435899999999995E-5]
[null,8.2276899999999993E-3,-9.4435899999999995E-5,8.5286000000000008E-3]
["a'X'X a","a'X'X a",{"$f":"MMULT(B9:D9,MMULT(B11:D13, C6:C8))","v":6.4007688586631611E-2}]
["Coefficients for model"]
["Intercept","K0",-1.4961500000000001]
["Coeff for MW","K1",-5.6569999999999997E-3]
["Coeff for Log10(Kow)","K2",0.23325499999999999]
["Standard deviation of model","s",0.78721799999999997]
["Critical value at 0.025 with 26 d.f.","t0.025",2.056]
["Log10 of Estimated first-order absorption rate","Log(ka) = ","K0 + K1  MW + K2 Log10(Kow) "]
[null,"Central",{"$f":"  $C$16 + ($C$17*$C$4) + ($C$18*LOG10($C$5))","v":-2.9477462433576687},null,"Eq"]
[null,"Lower 95% CI",{"$f":"$C$22 - ($C$20 * $C$19 * ($C$14^0.5))","v":-3.3572276611992389},null,"Eq"]
[null,"Upper 95% CI",{"$f":"$C$22 + ($C$20 * $C$19 * ($C$14^0.5))","v":-2.5382648255160984},null,"Eq"]
["Estimated first-order absorption rate","ka = ","10Log(ka)"]
[null,"Central",{"$f":"10^C22","v":1.1278562658868371E-3},"hour-1","Eq"]
[null,"Lower 95% CI",{"$f":"10^C23","v":4.3931126402392377E-4},null,"Eq"]
[null,"Upper 95% CI",{"$f":"10^C24","v":2.895577374567217E-3},null,"Eq"]

{"sheet":"B04a","index":16,"n_rows":54,"n_cols":5,"rows_kept":54,"cut":false,"hidden":false,"merged":[[50,0,53,0],[0,0,0,4],[6,0,9,0],[14,0,17,0],[19,0,22,0],[24,0,27,0],[28,0,31,0],[32,0,35,0],[38,0,41,0],[42,0,45,0],[44,3,45,3],[46,0,49,0]]}
["Estimates of Peak Concentrations of the Pesticide in Water After Aquatic Applications Expressed in Units of Pound Per Acre of Surface Water"]
["Parameter/Assumption","Code / Range","Equation/ Value","Units","EECAqLbAcV6"]
["Water Body and Applicaiton"]
["Application Rate","ApRt"]
[null,"Central ",{"$f":"'A01'!ApRt_C","v":1},"lb/acre","Worksheet A01"]
["Surface Area to be Treated","SurfA",{"$f":"'A01'!SurfA","v":10},"acres","Program Parameter"]
["Depth of Water in feet","WBDft"]
[null,"Central ",{"$f":"'A01'!WBDft_C","v":3},"feet","Program Parameter"]
[null,"Lower ",{"$f":"'A01'!WBDft_L","v":1},null,"Program Parameter"]
[null,"Upper ",{"$f":"'A01'!WBDft_U","v":10},null,"Program Parameter"]
["Number of applications","n",1,"unitless","Worksheet A01"]
["Interval between applications","intv",1,"days","Worksheet A01"]
["Calculation of Peak Concentrations"]
["Conversion factor for lbs to mg","Conv1",453592.37,"mg/lb (Merck Index)"]
["Amount of Pesticide Applied to Water Body in mg","Amnt_mg","= ApRt x Surf x Conv1"]
[null,"Central ",{"$f":"C$5*C$6*C$14","v":4535923.7},"mg","Eq"]
[null,"Lower ",{"$f":"C$5*C$6*C$14","v":4535923.7},null,"Eq"]
[null,"Upper ",{"$f":"C$5*C$6*C$14","v":4535923.7},null,"Eq"]
["Square feet per acre","Conv2",43560,"ft2/acre (Merck)"]
["Volume of Water in Cubic Feet","WatVolCuFt","= SA x DBDft x Conv2"]
[null,"Central ",{"$f":"C$6*C8*C$19","v":1306800},"ft3","Eq"]
[null,"Lower ",{"$f":"C$6*C9*C$19","v":435600},null,"Eq"]
[null,"Upper ",{"$f":"C$6*C10*C$19","v":4356000},null,"Eq"]
["Conversion factor for cubic feet to liters","Conv3",28.32,"ft2/acre (Merck)"]
["Volume of Water in Liters","WatVolL","= WatVolCuFt x Conv3"]
[null,"Central ",{"$f":"C21*C$24","v":37008576},null,"Eq"]
[null,"Upper ",{"$f":"C23*C$24","v":123361920},null,"Eq"]
[null,"Lower ",{"$f":"C22*C$24","v":12336192},null,"Eq"]
["Toxic Equivalency Factor for formulation:  (See risk assessment if this has a value other than 1.)","TEF"]
[null,"Central ",{"$f":"'A01'!C$37","v":1},"Unitless","Worksheet A01"]
[null,"Lower ",{"$f":"'A01'!C$38","v":1},null,"Worksheet A01"]
[null,"Upper ",{"$f":"'A01'!C$39","v":1},null,"Worksheet A01"]
["Peak Concentrations","Water","= Amnt_mg x TEF / WatVolL"]
[null,"Central ",{"$f":"C16*C30/C26","v":0.12256412405600259},"mg/L"]
[null,"Lower ",{"$f":"C17*C31/C27","v":3.6769237216800775E-2}]
[null,"Upper ",{"$f":"C18*C32/C28","v":0.36769237216800776}]
["Calculation of Longer-Term Concentrations"]
["Exposure Period","T",{"$f":"'A01'!C$30","v":90},"days","Worksheet A01"]
["Field Dissipation Half-life in Water Body","Halflife"]
[null,"Central ",{"$f":"'A01'!C$53","v":65},"Days","Worksheet A01"]
[null,"Lower ",{"$f":"'A01'!C$54","v":25},null,"Worksheet A01"]
[null,"Upper ",{"$f":"'A01'!C$55","v":180},null,"Worksheet A01"]
["Decay Coefficient","k","Ln(2)/Halflife"]
[null,"Central ",{"$f":"LN(2)/C40","v":1.0663802777845312E-2},"Days-1","Eq"]
[null,"Upper ",{"$f":"LN(2)/C41","v":2.7725887222397813E-2},null,"Eq"]
[null,"Lower ",{"$f":"LN(2)/C42","v":3.8508176697774738E-3},null,"Eq"]
["Concentration water at time, T.","ConcT","C0 × e-kT"]
[null,"Central ",{"$f":"C34*EXP(-C44*C$38)","v":4.6941028667537174E-2},"mg/L","Eq"]
[null,"Lower ",{"$f":"C35*EXP(-C45*C$38)","v":3.032331211290859E-3},null,"Eq"]
[null,"Upper ",0.2599977697505661,null,"Eq"]
["Average Concentrations","ConcTWA","C0 × (1-e-kT) ÷ (k T)"]
[null,"Central ",{"$f":" (C34*(1-EXP(-C44*C$38)))/(C44*C$38)","v":7.8795213389830948E-2},"mg/L"]
[null,"Lower ",{"$f":" (C35*(1-EXP(-C45*C$38)))/(C45*C$38)","v":1.3520018608079512E-2}]
[null,"Upper ",0.3107409376763034]

{"sheet":"B04b","index":17,"n_rows":25,"n_cols":5,"rows_kept":25,"cut":false,"hidden":false,"merged":[[18,0,21,0],[0,0,0,4],[1,1,1,3],[2,1,2,3],[3,1,3,3],[13,0,16,0]]}
["Pond: Concentration of pesticide (liquid formulation) in pond water after an accidental spill"]
["Short Title","Pond Spill",null,null,"PondSpillLiqV6"]
["Receptor","Pond"]
["Duration","Acute"]
["Parameter/Assumption","Code / Range","Equation/   Value","Units","Reference/Designation"]
["Surface Area of Pond","SA",{"$f":"'A01'!C$28","v":1000},"m2","Worksheet A01"]
["Depth of Pond","Depth",{"$f":"'A01'!C$29","v":1},"meter","Worksheet A01"]
["Volume of Pond","VPM",{"$f":"C6*C7","v":1000},"m3","Eq"]
[null,"VPL",{"$f":"1000*C8","v":1000000},"liters","Eq"]
["Concentration in solution","Conc"]
[null,"Central ",{"$f":"'A01'!FldConc_C","v":6},"mg/mL","Worksheet A01"]
[null,"Lower ",{"$f":"'A01'!FldConc_L","v":1.2},null,"Worksheet A01"]
[null,"Upper ",{"$f":"'A01'!FldConc_U","v":24},null,"Worksheet A01"]
["Volume of Spill (gallons)","VSGal"]
[null,"Central ",{"$f":"'A01'!C$45","v":100},"gallons","Worksheet A01"]
[null,"Lower ",{"$f":"'A01'!C$46","v":20},null,"Worksheet A01"]
[null,"Upper ",{"$f":"'A01'!C$47","v":200},null,"Worksheet A01"]
["Conversion factor for gallons to liters","Conv",3.7850000000000001,"liters/gal"]
["Volume of Spill (liters)","VSLit","VSGal x Conv"]
[null,"Central ",{"$f":"C15*C$18","v":378.5},"liters","Eq"]
[null,"Lower ",{"$f":"C16*C$18","v":75.7},"liters","Eq"]
[null,"Upper ",{"$f":"C17*C$18","v":757},"liters","Eq"]
["Concentration in pond water at various times after as spill","ConcWat","Conc × 1000 mL/L × VSL ÷ VPL"]
["Time","Central ","Lower ","Upper "]
[0,{"$f":"C11*1000*C20/C$9","v":2.2709999999999999},{"$f":"C12*1000*C21/C$9","v":9.0840000000000004E-2},{"$f":"C13*1000*C22/C$9","v":18.167999999999999},"mg/L"]

{"sheet":"C01","index":18,"n_rows":24,"n_cols":5,"rows_kept":24,"cut":false,"hidden":false,"merged":[[16,0,19,0],[17,3,19,3],[20,0,23,0],[0,0,0,4],[1,1,1,3],[2,1,2,3],[3,1,3,3],[8,0,11,0],[12,0,15,0],[13,3,15,3]]}
["Worker exposure estimates and risk characterization for direct applications to water."]
["Short Title","Direct Application to Water",null,null,"WkAquaAp"]
["Receptor","Worker"]
["Duration","Chronic"]
["Parameter/Assumption","Code / Range","Equation/ Value","Units","Reference/Equation"]
["Application rates","ApRt",{"$f":"'A01'!ApRt_C","v":1},"lb/acre","Worksheet A01"]
["Acres of Water Surface treated per day: ","ATD",{"$f":"'A01'!SurfA","v":10},null,"Program Parameter"]
["Amount handled per day: ","AmntH",{"$f":"C6*C7","v":10},"lb/day [ApRt × ATD]"]
["Toxic Equivalency Factor for formulation:  (See risk assessment if this has a value other than 1.)","TEF"]
[null,"Central ",{"$f":"'A01'!C$37","v":1},"Unitless","Worksheet A01"]
[null,"Lower ",{"$f":"'A01'!C$38","v":1},null,"Worksheet A01"]
[null,"Upper ",{"$f":"'A01'!C$39","v":1},null,"Worksheet A01"]
["Clothing Protection Factor","Prot"]
[null,"Central ",{"$f":"'A01'!C$33","v":0},"Unitless (value between 0 [no protection] and 1 [complete protection])","Worksheet A01"]
[null,"Upper ",{"$f":"'A01'!C$35","v":0},null,"Worksheet A01"]
[null,"Lower ",{"$f":"'A01'!C$34","v":0},null,"Worksheet A01"]
["Absorbed dose rate:","ADR"]
[null,"Central ",{"$f":"'A01'!C$49","v":8.9999999999999998E-4},"(mg agent/kg bw) ÷ (lbs agent handled per day)","Worksheet A01"]
[null,"Lower ",{"$f":"'A01'!C$50","v":4.0000000000000002E-4},null,"Worksheet A01"]
[null,"Upper ",{"$f":"'A01'!C$51","v":2E-3},null,"Worksheet A01"]
["Absorbed dose","Dose","AmntH × ADR × TEF × Prot"]
[null,"Central ",{"$f":"C$8* C10 * C18*(1-C14)","v":8.9999999999999993E-3},"mg/kg bw/day","Eq"]
[null,"Lower ",{"$f":"C$8* C11 * C19*(1-C15)","v":4.0000000000000001E-3},null,"Eq"]
[null,"Upper ",{"$f":"C$8* C12 * C20*(1-C16)","v":0.02},null,"Eq"]

{"sheet":"C02a","index":19,"n_rows":26,"n_cols":5,"rows_kept":26,"cut":false,"hidden":false,"merged":[[10,0,13,0],[14,0,17,0],[18,0,21,0],[22,0,25,0],[0,0,0,4],[1,1,1,3],[2,1,2,3],[3,1,3,3],[4,1,4,3],[7,0,8,0]]}
["Accidental Dermal Exposure Assessment Using Zero-Order Absorption, Worker, Surface Area, Hands, for 1 minute(s)"]
["Short Title","Contaminated Gloves, 1 minute",null,null,"DrmZr"]
["Receptor","Worker"]
["Duration","Acute"]
["Surface Contaminated","Surface Area, Hands"]
["Parameter/Assumption","Code / Range","Equation/   Value","Units","Reference/Designation"]
["Surface Area","SA",{"$f":"A02a!$C$40","v":840},"cm2","U.S. EPA/ORD 1992"]
["Duration of Exposure","T_min",1,"minutes","Scenario parameter"]
[null,"T_hr",{"$f":"C8/60","v":1.6666666666666666E-2},"hours","Eq"]
["Body weight","BW",{"$f":"A02a!$C$39","v":70},"kg","ICRP 1975"]
["Concentration in solution (mg/mL)","Conc"]
[null,"Central ",{"$f":"'A01'!FldConc_C","v":6},"mg/mL","Worksheet A01"]
[null,"Lower ",{"$f":"'A01'!FldConc_L","v":1.2},null,"Worksheet A01"]
[null,"Upper ",{"$f":"'A01'!FldConc_U","v":24},null,"Worksheet A01"]
["Toxic Equivalency Factor for formulation:  (See risk assessment if this has a value other than 1.)","TEF"]
[null,"Central ",{"$f":"'A01'!C$37","v":1},"Unitless","Worksheet A01"]
[null,"Lower ",{"$f":"'A01'!C$38","v":1},null,"Worksheet A01"]
[null,"Upper ",{"$f":"'A01'!C$39","v":1},null,"Worksheet A01"]
["Dermal permeability","Kp"]
[null,"Central ",{"$f":"'B01'!$C$14","v":5.5999999999999999E-5},"cm/hour","Section 3.2.2.2"]
[null,"Lower ",{"$f":"'B01'!$C$15","v":2.8E-5},null,"Section 3.2.2.2"]
[null,"Upper ",{"$f":"'B01'!$C$16","v":1.1E-4},null,"Section 3.2.2.2"]
["Absorbed Dose","Dose","Kp × Conc × T_hr × SA x TEF ÷ BW"]
[null,"Central ",{"$f":"C20*C12*C$9*C$7*C16/C$10","v":6.7199999999999994E-5},"mg/kg","Eq"]
[null,"Lower ",{"$f":"C21*C13*C$9*C$7*C17/C$10","v":6.7199999999999992E-6},"mg/kg","Eq"]
[null,"Upper ",{"$f":"C22*C14*C$9*C$7*C18/C$10","v":5.2800000000000004E-4},"mg/kg","Eq"]

{"sheet":"C02b","index":20,"n_rows":26,"n_cols":5,"rows_kept":26,"cut":false,"hidden":false,"merged":[[10,0,13,0],[14,0,17,0],[18,0,21,0],[22,0,25,0],[0,0,0,4],[1,1,1,3],[2,1,2,3],[3,1,3,3],[4,1,4,3],[7,0,8,0]]}
["Accidental Dermal Exposure Assessment Using Zero-Order Absorption, Worker, Surface Area, Hands, for 60 minute(s)"]
["Short Title","Contaminated Gloves, 1 Hour",null,null,"DrmZr"]
["Receptor","Worker"]
["Duration","Acute"]
["Surface Contaminated","Surface Area, Hands"]
["Parameter/Assumption","Code / Range","Equation/   Value","Units","Reference/Designation"]
["Surface Area","SA",{"$f":"A02a!$C$40","v":840},"cm2","U.S. EPA/ORD 1992"]
["Duration of Exposure","T_min",60,"minutes","Scenario parameter"]
[null,"T_hr",{"$f":"C8/60","v":1},"hours","Eq"]
["Body weight","BW",{"$f":"A02a!$C$39","v":70},"kg","ICRP 1975"]
["Concentration in solution (mg/mL)","Conc"]
[null,"Central ",{"$f":"'A01'!FldConc_C","v":6},"mg/mL","Worksheet A01"]
[null,"Lower ",{"$f":"'A01'!FldConc_L","v":1.2},null,"Worksheet A01"]
[null,"Upper ",{"$f":"'A01'!FldConc_U","v":24},null,"Worksheet A01"]
["Toxic Equivalency Factor for formulation:  (See risk assessment if this has a value other than 1.)","TEF"]
[null,"Central ",{"$f":"'A01'!C$37","v":1},"Unitless","Worksheet A01"]
[null,"Lower ",{"$f":"'A01'!C$38","v":1},null,"Worksheet A01"]
[null,"Upper ",{"$f":"'A01'!C$39","v":1},null,"Worksheet A01"]
["Dermal permeability","Kp"]
[null,"Central ",{"$f":"'B01'!$C$14","v":5.5999999999999999E-5},"cm/hour","Section 3.2.2.2"]
[null,"Lower ",{"$f":"'B01'!$C$15","v":2.8E-5},null,"Section 3.2.2.2"]
[null,"Upper ",{"$f":"'B01'!$C$16","v":1.1E-4},null,"Section 3.2.2.2"]
["Absorbed Dose","Dose","Kp × Conc × T_hr × SA x TEF ÷ BW"]
[null,"Central ",{"$f":"C20*C12*C$9*C$7*C16/C$10","v":4.032E-3},"mg/kg","Eq"]
[null,"Lower ",{"$f":"C21*C13*C$9*C$7*C17/C$10","v":4.0319999999999993E-4},"mg/kg","Eq"]
[null,"Upper ",{"$f":"C22*C14*C$9*C$7*C18/C$10","v":3.168E-2},"mg/kg","Eq"]

{"sheet":"C03a","index":21,"n_rows":39,"n_cols":5,"rows_kept":39,"cut":false,"hidden":false,"merged":[[35,0,38,0],[15,0,18,0],[19,0,22,0],[23,0,26,0],[27,0,30,0],[28,3,30,3],[31,0,34,0],[0,0,0,4],[1,1,1,3],[2,1,2,3],[3,1,3,3],[4,1,4,3],[11,0,14,0]]}
["Accidental Dermal Exposure Assessment Using First-Order Absorption, Worker, Surface Area, Hands, for 60 minute(s)"]
["Short Title","Spill on hands, 1 hour",null,null,"DrmFOA"]
["Receptor","Worker"]
["Duration","Acute"]
["Surface Contaminated","Surface Area, Hands"]
["Parameter/Assumption","Code / Range","Equation/   Value","Units","Reference/Designation"]
["Surface Area","SA",{"$f":"A02a!$C$40","v":840},"cm2","U.S. EPA/ORD 1992"]
["Duration of Exposure",null,60,"minutes","Scenario parameter"]
[null,"T",{"$f":"C8/60","v":1},"hours","Eq"]
["Body weight","BW",{"$f":"A02a!$C$39","v":70},"kg","ICRP 1975"]
["Liquid adhering to skin","L",{"$f":"A02d!$C$11","v":8.0000000000000002E-3},"mL/cm2","Mason and Johnson 1987"]
["Concentration in solution","Conc"]
[null,"Central ",{"$f":"'A01'!FldConc_C","v":6},"mg/mL","Worksheet A01"]
[null,"Lower ",{"$f":"'A01'!FldConc_L","v":1.2},null,"Worksheet A01"]
[null,"Upper ",{"$f":"'A01'!FldConc_U","v":24},null,"Worksheet A01"]
["First-order dermal absorption rates ","ka"]
[null,"Central",{"$f":"'B01'!$C$11","v":1.1000000000000001E-3},"hour-1","Section 3.2.2.2"]
[null,"Lower",{"$f":"'B01'!$C$12","v":4.4000000000000002E-4},null,"Section 3.2.2.2"]
[null,"Upper",{"$f":"'B01'!$C$13","v":2.8999999999999998E-3},null,"Section 3.2.2.2"]
["Toxic Equivalency Factor for formulation:  (See risk assessment if this has a value other than 1.)","TEF"]
[null,"Central ",{"$f":"'A01'!C$37","v":1},"Unitless","Worksheet A01"]
[null,"Lower ",{"$f":"'A01'!C$38","v":1},null,"Worksheet A01"]
[null,"Upper ",{"$f":"'A01'!C$39","v":1},null,"Worksheet A01"]
["Amount Deposited on Skin","Amnt","L × SA × Conc x TEF"]
[null,"Central",{"$f":"$C$11*$C$7*C13*C21","v":40.32},"mg","Eq"]
[null,"Lower",{"$f":"$C$11*$C$7*C14*C22","v":8.0640000000000001},null,"Eq"]
[null,"Upper",{"$f":"$C$11*$C$7*C15*C23","v":161.28},null,"Eq"]
["Skin Loading","Loading"]
[null,"Central",{"$f":"C25/C$7","v":4.8000000000000001E-2},"mg/cm2","Eq"]
[null,"Lower",{"$f":"C26/C$7","v":9.6000000000000009E-3},null,"Eq"]
[null,"Upper",{"$f":"C27/C$7","v":0.192},null,"Eq"]
["Proportion absorbed over period T","Prop","1-exp(-ka T)"]
[null,"Central",{"$f":"1-EXP(-C17 *$C$9)","v":1.0993952217723812E-3},"hour-1","Eq"]
[null,"Lower",{"$f":"1-EXP(-C18 *$C$9)","v":4.3990321419573597E-4},null,"Eq"]
[null,"Upper",{"$f":"1-EXP(-C19 *$C$9)","v":2.8957990618880824E-3},null,"Eq"]
["Absorbed Dose","Dose","Amnt × Prop ÷ BW"]
[null,"Central",{"$f":"C25*C33/$C$10","v":6.3325164774089167E-4},"mg/kg bw","Eq"]
[null,"Lower",{"$f":"C26*C34/$C$10","v":5.0676850275348787E-5},null,"Eq"]
[null,"Upper",{"$f":"C27*C35/$C$10","v":6.6719210385901423E-3},null,"Eq"]

{"sheet":"C03b","index":22,"n_rows":39,"n_cols":5,"rows_kept":39,"cut":false,"hidden":false,"merged":[[35,0,38,0],[15,0,18,0],[19,0,22,0],[23,0,26,0],[27,0,30,0],[28,3,30,3],[31,0,34,0],[0,0,0,4],[1,1,1,3],[2,1,2,3],[3,1,3,3],[4,1,4,3],[11,0,14,0]]}
["Accidental Dermal Exposure Assessment Using First-Order Absorption, Worker, Surface Area, Lower legs, for 60 minute(s)"]
["Short Title","Spill on lower legs, 1 hour",null,null,"DrmFOA"]
["Receptor","Worker"]
["Duration","Acute"]
["Surface Contaminated","Surface Area, Lower legs"]
["Parameter/Assumption","Code / Range","Equation/   Value","Units","Reference/Designation"]
["Surface Area","SA",{"$f":"A02a!$C$41","v":2070},"cm2","U.S. EPA/ORD 1992"]
["Duration of Exposure",null,60,"minutes","Scenario parameter"]
[null,"T",{"$f":"C8/60","v":1},"hours","Eq"]
["Body weight","BW",{"$f":"A02a!$C$39","v":70},"kg","ICRP 1975"]
["Liquid adhering to skin","L",{"$f":"A02d!$C$11","v":8.0000000000000002E-3},"mL/cm2","Mason and Johnson 1987"]
["Concentration in solution","Conc"]
[null,"Central ",{"$f":"'A01'!FldConc_C","v":6},"mg/mL","Worksheet A01"]
[null,"Lower ",{"$f":"'A01'!FldConc_L","v":1.2},null,"Worksheet A01"]
[null,"Upper ",{"$f":"'A01'!FldConc_U","v":24},null,"Worksheet A01"]
["First-order dermal absorption rates ","ka"]
[null,"Central",{"$f":"'B01'!$C$11","v":1.1000000000000001E-3},"hour-1","Section 3.2.2.2"]
[null,"Lower",{"$f":"'B01'!$C$12","v":4.4000000000000002E-4},null,"Section 3.2.2.2"]
[null,"Upper",{"$f":"'B01'!$C$13","v":2.8999999999999998E-3},null,"Section 3.2.2.2"]
["Toxic Equivalency Factor for formulation:  (See risk assessment if this has a value other than 1.)","TEF"]
[null,"Central ",{"$f":"'A01'!C$37","v":1},"Unitless","Worksheet A01"]
[null,"Lower ",{"$f":"'A01'!C$38","v":1},null,"Worksheet A01"]
[null,"Upper ",{"$f":"'A01'!C$39","v":1},null,"Worksheet A01"]
["Amount Deposited on Skin","Amnt","L × SA × Conc x TEF"]
[null,"Central",{"$f":"$C$11*$C$7*C13*C21","v":99.359999999999985},"mg","Eq"]
[null,"Lower",{"$f":"$C$11*$C$7*C14*C22","v":19.871999999999996},null,"Eq"]
[null,"Upper",{"$f":"$C$11*$C$7*C15*C23","v":397.43999999999994},null,"Eq"]
["Skin Loading","Loading"]
[null,"Central",{"$f":"C25/C$7","v":4.7999999999999994E-2},"mg/cm2","Eq"]
[null,"Lower",{"$f":"C26/C$7","v":9.5999999999999974E-3},null,"Eq"]
[null,"Upper",{"$f":"C27/C$7","v":0.19199999999999998},null,"Eq"]
["Proportion absorbed over period T","Prop","1-exp(-ka T)"]
[null,"Central",{"$f":"1-EXP(-C17 *$C$9)","v":1.0993952217723812E-3},"hour-1","Eq"]
[null,"Lower",{"$f":"1-EXP(-C18 *$C$9)","v":4.3990321419573597E-4},null,"Eq"]
[null,"Upper",{"$f":"1-EXP(-C19 *$C$9)","v":2.8957990618880824E-3},null,"Eq"]
["Absorbed Dose","Dose","Amnt × Prop ÷ BW"]
[null,"Central",{"$f":"C25*C33/$C$10","v":1.5605129890757683E-3},"mg/kg bw","Eq"]
[null,"Lower",{"$f":"C26*C34/$C$10","v":1.2488223817853805E-4},null,"Eq"]
[null,"Upper",{"$f":"C27*C35/$C$10","v":1.644151970223999E-2},null,"Eq"]

{"sheet":"D05","index":23,"n_rows":19,"n_cols":5,"rows_kept":19,"cut":false,"hidden":false,"merged":[[15,0,18,0],[0,0,0,4],[1,1,1,3],[2,1,2,3],[5,0,8,0],[10,0,13,0]]}
["Consumption of contaminated water by Child, Accidental Spill "]
["Short Title","Accidental Spill",null,null,"WatAmntV6"]
["Receptor","Child"]
["Duration","Acute",null,null,"Scenario parameter"]
["Parameter/Assumption","Code / Range","Equation/   Value","Units","Reference/Designation"]
["Concentration in water","ConcWat"]
[null,"Central ",{"$f":"B04b!Acute_C","v":2.2709999999999999},"mg/L","='B04b'!Acute_C"]
[null,"Lower ",{"$f":"B04b!Acute_L","v":9.0840000000000004E-2},null,"='B04b'!Acute_L"]
[null,"Upper ",{"$f":"B04b!Acute_U","v":18.167999999999999},null,"='B04b'!Acute_U"]
["Receptor"]
["Amount of water consumed in one day","Amnt"]
[null,"Central ",{"$f":"'A03'!$E$36","v":1},"liters/day","U.S. EPA/ORD 1996"]
[null,"Lower ",{"$f":"'A03'!$E$37","v":0.61},null,"U.S. EPA/ORD 1996"]
[null,"Upper ",{"$f":"'A03'!$E$38","v":1.5},null,"U.S. EPA/ORD 1996"]
["Body weight","BW",{"$f":"A02a!$C$28","v":13.3},"kg","U.S. EPA/ORD 1996"]
["Dose","Dose","ConcWat  × Amnt ÷ BW"]
[null,"Central ",{"$f":"C7*C12/C$15","v":0.1707518796992481},"mg/kg","Eq"]
[null,"Lower ",{"$f":"C8*C13/C$15","v":4.166345864661654E-3},"mg/kg","Eq"]
[null,"Upper ",{"$f":"C9*C14/C$15","v":2.0490225563909772},"mg/kg","Eq"]

{"sheet":"D06","index":24,"n_rows":19,"n_cols":5,"rows_kept":19,"cut":false,"hidden":false,"merged":[[15,0,18,0],[0,0,0,4],[1,1,1,3],[2,1,2,3],[5,0,8,0],[10,0,13,0]]}
["Consumption of contaminated water by Child, Peak Conentrations "]
["Short Title","Peak Conentrations",null,null,"WatAmntV6"]
["Receptor","Child"]
["Duration","Acute",null,null,"Scenario parameter"]
["Parameter/Assumption","Code / Range","Equation/   Value","Units","Reference/Designation"]
["Concentration in water","ConcWat"]
[null,"Central ",{"$f":"B04a!Acute_C","v":0.12256412405600259},"mg/L","='B04a'!Acute_C"]
[null,"Lower ",{"$f":"B04a!Acute_L","v":3.6769237216800775E-2},null,"='B04a'!Acute_L"]
[null,"Upper ",{"$f":"B04a!Acute_U","v":0.36769237216800776},null,"='B04a'!Acute_U"]
["Receptor"]
["Amount of water consumed in one day","Amnt"]
[null,"Central ",{"$f":"'A03'!$E$36","v":1},"liters/day","U.S. EPA/ORD 1996"]
[null,"Lower ",{"$f":"'A03'!$E$37","v":0.61},null,"U.S. EPA/ORD 1996"]
[null,"Upper ",{"$f":"'A03'!$E$38","v":1.5},null,"U.S. EPA/ORD 1996"]
["Body weight","BW",{"$f":"A02a!$C$28","v":13.3},"kg","U.S. EPA/ORD 1996"]
["Dose","Dose","ConcWat  × Amnt ÷ BW"]
[null,"Central ",{"$f":"C7*C12/C$15","v":9.2153476733836531E-3},"mg/kg","Eq"]
[null,"Lower ",{"$f":"C8*C13/C$15","v":1.6864086242292084E-3},"mg/kg","Eq"]
[null,"Upper ",{"$f":"C9*C14/C$15","v":4.1469064530226432E-2},"mg/kg","Eq"]

{"sheet":"D07","index":25,"n_rows":19,"n_cols":5,"rows_kept":19,"cut":false,"hidden":false,"merged":[[15,0,18,0],[0,0,0,4],[1,1,1,3],[2,1,2,3],[5,0,8,0],[10,0,13,0]]}
["Consumption of contaminated water by Adult Male, Longer-term Conentrations "]
["Short Title","Longer-term Conentrations",null,null,"WatAmntV6"]
["Receptor","Adult Male"]
["Duration","Chronic",null,null,"Scenario parameter"]
["Parameter/Assumption","Code / Range","Equation/   Value","Units","Reference/Designation"]
["Concentration in water","ConcWat"]
[null,"Central ",{"$f":"B04a!Chronic_C","v":7.8795213389830948E-2},"mg/L","='B04a'!Chronic_C"]
[null,"Lower ",{"$f":"B04a!Chronic_L","v":1.3520018608079512E-2},null,"='B04a'!Chronic_L"]
[null,"Upper ",{"$f":"B04a!Chronic_U","v":0.3107409376763034},null,"='B04a'!Chronic_U"]
["Receptor"]
["Amount of water consumed in one day","Amnt"]
[null,"Central ",{"$f":"'A03'!$E$31","v":2},"liters/day","U.S. EPA/ORD 1996"]
[null,"Lower ",{"$f":"'A03'!$E$32","v":1.4},null,"U.S. EPA/ORD 1996"]
[null,"Upper ",{"$f":"'A03'!$E$33","v":2.4},null,"U.S. EPA/ORD 1996"]
["Body weight","BW",{"$f":"A02a!$C$8","v":70},"kg","ICRP 1975"]
["Dose","Dose","ConcWat  × Amnt ÷ BW"]
[null,"Central ",{"$f":"C7*C12/C$15","v":2.2512918111380273E-3},"mg/kg","Eq"]
[null,"Lower ",{"$f":"C8*C13/C$15","v":2.7040037216159024E-4},"mg/kg","Eq"]
[null,"Upper ",{"$f":"C9*C14/C$15","v":1.0653975006044689E-2},"mg/kg","Eq"]

{"sheet":"D08a","index":26,"n_rows":34,"n_cols":5,"rows_kept":34,"cut":false,"hidden":false,"merged":[[15,0,18,0],[20,0,23,0],[24,0,27,0],[29,0,32,0],[0,0,0,4],[1,1,1,3],[2,1,2,3],[3,1,3,3],[6,0,9,0],[12,0,14,0]]}
["Consumption of Contaminated Fish (Accidental Spill), Adult Male, acute exposure"]
["Short Title","Fish consumption",null,null,"FishAmntV6"]
["Receptor","Adult Male"]
["Duration","acute"]
["Parameter/Assumption","Code / Range","Equation/   Value","Units","Reference/Designation"]
["Water"]
["Concentration in water","ConcWat","ApR × WCR"]
[null,"Central ",{"$f":"B04b!Acute_C","v":2.2709999999999999},"mg/L","='B04b'!Acute_C"]
[null,"Lower ",{"$f":"B04b!Acute_L","v":9.0840000000000004E-2},null,"='B04b'!Acute_L"]
[null,"Upper ",{"$f":"B04b!Acute_U","v":18.167999999999999},null,"='B04b'!Acute_U"]
["Fish"]
["Bioconcentration factor","BCF"]
[null,"Central ",{"$f":"'B01'!$C$4","v":0.5},"L/kg","Section 3.2.3.5."]
[null,"Lower ",{"$f":"'B01'!$C$4","v":0.5},null,"Section 3.2.3.5."]
[null,"Upper ",{"$f":"'B01'!$C$4","v":0.5},null,"Section 3.2.3.5."]
["Concentration in fish","ConcFish","ConcWat × BCF"]
[null,"Central ",{"$f":"C8*C13","v":1.1355},"mg/kg","Eq"]
[null,"Lower ",{"$f":"C9*C14","v":4.5420000000000002E-2},null,"Eq"]
[null,"Upper ",{"$f":"C10*C15","v":9.0839999999999996},null,"Eq"]
["Receptor"]
["Amount of fish consumed","Amnt"]
[null,"Central ",{"$f":"'A03'!$E$20","v":0.158},"kg/day","Ruffle et al. 1994"]
[null,"Lower ",{"$f":"'A03'!$E$20","v":0.158},null,"Ruffle et al. 1994"]
[null,"Upper ",{"$f":"'A03'!$E$20","v":0.158},null,"Ruffle et al. 1994"]
["Toxic Equivalency Factor for formulation:  (See risk assessment if this has a value other than 1.)","TEF"]
[null,"Central ",{"$f":"'A01'!C$37","v":1},"Unitless","Worksheet A01"]
[null,"Lower ",{"$f":"'A01'!C$38","v":1},null,"Worksheet A01"]
[null,"Upper ",{"$f":"'A01'!C$39","v":1},null,"Worksheet A01"]
["Body weight","BW",{"$f":"A02a!$C$8","v":70},"kg","ICRP 1975"]
["Dose","Dose","ConcFish× Amnt x TEF ÷ BW"]
[null,"Central ",{"$f":"C17*C22*C26/C$29","v":2.5629857142857142E-3},"mg/kg","Eq"]
[null,"Lower ",{"$f":"C18*C23*C27/C$29","v":1.0251942857142858E-4},"mg/kg","Eq"]
[null,"Upper ",{"$f":"C19*C24*C28/C$29","v":2.0503885714285713E-2},"mg/kg","Eq"]
[null,null,null,null,"FishAmntV6"]

{"sheet":"D08b","index":27,"n_rows":34,"n_cols":5,"rows_kept":34,"cut":false,"hidden":false,"merged":[[15,0,18,0],[20,0,23,0],[24,0,27,0],[29,0,32,0],[0,0,0,4],[1,1,1,3],[2,1,2,3],[3,1,3,3],[6,0,9,0],[12,0,14,0]]}
["Consumption of Contaminated Fish (Accidental Spill), Subsistence Populations, acute exposure"]
["Short Title","Fish consumption",null,null,"FishAmntV6"]
["Receptor","Subsistence Populations"]
["Duration","acute"]
["Parameter/Assumption","Code / Range","Equation/   Value","Units","Reference/Designation"]
["Water"]
["Concentration in water","ConcWat","ApR × WCR"]
[null,"Central ",{"$f":"B04b!Acute_C","v":2.2709999999999999},"mg/L","='B04b'!Acute_C"]
[null,"Lower ",{"$f":"B04b!Acute_L","v":9.0840000000000004E-2},null,"='B04b'!Acute_L"]
[null,"Upper ",{"$f":"B04b!Acute_U","v":18.167999999999999},null,"='B04b'!Acute_U"]
["Fish"]
["Bioconcentration factor","BCF"]
[null,"Central ",{"$f":"'B01'!$C$4","v":0.5},"L/kg","Section 3.2.3.5."]
[null,"Lower ",{"$f":"'B01'!$C$4","v":0.5},null,"Section 3.2.3.5."]
[null,"Upper ",{"$f":"'B01'!$C$4","v":0.5},null,"Section 3.2.3.5."]
["Concentration in fish","ConcFish","ConcWat × BCF"]
[null,"Central ",{"$f":"C8*C13","v":1.1355},"mg/kg","Eq"]
[null,"Lower ",{"$f":"C9*C14","v":4.5420000000000002E-2},null,"Eq"]
[null,"Upper ",{"$f":"C10*C15","v":9.0839999999999996},null,"Eq"]
["Receptor"]
["Amount of fish consumed","Amnt"]
[null,"Central ",{"$f":"'A03'!$E$35","v":0.77},"kg/day","U.S. EPA/ORD 1996"]
[null,"Lower ",{"$f":"'A03'!$E$35","v":0.77},null,"U.S. EPA/ORD 1996"]
[null,"Upper ",{"$f":"'A03'!$E$35","v":0.77},null,"U.S. EPA/ORD 1996"]
["Toxic Equivalency Factor for formulation:  (See risk assessment if this has a value other than 1.)","TEF"]
[null,"Central ",{"$f":"'A01'!C$37","v":1},"Unitless","Worksheet A01"]
[null,"Lower ",{"$f":"'A01'!C$38","v":1},null,"Worksheet A01"]
[null,"Upper ",{"$f":"'A01'!C$39","v":1},null,"Worksheet A01"]
["Body weight","BW",{"$f":"A02a!$C$9","v":70},"kg","ICRP 1975"]
["Dose","Dose","ConcFish× Amnt x TEF ÷ BW"]
[null,"Central ",{"$f":"C17*C22*C26/C$29","v":1.24905E-2},"mg/kg","Eq"]
[null,"Lower ",{"$f":"C18*C23*C27/C$29","v":4.9961999999999999E-4},"mg/kg","Eq"]
[null,"Upper ",{"$f":"C19*C24*C28/C$29","v":9.9923999999999999E-2},"mg/kg","Eq"]
[null,null,null,null,"FishAmntV6"]

{"sheet":"D09a","index":28,"n_rows":34,"n_cols":5,"rows_kept":34,"cut":false,"hidden":false,"merged":[[15,0,18,0],[20,0,23,0],[24,0,27,0],[29,0,32,0],[0,0,0,4],[1,1,1,3],[2,1,2,3],[3,1,3,3],[6,0,9,0],[12,0,14,0]]}
["Consumption of Contaminated Fish (Longer-term), Adult Male, chronic exposure"]
["Short Title","Fish consumption",null,null,"FishAmntV6"]
["Receptor","Adult Male"]
["Duration","chronic"]
["Parameter/Assumption","Code / Range","Equation/   Value","Units","Reference/Designation"]
["Water"]
["Concentration in water","ConcWat","ApR × WCR"]
[null,"Central ",{"$f":"B04a!Chronic_C","v":7.8795213389830948E-2},"mg/L","='B04a'!Chronic_C"]
[null,"Lower ",{"$f":"B04a!Chronic_L","v":1.3520018608079512E-2},null,"='B04a'!Chronic_L"]
[null,"Upper ",{"$f":"B04a!Chronic_U","v":0.3107409376763034},null,"='B04a'!Chronic_U"]
["Fish"]
["Bioconcentration factor","BCF"]
[null,"Central ",{"$f":"'B01'!$C$5","v":0.5},"L/kg","Section 3.2.3.5."]
[null,"Lower ",{"$f":"'B01'!$C$5","v":0.5},null,"Section 3.2.3.5."]
[null,"Upper ",{"$f":"'B01'!$C$5","v":0.5},null,"Section 3.2.3.5."]
["Concentration in fish","ConcFish","ConcWat × BCF"]
[null,"Central ",{"$f":"C8*C13","v":3.9397606694915474E-2},"mg/kg","Eq"]
[null,"Lower ",{"$f":"C9*C14","v":6.760009304039756E-3},null,"Eq"]
[null,"Upper ",{"$f":"C10*C15","v":0.1553704688381517},null,"Eq"]
["Receptor"]
["Amount of fish consumed","Amnt"]
[null,"Central ",{"$f":"'A03'!$E$19","v":0.01},"kg/day","U.S. EPA/ORD 1996"]
[null,"Lower ",{"$f":"'A03'!$E$19","v":0.01},null,"U.S. EPA/ORD 1996"]
[null,"Upper ",{"$f":"'A03'!$E$19","v":0.01},null,"U.S. EPA/ORD 1996"]
["Toxic Equivalency Factor for formulation:  (See risk assessment if this has a value other than 1.)","TEF"]
[null,"Central ",{"$f":"'A01'!C$37","v":1},"Unitless","Worksheet A01"]
[null,"Lower ",{"$f":"'A01'!C$38","v":1},null,"Worksheet A01"]
[null,"Upper ",{"$f":"'A01'!C$39","v":1},null,"Worksheet A01"]
["Body weight","BW",{"$f":"A02a!$C$8","v":70},"kg","ICRP 1975"]
["Dose","Dose","ConcFish× Amnt x TEF ÷ BW"]
[null,"Central ",{"$f":"C17*C22*C26/C$29","v":5.6282295278450676E-6},"mg/kg","Eq"]
[null,"Lower ",{"$f":"C18*C23*C27/C$29","v":9.657156148628223E-7},"mg/kg","Eq"]
[null,"Upper ",{"$f":"C19*C24*C28/C$29","v":2.2195781262593102E-5},"mg/kg","Eq"]
[null,null,null,null,"FishAmntV6"]

{"sheet":"D09b","index":29,"n_rows":34,"n_cols":5,"rows_kept":34,"cut":false,"hidden":false,"merged":[[15,0,18,0],[20,0,23,0],[24,0,27,0],[29,0,32,0],[0,0,0,4],[1,1,1,3],[2,1,2,3],[3,1,3,3],[6,0,9,0],[12,0,14,0]]}
["Consumption of Contaminated Fish (Longer-term), Subsistence Populations, chronic exposure"]
["Short Title","Fish consumption",null,null,"FishAmntV6"]
["Receptor","Subsistence Populations"]
["Duration","chronic"]
["Parameter/Assumption","Code / Range","Equation/   Value","Units","Reference/Designation"]
["Water"]
["Concentration in water","ConcWat","ApR × WCR"]
[null,"Central ",{"$f":"B04a!Chronic_C","v":7.8795213389830948E-2},"mg/L","='B04a'!Chronic_C"]
[null,"Lower ",{"$f":"B04a!Chronic_L","v":1.3520018608079512E-2},null,"='B04a'!Chronic_L"]
[null,"Upper ",{"$f":"B04a!Chronic_U","v":0.3107409376763034},null,"='B04a'!Chronic_U"]
["Fish"]
["Bioconcentration factor","BCF"]
[null,"Central ",{"$f":"'B01'!$C$5","v":0.5},"L/kg","Section 3.2.3.5."]
[null,"Lower ",{"$f":"'B01'!$C$5","v":0.5},null,"Section 3.2.3.5."]
[null,"Upper ",{"$f":"'B01'!$C$5","v":0.5},null,"Section 3.2.3.5."]
["Concentration in fish","ConcFish","ConcWat × BCF"]
[null,"Central ",{"$f":"C8*C13","v":3.9397606694915474E-2},"mg/kg","Eq"]
[null,"Lower ",{"$f":"C9*C14","v":6.760009304039756E-3},null,"Eq"]
[null,"Upper ",{"$f":"C10*C15","v":0.1553704688381517},null,"Eq"]
["Receptor"]
["Amount of fish consumed","Amnt"]
[null,"Central ",{"$f":"'A03'!$E$34","v":8.1000000000000003E-2},"kg/day","U.S. EPA/ORD 1996"]
[null,"Lower ",{"$f":"'A03'!$E$34","v":8.1000000000000003E-2},null,"U.S. EPA/ORD 1996"]
[null,"Upper ",{"$f":"'A03'!$E$34","v":8.1000000000000003E-2},null,"U.S. EPA/ORD 1996"]
["Toxic Equivalency Factor for formulation:  (See risk assessment if this has a value other than 1.)","TEF"]
[null,"Central ",{"$f":"'A01'!C$37","v":1},"Unitless","Worksheet A01"]
[null,"Lower ",{"$f":"'A01'!C$38","v":1},null,"Worksheet A01"]
[null,"Upper ",{"$f":"'A01'!C$39","v":1},null,"Worksheet A01"]
["Body weight","BW",{"$f":"A02a!$C$9","v":70},"kg","ICRP 1975"]
["Dose","Dose","ConcFish× Amnt x TEF ÷ BW"]
[null,"Central ",{"$f":"C17*C22*C26/C$29","v":4.5588659175545045E-5},"mg/kg","Eq"]
[null,"Lower ",{"$f":"C18*C23*C27/C$29","v":7.8222964803888614E-6},"mg/kg","Eq"]
[null,"Upper ",{"$f":"C19*C24*C28/C$29","v":1.7978582822700411E-4},"mg/kg","Eq"]
[null,null,null,null,"FishAmntV6"]

{"sheet":"D09c","index":30,"n_rows":34,"n_cols":5,"rows_kept":34,"cut":false,"hidden":false,"merged":[[15,0,18,0],[20,0,23,0],[24,0,27,0],[29,0,32,0],[0,0,0,4],[1,1,1,3],[2,1,2,3],[3,1,3,3],[6,0,9,0],[12,0,14,0]]}
["Consumption of Contaminated Fish (Peak Exposure), Adult Male, acute exposure"]
["Short Title","Fish consumption",null,null,"FishAmntV6"]
["Receptor","Adult Male"]
["Duration","acute"]
["Parameter/Assumption","Code / Range","Equation/   Value","Units","Reference/Designation"]
["Water"]
["Concentration in water","ConcWat","ApR × WCR"]
[null,"Central ",{"$f":"B04a!Acute_C","v":0.12256412405600259},"mg/L","='B04a'!Acute_C"]
[null,"Lower ",{"$f":"B04a!Acute_L","v":3.6769237216800775E-2},null,"='B04a'!Acute_L"]
[null,"Upper ",{"$f":"B04a!Acute_U","v":0.36769237216800776},null,"='B04a'!Acute_U"]
["Fish"]
["Bioconcentration factor","BCF"]
[null,"Central ",{"$f":"'B01'!$C$4","v":0.5},"L/kg","Section 3.2.3.5."]
[null,"Lower ",{"$f":"'B01'!$C$4","v":0.5},null,"Section 3.2.3.5."]
[null,"Upper ",{"$f":"'B01'!$C$4","v":0.5},null,"Section 3.2.3.5."]
["Concentration in fish","ConcFish","ConcWat × BCF"]
[null,"Central ",{"$f":"C8*C13","v":6.1282062028001294E-2},"mg/kg","Eq"]
[null,"Lower ",{"$f":"C9*C14","v":1.8384618608400388E-2},null,"Eq"]
[null,"Upper ",{"$f":"C10*C15","v":0.18384618608400388},null,"Eq"]
["Receptor"]
["Amount of fish consumed","Amnt"]
[null,"Central ",{"$f":"'A03'!$E$20","v":0.158},"kg/day","Ruffle et al. 1994"]
[null,"Lower ",{"$f":"'A03'!$E$20","v":0.158},null,"Ruffle et al. 1994"]
[null,"Upper ",{"$f":"'A03'!$E$20","v":0.158},null,"Ruffle et al. 1994"]
["Toxic Equivalency Factor for formulation:  (See risk assessment if this has a value other than 1.)","TEF"]
[null,"Central ",{"$f":"'A01'!C$37","v":1},"Unitless","Worksheet A01"]
[null,"Lower ",{"$f":"'A01'!C$38","v":1},null,"Worksheet A01"]
[null,"Upper ",{"$f":"'A01'!C$39","v":1},null,"Worksheet A01"]
["Body weight","BW",{"$f":"A02a!$C$8","v":70},"kg","ICRP 1975"]
["Dose","Dose","ConcFish× Amnt x TEF ÷ BW"]
[null,"Central ",{"$f":"C17*C22*C26/C$29","v":1.3832236857748865E-4},"mg/kg","Eq"]
[null,"Lower ",{"$f":"C18*C23*C27/C$29","v":4.1496710573246589E-5},"mg/kg","Eq"]
[null,"Upper ",{"$f":"C19*C24*C28/C$29","v":4.1496710573246589E-4},"mg/kg","Eq"]
[null,null,null,null,"FishAmntV6"]

{"sheet":"D09d","index":31,"n_rows":34,"n_cols":5,"rows_kept":34,"cut":false,"hidden":false,"merged":[[15,0,18,0],[20,0,23,0],[24,0,27,0],[29,0,32,0],[0,0,0,4],[1,1,1,3],[2,1,2,3],[3,1,3,3],[6,0,9,0],[12,0,14,0]]}
["Consumption of Contaminated Fish (Peak Exposure), Subsistence Populations, acute exposure"]
["Short Title","Fish consumption",null,null,"FishAmntV6"]
["Receptor","Subsistence Populations"]
["Duration","acute"]
["Parameter/Assumption","Code / Range","Equation/   Value","Units","Reference/Designation"]
["Water"]
["Concentration in water","ConcWat","ApR × WCR"]
[null,"Central ",{"$f":"B04a!Acute_C","v":0.12256412405600259},"mg/L","='B04a'!Acute_C"]
[null,"Lower ",{"$f":"B04a!Acute_L","v":3.6769237216800775E-2},null,"='B04a'!Acute_L"]
[null,"Upper ",{"$f":"B04a!Acute_U","v":0.36769237216800776},null,"='B04a'!Acute_U"]
["Fish"]
["Bioconcentration factor","BCF"]
[null,"Central ",{"$f":"'B01'!$C$4","v":0.5},"L/kg","Section 3.2.3.5."]
[null,"Lower ",{"$f":"'B01'!$C$4","v":0.5},null,"Section 3.2.3.5."]
[null,"Upper ",{"$f":"'B01'!$C$4","v":0.5},null,"Section 3.2.3.5."]
["Concentration in fish","ConcFish","ConcWat × BCF"]
[null,"Central ",{"$f":"C8*C13","v":6.1282062028001294E-2},"mg/kg","Eq"]
[null,"Lower ",{"$f":"C9*C14","v":1.8384618608400388E-2},null,"Eq"]
[null,"Upper ",{"$f":"C10*C15","v":0.18384618608400388},null,"Eq"]
["Receptor"]
["Amount of fish consumed","Amnt"]
[null,"Central ",{"$f":"'A03'!$E$35","v":0.77},"kg/day","U.S. EPA/ORD 1996"]
[null,"Lower ",{"$f":"'A03'!$E$35","v":0.77},null,"U.S. EPA/ORD 1996"]
[null,"Upper ",{"$f":"'A03'!$E$35","v":0.77},null,"U.S. EPA/ORD 1996"]
["Toxic Equivalency Factor for formulation:  (See risk assessment if this has a value other than 1.)","TEF"]
[null,"Central ",{"$f":"'A01'!C$37","v":1},"Unitless","Worksheet A01"]
[null,"Lower ",{"$f":"'A01'!C$38","v":1},null,"Worksheet A01"]
[null,"Upper ",{"$f":"'A01'!C$39","v":1},null,"Worksheet A01"]
["Body weight","BW",{"$f":"A02a!$C$9","v":70},"kg","ICRP 1975"]
["Dose","Dose","ConcFish× Amnt x TEF ÷ BW"]
[null,"Central ",{"$f":"C17*C22*C26/C$29","v":6.7410268230801433E-4},"mg/kg","Eq"]
[null,"Lower ",{"$f":"C18*C23*C27/C$29","v":2.0223080469240428E-4},"mg/kg","Eq"]
[null,"Upper ",{"$f":"C19*C24*C28/C$29","v":2.0223080469240428E-3},"mg/kg","Eq"]
[null,null,null,null,"FishAmntV6"]

{"sheet":"D11","index":32,"n_rows":31,"n_cols":5,"rows_kept":31,"cut":false,"hidden":false,"merged":[[27,0,30,0],[0,0,0,4],[1,1,1,3],[2,1,2,3],[3,1,3,3],[4,1,4,3],[8,0,9,0],[11,0,14,0],[12,3,14,3],[15,0,18,0],[19,0,22,0],[23,0,26,0]]}
["Swimming Exposure Assessment Using Zero-Order Absorption, Adult Female, Surface Area, Whole body, for 60 minute(s)"]
["Short Title","Swimming",null,null,"DrmZrSwm"]
["Receptor","Adult Female"]
["Duration","Acute"]
["Surface Contaminated","Surface Area, Whole body"]
["Parameter/Assumption","Code / Range","Equation/   Value","Units","Reference/Designation"]
["Application Rate","ApRt",{"$f":"'A01'!ApRt_C","v":1},"lb/acre","Worksheet A01"]
["Surface Area","SA",{"$f":"A02a!$C$7","v":16900},"cm2","U.S. EPA/ORD 1997"]
["Duration of Exposure","T_min",{"$f":"'A01'!C$31","v":60},"minutes","Worksheet A01"]
[null,"T_hr",{"$f":"C9/60","v":1},"hours","Eq"]
["Body weight","BW",{"$f":"A02a!$C$4","v":64},"kg","U.S. EPA/ORD 1985"]
["Water contamination rate","WCR"]
[null,"Central ",{"$f":"B04a!Acute_C","v":0.12256412405600259},"mg/L per lb/acre","Worksheet B04a"]
[null,"Lower ",{"$f":"B04a!Acute_L","v":3.6769237216800775E-2},null,"Worksheet B04a"]
[null,"Upper ",{"$f":"B04a!Acute_U","v":0.36769237216800776},null,"Worksheet B04a"]
["Concentration in water in mg/mL","ConcWat","ApR × WCR / 1000"]
[null,"Central ",{"$f":"C$7*C13/1000","v":1.2256412405600259E-4},"mg/mL","Eq"]
[null,"Lower ",{"$f":"C$7*C14/1000","v":3.6769237216800775E-5},null,"Eq"]
[null,"Upper ",{"$f":"C$7*C15/1000","v":3.6769237216800776E-4},null,"Eq"]
["Toxic Equivalency Factor for formulation:  (See risk assessment if this has a value other than 1.)","TEF"]
[null,"Central ",{"$f":"'A01'!C$37","v":1},"Unitless","Worksheet A01"]
[null,"Lower ",{"$f":"'A01'!C$38","v":1},null,"Worksheet A01"]
[null,"Upper ",{"$f":"'A01'!C$39","v":1},null,"Worksheet A01"]
["Dermal permeability","Kp"]
[null,"Central ",{"$f":"'B01'!$C$14","v":5.5999999999999999E-5},"cm/hour","Section 3.2.2.2"]
[null,"Lower ",{"$f":"'B01'!$C$15","v":2.8E-5},null,"Section 3.2.2.2"]
[null,"Upper ",{"$f":"'B01'!$C$16","v":1.1E-4},null,"Section 3.2.2.2"]
["Absorbed Dose","Dose","Kp × Conc × T_hr × SA × TEF ÷ BW"]
[null,"Central ",{"$f":"C25*C17*C$10*C$8*C21/C$11","v":1.8124169844781382E-6},"mg/kg"]
[null,"Lower ",{"$f":"C26*C18*C$10*C$8*C22/C$11","v":2.7186254767172071E-7},"mg/kg"]
[null,"Upper ",{"$f":"C27*C19*C$10*C$8*C23/C$11","v":1.0680314372817601E-5},"mg/kg"]

{"sheet":"E01","index":33,"n_rows":11,"n_cols":6,"rows_kept":11,"cut":false,"hidden":false,"merged":[[0,0,0,5],[1,2,1,4],[2,0,3,0],[2,1,3,1],[2,2,2,4],[2,5,3,5]]}
["Worksheet E01: Summary of Worker Exposure Assessments"]
["Application Rate:",{"$f":"'A01'!ApRt_C","v":1}," lb a.e./acre",null,null,"E01aV5-1Wrkr"]
["Scenario","Receptor","mg/kg/day or mg/kg/event",null,null,"Detail Worksheet"]
[null,null,"Central","Lower","Upper"]
["Accidental/Incidental Exposures"]
["Contaminated Gloves, \n1 min.","Worker",{"$f":"'C02a'!Dose_C","v":6.7199999999999994E-5},{"$f":"'C02a'!Dose_L","v":6.7199999999999992E-6},{"$f":"'C02a'!Dose_U","v":5.2800000000000004E-4},"C02a"]
["Contaminated Gloves, 1 hour","Worker",{"$f":"'C02b'!Dose_C","v":4.032E-3},{"$f":"'C02b'!Dose_L","v":4.0319999999999993E-4},{"$f":"'C02b'!Dose_U","v":3.168E-2},"C02b"]
["Spill on Hands, 1 hour","Worker",{"$f":"'C03a'!Dose_C","v":6.3325164774089167E-4},{"$f":"'C03a'!Dose_L","v":5.0676850275348787E-5},{"$f":"'C03a'!Dose_U","v":6.6719210385901423E-3},"C03a"]
["Spill on lower legs, 1 hour","Worker",{"$f":"'C03b'!Dose_C","v":1.5605129890757683E-3},{"$f":"'C03b'!Dose_L","v":1.2488223817853805E-4},{"$f":"'C03b'!Dose_U","v":1.644151970223999E-2},"C03b"]
["General Exposures"]
[null,"Worker",{"$f":"'C01'!Dose_C","v":8.9999999999999993E-3},{"$f":"'C01'!Dose_L","v":4.0000000000000001E-3},{"$f":"'C01'!Dose_U","v":0.02},"C01"]

{"sheet":"E02","index":34,"n_rows":11,"n_cols":6,"rows_kept":11,"cut":false,"hidden":false,"merged":[[0,0,0,5],[1,2,1,4],[2,0,3,0],[2,1,3,1],[2,2,2,4],[2,5,3,5]]}
["Worksheet E01: Summary of Worker Hazard Quotients (Toxicity)"]
["Application Rate:",{"$f":"'A01'!ApRt_C","v":1}," lb a.e./acre",null,null,"E01aV5-1Wrkr"]
["Scenario","Receptor","Hazard Quotients",null,null,"Toxicity Value"]
[null,null,"Central","Lower","Upper"]
["Accidental/Incidental Exposures"]
["Contaminated Gloves, \n1 min.","Worker",{"$f":"'C02a'!$C$24/$F$6","v":2.6879999999999997E-5},{"$f":"'C02a'!$C$25/$F$6","v":2.6879999999999995E-6},{"$f":"'C02a'!$C$26/$F$6","v":2.1120000000000001E-4},{"$f":"'B02'!$E$4","v":2.5}]
["Contaminated Gloves, 1 hour","Worker",{"$f":"'C02b'!$C$24/$F$7","v":1.6128E-3},{"$f":"'C02b'!$C$25/$F$7","v":1.6127999999999997E-4},{"$f":"'C02b'!$C$26/$F$7","v":1.2671999999999999E-2},{"$f":"'B02'!$E$4","v":2.5}]
["Spill on Hands, 1 hour","Worker",{"$f":"'C03a'!$C$37/$F$8","v":2.5330065909635668E-4},{"$f":"'C03a'!$C$38/$F$8","v":2.0270740110139516E-5},{"$f":"'C03a'!$C$39/$F$8","v":2.6687684154360568E-3},{"$f":"'B02'!$E$4","v":2.5}]
["Spill on lower legs, 1 hour","Worker",{"$f":"'C03b'!$C$37/$F$9","v":6.2420519563030738E-4},{"$f":"'C03b'!$C$38/$F$9","v":4.9952895271415222E-5},{"$f":"'C03b'!$C$39/$F$9","v":6.5766078808959958E-3},{"$f":"'B02'!$E$4","v":2.5}]
["General Exposures"]
[null,"Worker",{"$f":"'C01'!$C$22/$F$11","v":3.5999999999999999E-3},{"$f":"'C01'!$C$23/$F$11","v":1.6000000000000001E-3},{"$f":"'C01'!$C$24/$F$11","v":8.0000000000000002E-3},{"$f":"'B02'!$E$5","v":2.5}]

{"sheet":"E03","index":35,"n_rows":24,"n_cols":9,"rows_kept":24,"cut":false,"hidden":false,"merged":[[0,0,0,5],[1,2,1,4],[2,0,3,0],[2,1,3,1],[2,2,2,4],[2,5,3,5]]}
["Worksheet E03: Summary of Exposure Assessments for the General Public"]
["Application Rate:",{"$f":"'A01'!ApRt_C","v":1}," lb a.e./acre",null,null,"E03aV6"]
["Scenario","Receptor","mg/kg/day or mg/kg/event",null,null,"Detail Worksheet"]
[null,null,"Central","Lower","Upper"]
["Accidental Acute Exposures (dose in mg/kg/event)"]
["Direct Spray of Child, whole body","Child","No Exposure Assessment",null,null,"D01a",null,null,"Spray: Child"]
["Direct Spray of Woman, feet and lower legs","Adult Female","No Exposure Assessment",null,null,"D01b",null,null,"Spray: Woman"]
["Water consumption (spill)","Child",{"$f":"'D05'!Dose_C","v":0.1707518796992481},{"$f":"'D05'!Dose_L","v":4.166345864661654E-3},{"$f":"'D05'!Dose_U","v":2.0490225563909772},"D05",null,null,"Water: Child"]
["Fish consumption (spill)","Adult Male",{"$f":"D08a!Dose_C","v":2.5629857142857142E-3},{"$f":"D08a!Dose_L","v":1.0251942857142858E-4},{"$f":"D08a!Dose_U","v":2.0503885714285713E-2},"D08a",null,null,"Fish: Man"]
["Fish consumption (spill)","Subsistence Populations",{"$f":"D08b!Dose_C","v":1.24905E-2},{"$f":"D08b!Dose_L","v":4.9961999999999999E-4},{"$f":"D08b!Dose_U","v":9.9923999999999999E-2},"D08b",null,null,"Fish: Subsist"]
["Non-Accidental Acute Exposures (dose in mg/kg/event)"]
["Vegetation Contact, shorts and T-shirt","Adult Female","No Exposure Assessment",null,null,"D02",null,null,"Contact: Female"]
["Contaminated Fruit","Adult Female","No Exposure Assessment",null,null,"D03a",null,null,"Fruit: Female"]
["Contaminated Vegetation","Adult Female","No Exposure Assessment",null,null,"D03b",null,null,"Veg: Female"]
["Swimming, one hour","Adult Female",{"$f":"'D11'!Dose_C","v":1.8124169844781382E-6},{"$f":"'D11'!Dose_L","v":2.7186254767172071E-7},{"$f":"'D11'!Dose_U","v":1.0680314372817601E-5},"D11",null,null,"Swim: Female"]
["Water consumption","Child",{"$f":"'D06'!Dose_C","v":9.2153476733836531E-3},{"$f":"'D06'!Dose_L","v":1.6864086242292084E-3},{"$f":"'D06'!Dose_U","v":4.1469064530226432E-2},"D06",null,null,"Water: Child"]
["Fish consumption","Adult Male",{"$f":"D09c!Dose_C","v":1.3832236857748865E-4},{"$f":"D09c!Dose_L","v":4.1496710573246589E-5},{"$f":"D09c!Dose_U","v":4.1496710573246589E-4},"D09c",null,null,"Fish: Male"]
["Fish consumption","Subsistence Populations",{"$f":"D09d!Dose_C","v":6.7410268230801433E-4},{"$f":"D09d!Dose_L","v":2.0223080469240428E-4},{"$f":"D09d!Dose_U","v":2.0223080469240428E-3},"D09d",null,null,"Fish: Subsist"]
["Chronic/Longer Term Exposures (dose in mg/kg/day)"]
["Contaminated Fruit","Adult Female","No Exposure Assessment",null,null,"D04a",null,null,"Fruit: Female"]
["Contaminated Vegetation","Adult Female","No Exposure Assessment",null,null,"D04b",null,null,"Veg: Female"]
["Water consumption","Adult Male",{"$f":"'D07'!Dose_C","v":2.2512918111380273E-3},{"$f":"'D07'!Dose_L","v":2.7040037216159024E-4},{"$f":"'D07'!Dose_U","v":1.0653975006044689E-2},"D07",null,null,"Water: Male"]
["Fish consumption","Adult Male",{"$f":"D09a!Dose_C","v":5.6282295278450676E-6},{"$f":"D09a!Dose_L","v":9.657156148628223E-7},{"$f":"D09a!Dose_U","v":2.2195781262593102E-5},"D09a",null,null,"Fish: Male"]
["Fish consumption","Subsistence Populations",{"$f":"D09b!Dose_C","v":4.5588659175545045E-5},{"$f":"D09b!Dose_L","v":7.8222964803888614E-6},{"$f":"D09b!Dose_U","v":1.7978582822700411E-4},"D09b",null,null,"Fish: Subsist"]

{"sheet":"E04","index":36,"n_rows":24,"n_cols":9,"rows_kept":24,"cut":false,"hidden":false,"merged":[[0,0,0,5],[1,2,1,4],[2,0,3,0],[2,1,3,1],[2,2,2,4],[2,5,3,5]]}
["Worksheet E03: Summary of Hazard Quotients (Toxicity) for the General Public"]
["Application Rate:",{"$f":"'A01'!ApRt_C","v":1}," lb a.e./acre",null,null,"E03aV6"]
["Scenario","Receptor","Hazard Quotients",null,null,"Toxicity Value"]
[null,null,"Central","Lower","Upper"]
["Accidental Acute Exposures (dose in mg/kg/event)"]
["Direct Spray of Child, whole body","Child","No exposure assessment.",null,null,null,null,null,"Spray: Child"]
["Direct Spray of Woman, feet and lower legs","Adult Female","No exposure assessment.",null,null,null,null,null,"Spray: Woman"]
["Water consumption (spill)","Child",{"$f":"'D05'!$C$17/$F$8","v":6.8300751879699237E-2},{"$f":"'D05'!$C$18/$F$8","v":1.6665383458646615E-3},{"$f":"'D05'!$C$19/$F$8","v":0.8196090225563909},{"$f":"'B02'!$E$4","v":2.5},null,null,"Water: Child"]
["Fish consumption (spill)","Adult Male",{"$f":"D08a!$C$31/$F$9","v":1.0251942857142857E-3},{"$f":"D08a!$C$32/$F$9","v":4.1007771428571429E-5},{"$f":"D08a!$C$33/$F$9","v":8.2015542857142854E-3},{"$f":"'B02'!$E$4","v":2.5},null,null,"Fish: Man"]
["Fish consumption (spill)","Subsistence Populations",{"$f":"D08b!$C$31/$F$10","v":4.9962000000000001E-3},{"$f":"D08b!$C$32/$F$10","v":1.99848E-4},{"$f":"D08b!$C$33/$F$10","v":3.9969600000000001E-2},{"$f":"'B02'!$E$4","v":2.5},null,null,"Fish: Subsist"]
["Non-Accidental Acute Exposures (dose in mg/kg/event)"]
["Vegetation Contact, shorts and T-shirt","Adult Female","No exposure assessment.",null,null,null,null,null,"Contact: Female"]
["Contaminated Fruit","Adult Female","No exposure assessment.",null,null,null,null,null,"Fruit: Female"]
["Contaminated Vegetation","Adult Female","No exposure assessment.",null,null,null,null,null,"Veg: Female"]
["Swimming, one hour","Adult Female",{"$f":"'D11'!$C$29/$F$15","v":7.2496679379125527E-7},{"$f":"'D11'!$C$30/$F$15","v":1.0874501906868829E-7},{"$f":"'D11'!$C$31/$F$15","v":4.2721257491270408E-6},{"$f":"'B02'!$E$4","v":2.5},null,null,"Swim: Female"]
["Water consumption","Child",{"$f":"'D06'!$C$17/$F$16","v":3.6861390693534611E-3},{"$f":"'D06'!$C$18/$F$16","v":6.745634496916834E-4},{"$f":"'D06'!$C$19/$F$16","v":1.6587625812090574E-2},{"$f":"'B02'!$E$4","v":2.5},null,null,"Water: Child"]
["Fish consumption","Adult Male",{"$f":"D09c!$C$31/$F$17","v":5.5328947430995456E-5},{"$f":"D09c!$C$32/$F$17","v":1.6598684229298636E-5},{"$f":"D09c!$C$33/$F$17","v":1.6598684229298635E-4},{"$f":"'B02'!$E$4","v":2.5},null,null,"Fish: Male"]
["Fish consumption","Subsistence Populations",{"$f":"D09d!$C$31/$F$18","v":2.6964107292320571E-4},{"$f":"D09d!$C$32/$F$18","v":8.0892321876961713E-5},{"$f":"D09d!$C$33/$F$18","v":8.0892321876961713E-4},{"$f":"'B02'!$E$4","v":2.5},null,null,"Fish: Subsist"]
["Chronic/Longer Term Exposures (dose in mg/kg/day)"]
["Contaminated Fruit","Adult Female","No exposure assessment.",null,null,null,null,null,"Fruit: Female"]
["Contaminated Vegetation","Adult Female","No exposure assessment.",null,null,null,null,null,"Veg: Female"]
["Water consumption","Adult Male",{"$f":"'D07'!$C$17/$F$22","v":9.0051672445521096E-4},{"$f":"'D07'!$C$18/$F$22","v":1.0816014886463609E-4},{"$f":"'D07'!$C$19/$F$22","v":4.2615900024178758E-3},{"$f":"'B02'!$E$5","v":2.5},null,null,"Water: Male"]
["Fish consumption","Adult Male",{"$f":"D09a!$C$31/$F$23","v":2.251291811138027E-6},{"$f":"D09a!$C$32/$F$23","v":3.8628624594512893E-7},{"$f":"D09a!$C$33/$F$23","v":8.8783125050372408E-6},{"$f":"'B02'!$E$5","v":2.5},null,null,"Fish: Male"]
["Fish consumption","Subsistence Populations",{"$f":"D09b!$C$31/$F$24","v":1.8235463670218019E-5},{"$f":"D09b!$C$32/$F$24","v":3.1289185921555444E-6},{"$f":"D09b!$C$33/$F$24","v":7.1914331290801639E-5},{"$f":"'B02'!$E$5","v":2.5},null,null,"Fish: Subsist"]

{"sheet":"F02a","index":37,"n_rows":20,"n_cols":5,"rows_kept":20,"cut":false,"hidden":false,"merged":[[16,0,19,0],[0,0,0,4],[1,1,1,3],[2,1,2,3],[5,0,8,0],[11,0,13,0],[14,0,15,0]]}
["Consumption of contaminated water by Mammal, small, Accidental Spill "]
["Short Title","Accidental Spill",null,null,"WatAlloV6"]
["Receptor","Mammal, small"]
["Duration","Acute",null,null,"Scenario parameter"]
["Parameter/Assumption","Code / Range","Equation/   Value","Units","Reference/Designation"]
["Concentration in water","ConcWat"]
[null,"Central ",{"$f":"B04b!Acute_C","v":2.2709999999999999},"mg/L","='B04b'!Acute_C"]
[null,"Lower ",{"$f":"B04b!Acute_L","v":9.0840000000000004E-2},null,"='B04b'!Acute_L"]
[null,"Upper ",{"$f":"B04b!Acute_U","v":18.167999999999999},null,"='B04b'!Acute_U"]
["Receptor"]
["Body weight","BW",{"$f":"A02b!$C$71","v":0.02},"kg","Default"]
["Allometric coefficients forwater consumption per day in liters and BW in kilograms"]
[null,"alpha",{"$f":"A02b!$C$79","v":9.9000000000000005E-2},null,"U.S. EPA/ORD 1993"]
[null,"beta",{"$f":"A02b!$C$80","v":0.9},null,"U.S. EPA/ORD 1993"]
["Amount of water consumed per day",null,"Amnt = alpha BW beta"]
[null,"Amnt",{"$f":"C13*(C11^C14)","v":2.9279401205240612E-3},"liters","Eq"]
["Absorbed Dose","Dose","ConcWat  × Amnt ÷ BW"]
[null,"Central ",{"$f":"C7*C$16/C$11","v":0.33246760068550713},"mg/kg","Eq"]
[null,"Lower ",{"$f":"C8*C$16/C$11","v":1.3298704027420285E-2},"mg/kg","Eq"]
[null,"Upper ",{"$f":"C9*C$16/C$11","v":2.659740805484057},"mg/kg","Eq"]

{"sheet":"F02b","index":38,"n_rows":20,"n_cols":5,"rows_kept":20,"cut":false,"hidden":false,"merged":[[16,0,19,0],[0,0,0,4],[1,1,1,3],[2,1,2,3],[5,0,8,0],[11,0,13,0],[14,0,15,0]]}
["Consumption of contaminated water by Mammal, 400 g, Accidental Spill "]
["Short Title","Accidental Spill",null,null,"WatAlloV6"]
["Receptor","Mammal, 400 g"]
["Duration","Acute",null,null,"Scenario parameter"]
["Parameter/Assumption","Code / Range","Equation/   Value","Units","Reference/Designation"]
["Concentration in water","ConcWat"]
[null,"Central ",{"$f":"B04b!Acute_C","v":2.2709999999999999},"mg/L","='B04b'!Acute_C"]
[null,"Lower ",{"$f":"B04b!Acute_L","v":9.0840000000000004E-2},null,"='B04b'!Acute_L"]
[null,"Upper ",{"$f":"B04b!Acute_U","v":18.167999999999999},null,"='B04b'!Acute_U"]
["Receptor"]
["Body weight","BW",{"$f":"A02b!$C$40","v":0.4},"kg","Default"]
["Allometric coefficients forwater consumption per day in liters and BW in kilograms"]
[null,"alpha",{"$f":"A02b!$C$45","v":9.9000000000000005E-2},null,"U.S. EPA/ORD 1993"]
[null,"beta",{"$f":"A02b!$C$46","v":0.9},null,"U.S. EPA/ORD 1993"]
["Amount of water consumed per day",null,"Amnt = alpha BW beta"]
[null,"Amnt",{"$f":"C13*(C11^C14)","v":4.3399945764854612E-2},"liters","Eq"]
["Absorbed Dose","Dose","ConcWat  × Amnt ÷ BW"]
[null,"Central ",{"$f":"C7*C$16/C$11","v":0.24640319207996203},"mg/kg","Eq"]
[null,"Lower ",{"$f":"C8*C$16/C$11","v":9.8561276831984831E-3},"mg/kg","Eq"]
[null,"Upper ",{"$f":"C9*C$16/C$11","v":1.9712255366396962},"mg/kg","Eq"]

{"sheet":"F02c","index":39,"n_rows":20,"n_cols":5,"rows_kept":20,"cut":false,"hidden":false,"merged":[[16,0,19,0],[0,0,0,4],[1,1,1,3],[2,1,2,3],[5,0,8,0],[11,0,13,0],[14,0,15,0]]}
["Consumption of contaminated water by Mammal, carnivorous, Accidental Spill "]
["Short Title","Accidental Spill",null,null,"WatAlloV6"]
["Receptor","Mammal, carnivorous"]
["Duration","Acute",null,null,"Scenario parameter"]
["Parameter/Assumption","Code / Range","Equation/   Value","Units","Reference/Designation"]
["Concentration in water","ConcWat"]
[null,"Central ",{"$f":"B04b!Acute_C","v":2.2709999999999999},"mg/L","='B04b'!Acute_C"]
[null,"Lower ",{"$f":"B04b!Acute_L","v":9.0840000000000004E-2},null,"='B04b'!Acute_L"]
[null,"Upper ",{"$f":"B04b!Acute_U","v":18.167999999999999},null,"='B04b'!Acute_U"]
["Receptor"]
["Body weight","BW",{"$f":"A02b!$C$47","v":5},"kg","U.S. EPA/ORD 1993"]
["Allometric coefficients forwater consumption per day in liters and BW in kilograms"]
[null,"alpha",{"$f":"A02b!$C$50","v":9.9000000000000005E-2},null,"U.S. EPA/ORD 1993"]
[null,"beta",{"$f":"A02b!$C$51","v":0.9},null,"U.S. EPA/ORD 1993"]
["Amount of water consumed per day",null,"Amnt = alpha BW beta"]
[null,"Amnt",{"$f":"C13*(C11^C14)","v":0.42141326164778842},"liters","Eq"]
["Absorbed Dose","Dose","ConcWat  × Amnt ÷ BW"]
[null,"Central ",{"$f":"C7*C$16/C$11","v":0.19140590344042549},"mg/kg","Eq"]
[null,"Lower ",{"$f":"C8*C$16/C$11","v":7.6562361376170205E-3},"mg/kg","Eq"]
[null,"Upper ",{"$f":"C9*C$16/C$11","v":1.5312472275234039},"mg/kg","Eq"]

{"sheet":"F02d","index":40,"n_rows":20,"n_cols":5,"rows_kept":20,"cut":false,"hidden":false,"merged":[[16,0,19,0],[0,0,0,4],[1,1,1,3],[2,1,2,3],[5,0,8,0],[11,0,13,0],[14,0,15,0]]}
["Consumption of contaminated water by Mammal, large, Accidental Spill "]
["Short Title","Accidental Spill",null,null,"WatAlloV6"]
["Receptor","Mammal, large"]
["Duration","Acute",null,null,"Scenario parameter"]
["Parameter/Assumption","Code / Range","Equation/   Value","Units","Reference/Designation"]
["Concentration in water","ConcWat"]
[null,"Central ",{"$f":"B04b!Acute_C","v":2.2709999999999999},"mg/L","='B04b'!Acute_C"]
[null,"Lower ",{"$f":"B04b!Acute_L","v":9.0840000000000004E-2},null,"='B04b'!Acute_L"]
[null,"Upper ",{"$f":"B04b!Acute_U","v":18.167999999999999},null,"='B04b'!Acute_U"]
["Receptor"]
["Body weight","BW",{"$f":"A02b!$C$61","v":70},"kg","Default"]
["Allometric coefficients forwater consumption per day in liters and BW in kilograms"]
[null,"alpha",{"$f":"A02b!$C$64","v":9.9000000000000005E-2},null,"U.S. EPA/ORD 1993"]
[null,"beta",{"$f":"A02b!$C$65","v":0.9},null,"U.S. EPA/ORD 1993"]
["Amount of water consumed per day",null,"Amnt = alpha BW beta"]
[null,"Amnt",{"$f":"C13*(C11^C14)","v":4.5313064115862725},"liters","Eq"]
["Absorbed Dose","Dose","ConcWat  × Amnt ÷ BW"]
[null,"Central ",{"$f":"C7*C$16/C$11","v":0.14700852658160607},"mg/kg","Eq"]
[null,"Lower ",{"$f":"C8*C$16/C$11","v":5.8803410632642427E-3},"mg/kg","Eq"]
[null,"Upper ",{"$f":"C9*C$16/C$11","v":1.1760682126528486},"mg/kg","Eq"]

{"sheet":"F02e","index":41,"n_rows":20,"n_cols":5,"rows_kept":20,"cut":false,"hidden":false,"merged":[[16,0,19,0],[0,0,0,4],[1,1,1,3],[2,1,2,3],[5,0,8,0],[11,0,13,0],[14,0,15,0]]}
["Consumption of contaminated water by Bird, small, Accidental Spill "]
["Short Title","Accidental Spill",null,null,"WatAlloV6"]
["Receptor","Bird, small"]
["Duration","Acute",null,null,"Scenario parameter"]
["Parameter/Assumption","Code / Range","Equation/   Value","Units","Reference/Designation"]
["Concentration in water","ConcWat"]
[null,"Central ",{"$f":"B04b!Acute_C","v":2.2709999999999999},"mg/L","='B04b'!Acute_C"]
[null,"Lower ",{"$f":"B04b!Acute_L","v":9.0840000000000004E-2},null,"='B04b'!Acute_L"]
[null,"Upper ",{"$f":"B04b!Acute_U","v":18.167999999999999},null,"='B04b'!Acute_U"]
["Receptor"]
["Body weight","BW",{"$f":"A02b!$C$31","v":0.01},"kg","Default"]
["Allometric coefficients forwater consumption per day in liters and BW in kilograms"]
[null,"alpha",{"$f":"A02b!$C$34","v":5.8999999999999997E-2},null,"U.S. EPA/ORD 1993"]
[null,"beta",{"$f":"A02b!$C$35","v":0.67},null,"U.S. EPA/ORD 1993"]
["Amount of water consumed per day",null,"Amnt = alpha BW beta"]
[null,"Amnt",{"$f":"C13*(C11^C14)","v":2.6968203187277624E-3},"liters","Eq"]
["Absorbed Dose","Dose","ConcWat  × Amnt ÷ BW"]
[null,"Central ",{"$f":"C7*C$16/C$11","v":0.61244789438307479},"mg/kg","Eq"]
[null,"Lower ",{"$f":"C8*C$16/C$11","v":2.4497915775322995E-2},"mg/kg","Eq"]
[null,"Upper ",{"$f":"C9*C$16/C$11","v":4.8995831550645983},"mg/kg","Eq"]

{"sheet":"F02f","index":42,"n_rows":20,"n_cols":5,"rows_kept":20,"cut":false,"hidden":false,"merged":[[16,0,19,0],[0,0,0,4],[1,1,1,3],[2,1,2,3],[5,0,8,0],[11,0,13,0],[14,0,15,0]]}
["Consumption of contaminated water by Bird, large, Accidental Spill "]
["Short Title","Accidental Spill",null,null,"WatAlloV6"]
["Receptor","Bird, large"]
["Duration","Acute",null,null,"Scenario parameter"]
["Parameter/Assumption","Code / Range","Equation/   Value","Units","Reference/Designation"]
["Concentration in water","ConcWat"]
[null,"Central ",{"$f":"B04b!Acute_C","v":2.2709999999999999},"mg/L","='B04b'!Acute_C"]
[null,"Lower ",{"$f":"B04b!Acute_L","v":9.0840000000000004E-2},null,"='B04b'!Acute_L"]
[null,"Upper ",{"$f":"B04b!Acute_U","v":18.167999999999999},null,"='B04b'!Acute_U"]
["Receptor"]
["Body weight","BW",{"$f":"A02b!$C$15","v":4},"kg","Default"]
["Allometric coefficients forwater consumption per day in liters and BW in kilograms"]
[null,"alpha",{"$f":"A02b!$C$18","v":5.8999999999999997E-2},null,"U.S. EPA/ORD 1993"]
[null,"beta",{"$f":"A02b!$C$19","v":0.67},null,"U.S. EPA/ORD 1993"]
["Amount of water consumed per day",null,"Amnt = alpha BW beta"]
[null,"Amnt",{"$f":"C13*(C11^C14)","v":0.14935927808849303},"liters","Eq"]
["Absorbed Dose","Dose","ConcWat  × Amnt ÷ BW"]
[null,"Central ",{"$f":"C7*C$16/C$11","v":8.4798730134741915E-2},"mg/kg","Eq"]
[null,"Lower ",{"$f":"C8*C$16/C$11","v":3.3919492053896771E-3},"mg/kg","Eq"]
[null,"Upper ",{"$f":"C9*C$16/C$11","v":0.67838984107793532},"mg/kg","Eq"]

{"sheet":"F03a","index":43,"n_rows":50,"n_cols":5,"rows_kept":50,"cut":false,"hidden":false,"merged":[[36,0,39,0],[41,0,44,0],[45,0,48,0],[12,0,15,0],[16,0,19,0],[22,0,24,0],[27,0,28,0],[30,0,31,0],[32,0,33,0],[7,0,10,0],[0,0,0,4],[1,1,1,3],[2,1,2,3],[3,1,3,3],[4,1,4,3]]}
["Acute scenario for the consumption of Contaminated Fish ( Accidental Spill) by Mammal, large carnivorous "]
["Short Title","Fish consumption, accidental spill",null,null,"FishKcalV6"]
["Predator","Mammal, large carnivorous"]
["Food Item (Prey)","Fish"]
["Duration","Acute",null,null,"Scenario parameter"]
["Parameter/Assumption","Code / Range","Equation/   Value","Units","Reference/Designation"]
["Water"]
["Concentration in water","ConcWat"]
[null,"Central ",{"$f":"B04b!Acute_C","v":2.2709999999999999},"mg/L","='B04b'!Acute_C"]
[null,"Lower ",{"$f":"B04b!Acute_L","v":9.0840000000000004E-2},null,"='B04b'!Acute_L"]
[null,"Upper ",{"$f":"B04b!Acute_U","v":18.167999999999999},null,"='B04b'!Acute_U"]
["Fish"]
["Bioconcentration factor","BCF"]
[null,"Central ",{"$f":"'B01'!$C$6","v":0.5},"L/kg","Section 3.2.3.5."]
[null,"Lower ",{"$f":"'B01'!$C$6","v":0.5},null,"Section 3.2.3.5."]
[null,"Upper ",{"$f":"'B01'!$C$6","v":0.5},null,"Section 3.2.3.5."]
["Concentration in fish","ConcFish","ConcWat × BCF"]
[null,"Central ",{"$f":"C9*C14","v":1.1355},"mg/kg","Eq"]
[null,"Lower ",{"$f":"C10*C15","v":4.5420000000000002E-2},null,"Eq"]
[null,"Upper ",{"$f":"C11*C16","v":9.0839999999999996},null,"Eq"]
["Receptor"]
["Body weight","BW",{"$f":"A02b!$C$52","v":70},"kg","Reid 2006"]
["Allometric coefficients for caloric requirement per day in kilocalories and BW in grams"]
[null,"alpha",{"$f":"A02b!$C$53","v":0.61670000000000003},null,"U.S. EPA/ORD 1993"]
[null,"beta",{"$f":"A02b!$C$54","v":0.86199999999999999},null,"U.S. EPA/ORD 1993"]
["Caloric requirement per day","KR",{"$f":"C24*(C22*1000)^C25","v":9258.6668828796119},"kcal/day","Eq"]
["Caloric content of commodity (dry weight)","KCD",4.47,"kcal/gdw [Note 1]","WkMk Documentation"]
["Food consumed per day (dry weight)","AmntDry"," = KR ÷ KCD"]
[null,null,{"$f":"C26/C27","v":2071.2901303981234},"gdry/day","Eq"]
["Water content of vegetation as a proportion","PropWater",0.7,"gwater/gfood","WkMk Documentation"]
["Dry weight content of vegetation as a proportion","PropDry"," = 1-PropWater"]
[null,null,{"$f":"1-C30","v":0.30000000000000004},"gdry/gfood","Eq"]
["Amount of fish consumed per day,  wet weight","AmntFish"," = (AmntDry ÷ PropDry) ÷ (1000g/kg)"]
[null,"Central ",{"$f":"(C29/C32)/1000","v":6.90430043466041},"kgfood/day","Eq"]
[null,"Lower ",{"$f":"C34*0.3","v":2.0712901303981228},"Note 1","Eq"]
[null,"Upper ",{"$f":"C34*1.7","v":11.737310738922696},"Note 1","Eq"]
["Proportion of diet that is contaminated","Prop"]
[null,"Central ",0.3,"Unitless","Scenario parameter"]
[null,"Lower ",0.1,null,"Scenario parameter"]
[null,"Upper ",1,null,"Scenario parameter"]
["Dose"]
["Toxic Equivalency Factor for formulation:  (See risk assessment if this has a value other than 1.)","TEF"]
[null,"Central ",{"$f":"'A01'!C$37","v":1},"Unitless","Worksheet A01"]
[null,"Lower ",{"$f":"'A01'!C$38","v":1},"Note 2","Worksheet A01"]
[null,"Upper ",{"$f":"'A01'!C$39","v":1},"Note 2","Worksheet A01"]
["Dose","Dose","= ConcFish × AmntFish × Prop ÷ BW"]
[null,"Central ",{"$f":"C18*C34*C38/C$22","v":3.3599284900958121E-2},"mg/kg","Eq"]
[null,"Lower ",{"$f":"C19*C35*C39/C$22","v":1.343971396038325E-4},"mg/kg","Eq"]
[null,"Upper ",1.5231675821767681,"mg/kg","Eq"]
[null,null,null,null,"FishKcalV6"]

{"sheet":"F03b","index":44,"n_rows":50,"n_cols":5,"rows_kept":50,"cut":false,"hidden":false,"merged":[[36,0,39,0],[41,0,44,0],[45,0,48,0],[12,0,15,0],[16,0,19,0],[22,0,24,0],[27,0,28,0],[30,0,31,0],[32,0,33,0],[7,0,10,0],[0,0,0,4],[1,1,1,3],[2,1,2,3],[3,1,3,3],[4,1,4,3]]}
["Acute scenario for the consumption of Contaminated Fish ( Accidental Spill) by Mammal, carnivorous "]
["Short Title","Fish consumption, accidental spill",null,null,"FishKcalV6"]
["Predator","Mammal, carnivorous"]
["Food Item (Prey)","Fish"]
["Duration","Acute",null,null,"Scenario parameter"]
["Parameter/Assumption","Code / Range","Equation/   Value","Units","Reference/Designation"]
["Water"]
["Concentration in water","ConcWat"]
[null,"Central ",{"$f":"B04b!Acute_C","v":2.2709999999999999},"mg/L","='B04b'!Acute_C"]
[null,"Lower ",{"$f":"B04b!Acute_L","v":9.0840000000000004E-2},null,"='B04b'!Acute_L"]
[null,"Upper ",{"$f":"B04b!Acute_U","v":18.167999999999999},null,"='B04b'!Acute_U"]
["Fish"]
["Bioconcentration factor","BCF"]
[null,"Central ",{"$f":"'B01'!$C$6","v":0.5},"L/kg","Section 3.2.3.5."]
[null,"Lower ",{"$f":"'B01'!$C$6","v":0.5},null,"Section 3.2.3.5."]
[null,"Upper ",{"$f":"'B01'!$C$6","v":0.5},null,"Section 3.2.3.5."]
["Concentration in fish","ConcFish","ConcWat × BCF"]
[null,"Central ",{"$f":"C9*C14","v":1.1355},"mg/kg","Eq"]
[null,"Lower ",{"$f":"C10*C15","v":4.5420000000000002E-2},null,"Eq"]
[null,"Upper ",{"$f":"C11*C16","v":9.0839999999999996},null,"Eq"]
["Receptor"]
["Body weight","BW",{"$f":"A02b!$C$47","v":5},"kg","U.S. EPA/ORD 1993"]
["Allometric coefficients for caloric requirement per day in kilocalories and BW in grams"]
[null,"alpha",{"$f":"A02b!$C$48","v":0.61670000000000003},null,"U.S. EPA/ORD 1993"]
[null,"beta",{"$f":"A02b!$C$49","v":0.86199999999999999},null,"U.S. EPA/ORD 1993"]
["Caloric requirement per day","KR",{"$f":"C24*(C22*1000)^C25","v":951.88852658889334},"kcal/day","Eq"]
["Caloric content of commodity (dry weight)","KCD",4.47,"kcal/gdw [Note 1]","WkMk Documentation"]
["Food consumed per day (dry weight)","AmntDry"," = KR ÷ KCD"]
[null,null,{"$f":"C26/C27","v":212.95045337559137},"gdry/day","Eq"]
["Water content of vegetation as a proportion","PropWater",0.7,"gwater/gfood","WkMk Documentation"]
["Dry weight content of vegetation as a proportion","PropDry"," = 1-PropWater"]
[null,null,{"$f":"1-C30","v":0.30000000000000004},"gdry/gfood","Eq"]
["Amount of fish consumed per day,  wet weight","AmntFish"," = (AmntDry ÷ PropDry) ÷ (1000g/kg)"]
[null,"Central ",{"$f":"(C29/C32)/1000","v":0.70983484458530455},"kgfood/day","Eq"]
[null,"Lower ",{"$f":"C34*0.3","v":0.21295045337559135},"Note 1","Eq"]
[null,"Upper ",{"$f":"C34*1.7","v":1.2067192357950176},"Note 1","Eq"]
["Proportion of diet that is contaminated","Prop"]
[null,"Central ",0.3,"Unitless","Scenario parameter"]
[null,"Lower ",0.1,null,"Scenario parameter"]
[null,"Upper ",1,null,"Scenario parameter"]
["Dose"]
["Toxic Equivalency Factor for formulation:  (See risk assessment if this has a value other than 1.)","TEF"]
[null,"Central ",{"$f":"'A01'!C$37","v":1},"Unitless","Worksheet A01"]
[null,"Lower ",{"$f":"'A01'!C$38","v":1},"Note 2","Worksheet A01"]
[null,"Upper ",{"$f":"'A01'!C$39","v":1},"Note 2","Worksheet A01"]
["Dose","Dose","= ConcFish × AmntFish × Prop ÷ BW"]
[null,"Central ",{"$f":"C18*C34*C38/C$22","v":4.8361047961596793E-2},"mg/kg","Eq"]
[null,"Lower ",{"$f":"C19*C35*C39/C$22","v":1.9344419184638722E-4},"mg/kg","Eq"]
[null,"Upper ",2.1923675075923876,"mg/kg","Eq"]
[null,null,null,null,"FishKcalV6"]

{"sheet":"F03c","index":45,"n_rows":50,"n_cols":5,"rows_kept":50,"cut":false,"hidden":false,"merged":[[36,0,39,0],[41,0,44,0],[45,0,48,0],[12,0,15,0],[16,0,19,0],[22,0,24,0],[27,0,28,0],[30,0,31,0],[32,0,33,0],[7,0,10,0],[0,0,0,4],[1,1,1,3],[2,1,2,3],[3,1,3,3],[4,1,4,3]]}
["Acute scenario for the consumption of Contaminated Fish ( Accidental Spill) by Bird, piscivorous "]
["Short Title","Fish consumption, accidental spill",null,null,"FishKcalV6"]
["Predator","Bird, piscivorous"]
["Food Item (Prey)","Fish"]
["Duration","Acute",null,null,"Scenario parameter"]
["Parameter/Assumption","Code / Range","Equation/   Value","Units","Reference/Designation"]
["Water"]
["Concentration in water","ConcWat"]
[null,"Central ",{"$f":"B04b!Acute_C","v":2.2709999999999999},"mg/L","='B04b'!Acute_C"]
[null,"Lower ",{"$f":"B04b!Acute_L","v":9.0840000000000004E-2},null,"='B04b'!Acute_L"]
[null,"Upper ",{"$f":"B04b!Acute_U","v":18.167999999999999},null,"='B04b'!Acute_U"]
["Fish"]
["Bioconcentration factor","BCF"]
[null,"Central ",{"$f":"'B01'!$C$6","v":0.5},"L/kg","Section 3.2.3.5."]
[null,"Lower ",{"$f":"'B01'!$C$6","v":0.5},null,"Section 3.2.3.5."]
[null,"Upper ",{"$f":"'B01'!$C$6","v":0.5},null,"Section 3.2.3.5."]
["Concentration in fish","ConcFish","ConcWat × BCF"]
[null,"Central ",{"$f":"C9*C14","v":1.1355},"mg/kg","Eq"]
[null,"Lower ",{"$f":"C10*C15","v":4.5420000000000002E-2},null,"Eq"]
[null,"Upper ",{"$f":"C11*C16","v":9.0839999999999996},null,"Eq"]
["Receptor"]
["Body weight","BW",{"$f":"A02b!$C$24","v":2.4},"kg","Sibley 2000"]
["Allometric coefficients for caloric requirement per day in kilocalories and BW in grams"]
[null,"alpha",{"$f":"A02b!$C$27","v":1.9159999999999999},null,"U.S. EPA/ORD 1993"]
[null,"beta",{"$f":"A02b!$C$28","v":0.70399999999999996},null,"U.S. EPA/ORD 1993"]
["Caloric requirement per day","KR",{"$f":"C24*(C22*1000)^C25","v":459.26591923752829},"kcal/day","Eq"]
["Caloric content of commodity (dry weight)","KCD",3.87,"kcal/gdw [Note 1]","WkMk Documentation"]
["Food consumed per day (dry weight)","AmntDry"," = KR ÷ KCD"]
[null,null,{"$f":"C26/C27","v":118.67336414406415},"gdry/day","Eq"]
["Water content of vegetation as a proportion","PropWater",0.7,"gwater/gfood","WkMk Documentation"]
["Dry weight content of vegetation as a proportion","PropDry"," = 1-PropWater"]
[null,null,{"$f":"1-C30","v":0.30000000000000004},"gdry/gfood","Eq"]
["Amount of fish consumed per day,  wet weight","AmntFish"," = (AmntDry ÷ PropDry) ÷ (1000g/kg)"]
[null,"Central ",{"$f":"(C29/C32)/1000","v":0.39557788048021375},"kgfood/day","Eq"]
[null,"Lower ",{"$f":"C34*0.3","v":0.11867336414406413},"Note 1","Eq"]
[null,"Upper ",{"$f":"C34*1.7","v":0.67248239681636335},"Note 1","Eq"]
["Proportion of diet that is contaminated","Prop"]
[null,"Central ",0.3,"Unitless","Scenario parameter"]
[null,"Lower ",0.1,null,"Scenario parameter"]
[null,"Upper ",1,null,"Scenario parameter"]
["Dose"]
["Toxic Equivalency Factor for formulation:  (See risk assessment if this has a value other than 1.)","TEF"]
[null,"Central ",{"$f":"'A01'!C$37","v":1},"Unitless","Worksheet A01"]
[null,"Lower ",{"$f":"'A01'!C$38","v":1},"Note 2","Worksheet A01"]
[null,"Upper ",{"$f":"'A01'!C$39","v":1},"Note 2","Worksheet A01"]
["Dose","Dose","= ConcFish × AmntFish × Prop ÷ BW"]
[null,"Central ",{"$f":"C18*C34*C38/C$22","v":5.6147335410660339E-2},"mg/kg","Eq"]
[null,"Lower ",{"$f":"C19*C35*C39/C$22","v":2.245893416426414E-4},"mg/kg","Eq"]
[null,"Upper ",2.5453458719499351,"mg/kg","Eq"]
[null,null,null,null,"FishKcalV6"]

{"sheet":"F06a","index":46,"n_rows":20,"n_cols":5,"rows_kept":20,"cut":false,"hidden":false,"merged":[[16,0,19,0],[0,0,0,4],[1,1,1,3],[2,1,2,3],[5,0,8,0],[11,0,13,0],[14,0,15,0]]}
["Consumption of contaminated water by Mammal, small, Peak Concentrations "]
["Short Title","Peak Concentrations",null,null,"WatAlloV6"]
["Receptor","Mammal, small"]
["Duration","Acute",null,null,"Scenario parameter"]
["Parameter/Assumption","Code / Range","Equation/   Value","Units","Reference/Designation"]
["Concentration in water","ConcWat"]
[null,"Central ",{"$f":"B04a!Acute_C","v":0.12256412405600259},"mg/L","='B04a'!Acute_C"]
[null,"Lower ",{"$f":"B04a!Acute_L","v":3.6769237216800775E-2},null,"='B04a'!Acute_L"]
[null,"Upper ",{"$f":"B04a!Acute_U","v":0.36769237216800776},null,"='B04a'!Acute_U"]
["Receptor"]
["Body weight","BW",{"$f":"A02b!$C$71","v":0.02},"kg","Default"]
["Allometric coefficients forwater consumption per day in liters and BW in kilograms"]
[null,"alpha",{"$f":"A02b!$C$79","v":9.9000000000000005E-2},null,"U.S. EPA/ORD 1993"]
[null,"beta",{"$f":"A02b!$C$80","v":0.9},null,"U.S. EPA/ORD 1993"]
["Amount of water consumed per day",null,"Amnt = alpha BW beta"]
[null,"Amnt",{"$f":"C13*(C11^C14)","v":2.9279401205240612E-3},"liters","Eq"]
["Absorbed Dose","Dose","ConcWat  × Amnt ÷ BW"]
[null,"Central ",{"$f":"C7*C$16/C$11","v":1.7943020808022909E-2},"mg/kg","Eq"]
[null,"Lower ",{"$f":"C8*C$16/C$11","v":5.382906242406873E-3},"mg/kg","Eq"]
[null,"Upper ",{"$f":"C9*C$16/C$11","v":5.3829062424068728E-2},"mg/kg","Eq"]

{"sheet":"F06b","index":47,"n_rows":20,"n_cols":5,"rows_kept":20,"cut":false,"hidden":false,"merged":[[16,0,19,0],[0,0,0,4],[1,1,1,3],[2,1,2,3],[5,0,8,0],[11,0,13,0],[14,0,15,0]]}
["Consumption of contaminated water by Mammal, 400 g, Peak Concentrations "]
["Short Title","Peak Concentrations",null,null,"WatAlloV6"]
["Receptor","Mammal, 400 g"]
["Duration","Acute",null,null,"Scenario parameter"]
["Parameter/Assumption","Code / Range","Equation/   Value","Units","Reference/Designation"]
["Concentration in water","ConcWat"]
[null,"Central ",{"$f":"B04a!Acute_C","v":0.12256412405600259},"mg/L","='B04a'!Acute_C"]
[null,"Lower ",{"$f":"B04a!Acute_L","v":3.6769237216800775E-2},null,"='B04a'!Acute_L"]
[null,"Upper ",{"$f":"B04a!Acute_U","v":0.36769237216800776},null,"='B04a'!Acute_U"]
["Receptor"]
["Body weight","BW",{"$f":"A02b!$C$40","v":0.4},"kg","Default"]
["Allometric coefficients forwater consumption per day in liters and BW in kilograms"]
[null,"alpha",{"$f":"A02b!$C$45","v":9.9000000000000005E-2},null,"U.S. EPA/ORD 1993"]
[null,"beta",{"$f":"A02b!$C$46","v":0.9},null,"U.S. EPA/ORD 1993"]
["Amount of water consumed per day",null,"Amnt = alpha BW beta"]
[null,"Amnt",{"$f":"C13*(C11^C14)","v":4.3399945764854612E-2},"liters","Eq"]
["Absorbed Dose","Dose","ConcWat  × Amnt ÷ BW"]
[null,"Central ",{"$f":"C7*C$16/C$11","v":1.3298190841868561E-2},"mg/kg","Eq"]
[null,"Lower ",{"$f":"C8*C$16/C$11","v":3.989457252560568E-3},"mg/kg","Eq"]
[null,"Upper ",{"$f":"C9*C$16/C$11","v":3.9894572525605687E-2},"mg/kg","Eq"]

{"sheet":"F06c","index":48,"n_rows":20,"n_cols":5,"rows_kept":20,"cut":false,"hidden":false,"merged":[[16,0,19,0],[0,0,0,4],[1,1,1,3],[2,1,2,3],[5,0,8,0],[11,0,13,0],[14,0,15,0]]}
["Consumption of contaminated water by Mammal, carnivorous, Peak Concentrations "]
["Short Title","Peak Concentrations",null,null,"WatAlloV6"]
["Receptor","Mammal, carnivorous"]
["Duration","Acute",null,null,"Scenario parameter"]
["Parameter/Assumption","Code / Range","Equation/   Value","Units","Reference/Designation"]
["Concentration in water","ConcWat"]
[null,"Central ",{"$f":"B04a!Acute_C","v":0.12256412405600259},"mg/L","='B04a'!Acute_C"]
[null,"Lower ",{"$f":"B04a!Acute_L","v":3.6769237216800775E-2},null,"='B04a'!Acute_L"]
[null,"Upper ",{"$f":"B04a!Acute_U","v":0.36769237216800776},null,"='B04a'!Acute_U"]
["Receptor"]
["Body weight","BW",{"$f":"A02b!$C$47","v":5},"kg","U.S. EPA/ORD 1993"]
["Allometric coefficients forwater consumption per day in liters and BW in kilograms"]
[null,"alpha",{"$f":"A02b!$C$50","v":9.9000000000000005E-2},null,"U.S. EPA/ORD 1993"]
[null,"beta",{"$f":"A02b!$C$51","v":0.9},null,"U.S. EPA/ORD 1993"]
["Amount of water consumed per day",null,"Amnt = alpha BW beta"]
[null,"Amnt",{"$f":"C13*(C11^C14)","v":0.42141326164778842},"liters","Eq"]
["Absorbed Dose","Dose","ConcWat  × Amnt ÷ BW"]
[null,"Central ",{"$f":"C7*C$16/C$11","v":1.0330029455888843E-2},"mg/kg","Eq"]
[null,"Lower ",{"$f":"C8*C$16/C$11","v":3.0990088367666528E-3},"mg/kg","Eq"]
[null,"Upper ",{"$f":"C9*C$16/C$11","v":3.0990088367666528E-2},"mg/kg","Eq"]

{"sheet":"F06d","index":49,"n_rows":20,"n_cols":5,"rows_kept":20,"cut":false,"hidden":false,"merged":[[16,0,19,0],[0,0,0,4],[1,1,1,3],[2,1,2,3],[5,0,8,0],[11,0,13,0],[14,0,15,0]]}
["Consumption of contaminated water by Mammal, large, Peak Concentrations "]
["Short Title","Peak Concentrations",null,null,"WatAlloV6"]
["Receptor","Mammal, large"]
["Duration","Acute",null,null,"Scenario parameter"]
["Parameter/Assumption","Code / Range","Equation/   Value","Units","Reference/Designation"]
["Concentration in water","ConcWat"]
[null,"Central ",{"$f":"B04a!Acute_C","v":0.12256412405600259},"mg/L","='B04a'!Acute_C"]
[null,"Lower ",{"$f":"B04a!Acute_L","v":3.6769237216800775E-2},null,"='B04a'!Acute_L"]
[null,"Upper ",{"$f":"B04a!Acute_U","v":0.36769237216800776},null,"='B04a'!Acute_U"]
["Receptor"]
["Body weight","BW",{"$f":"A02b!$C$61","v":70},"kg","Default"]
["Allometric coefficients forwater consumption per day in liters and BW in kilograms"]
[null,"alpha",{"$f":"A02b!$C$64","v":9.9000000000000005E-2},null,"U.S. EPA/ORD 1993"]
[null,"beta",{"$f":"A02b!$C$65","v":0.9},null,"U.S. EPA/ORD 1993"]
["Amount of water consumed per day",null,"Amnt = alpha BW beta"]
[null,"Amnt",{"$f":"C13*(C11^C14)","v":4.5313064115862725},"liters","Eq"]
["Absorbed Dose","Dose","ConcWat  × Amnt ÷ BW"]
[null,"Central ",{"$f":"C7*C$16/C$11","v":7.9339371595059972E-3},"mg/kg","Eq"]
[null,"Lower ",{"$f":"C8*C$16/C$11","v":2.3801811478517993E-3},"mg/kg","Eq"]
[null,"Upper ",{"$f":"C9*C$16/C$11","v":2.3801811478517992E-2},"mg/kg","Eq"]

{"sheet":"F06e","index":50,"n_rows":20,"n_cols":5,"rows_kept":20,"cut":false,"hidden":false,"merged":[[16,0,19,0],[0,0,0,4],[1,1,1,3],[2,1,2,3],[5,0,8,0],[11,0,13,0],[14,0,15,0]]}
["Consumption of contaminated water by Bird, small, Peak Concentrations "]
["Short Title","Peak Concentrations",null,null,"WatAlloV6"]
["Receptor","Bird, small"]
["Duration","Acute",null,null,"Scenario parameter"]
["Parameter/Assumption","Code / Range","Equation/   Value","Units","Reference/Designation"]
["Concentration in water","ConcWat"]
[null,"Central ",{"$f":"B04a!Acute_C","v":0.12256412405600259},"mg/L","='B04a'!Acute_C"]
[null,"Lower ",{"$f":"B04a!Acute_L","v":3.6769237216800775E-2},null,"='B04a'!Acute_L"]
[null,"Upper ",{"$f":"B04a!Acute_U","v":0.36769237216800776},null,"='B04a'!Acute_U"]
["Receptor"]
["Body weight","BW",{"$f":"A02b!$C$31","v":0.01},"kg","Default"]
["Allometric coefficients forwater consumption per day in liters and BW in kilograms"]
[null,"alpha",{"$f":"A02b!$C$34","v":5.8999999999999997E-2},null,"U.S. EPA/ORD 1993"]
[null,"beta",{"$f":"A02b!$C$35","v":0.67},null,"U.S. EPA/ORD 1993"]
["Amount of water consumed per day",null,"Amnt = alpha BW beta"]
[null,"Amnt",{"$f":"C13*(C11^C14)","v":2.6968203187277624E-3},"liters","Eq"]
["Absorbed Dose","Dose","ConcWat  × Amnt ÷ BW"]
[null,"Central ",{"$f":"C7*C$16/C$11","v":3.3053342010129792E-2},"mg/kg","Eq"]
[null,"Lower ",{"$f":"C8*C$16/C$11","v":9.9160026030389366E-3},"mg/kg","Eq"]
[null,"Upper ",{"$f":"C9*C$16/C$11","v":9.916002603038937E-2},"mg/kg","Eq"]

{"sheet":"F06f","index":51,"n_rows":20,"n_cols":5,"rows_kept":20,"cut":false,"hidden":false,"merged":[[16,0,19,0],[0,0,0,4],[1,1,1,3],[2,1,2,3],[5,0,8,0],[11,0,13,0],[14,0,15,0]]}
["Consumption of contaminated water by Bird, large, Peak Concentrations "]
["Short Title","Peak Concentrations",null,null,"WatAlloV6"]
["Receptor","Bird, large"]
["Duration","Acute",null,null,"Scenario parameter"]
["Parameter/Assumption","Code / Range","Equation/   Value","Units","Reference/Designation"]
["Concentration in water","ConcWat"]
[null,"Central ",{"$f":"B04a!Acute_C","v":0.12256412405600259},"mg/L","='B04a'!Acute_C"]
[null,"Lower ",{"$f":"B04a!Acute_L","v":3.6769237216800775E-2},null,"='B04a'!Acute_L"]
[null,"Upper ",{"$f":"B04a!Acute_U","v":0.36769237216800776},null,"='B04a'!Acute_U"]
["Receptor"]
["Body weight","BW",{"$f":"A02b!$C$15","v":4},"kg","Default"]
["Allometric coefficients forwater consumption per day in liters and BW in kilograms"]
[null,"alpha",{"$f":"A02b!$C$18","v":5.8999999999999997E-2},null,"U.S. EPA/ORD 1993"]
[null,"beta",{"$f":"A02b!$C$19","v":0.67},null,"U.S. EPA/ORD 1993"]
["Amount of water consumed per day",null,"Amnt = alpha BW beta"]
[null,"Amnt",{"$f":"C13*(C11^C14)","v":0.14935927808849303},"liters","Eq"]
["Absorbed Dose","Dose","ConcWat  × Amnt ÷ BW"]
[null,"Central ",{"$f":"C7*C$16/C$11","v":4.576522272138262E-3},"mg/kg","Eq"]
[null,"Lower ",{"$f":"C8*C$16/C$11","v":1.3729566816414786E-3},"mg/kg","Eq"]
[null,"Upper ",{"$f":"C9*C$16/C$11","v":1.3729566816414787E-2},"mg/kg","Eq"]

{"sheet":"F09a","index":52,"n_rows":50,"n_cols":5,"rows_kept":50,"cut":false,"hidden":false,"merged":[[36,0,39,0],[41,0,44,0],[45,0,48,0],[12,0,15,0],[16,0,19,0],[22,0,24,0],[27,0,28,0],[30,0,31,0],[32,0,33,0],[7,0,10,0],[0,0,0,4],[1,1,1,3],[2,1,2,3],[3,1,3,3],[4,1,4,3]]}
["Acute scenario for the consumption of Contaminated Fish (Peak) by Mammal, large carnivorous "]
["Short Title","Fish consumption, accidental spill",null,null,"FishKcalV6"]
["Predator","Mammal, large carnivorous"]
["Food Item (Prey)","Fish"]
["Duration","Acute",null,null,"Scenario parameter"]
["Parameter/Assumption","Code / Range","Equation/   Value","Units","Reference/Designation"]
["Water"]
["Concentration in water","ConcWat"]
[null,"Central ",{"$f":"B04a!Acute_C","v":0.12256412405600259},"mg/L","='B04a'!Acute_C"]
[null,"Lower ",{"$f":"B04a!Acute_L","v":3.6769237216800775E-2},null,"='B04a'!Acute_L"]
[null,"Upper ",{"$f":"B04a!Acute_U","v":0.36769237216800776},null,"='B04a'!Acute_U"]
["Fish"]
["Bioconcentration factor","BCF"]
[null,"Central ",{"$f":"'B01'!$C$6","v":0.5},"L/kg","Section 3.2.3.5."]
[null,"Lower ",{"$f":"'B01'!$C$6","v":0.5},null,"Section 3.2.3.5."]
[null,"Upper ",{"$f":"'B01'!$C$6","v":0.5},null,"Section 3.2.3.5."]
["Concentration in fish","ConcFish","ConcWat × BCF"]
[null,"Central ",{"$f":"C9*C14","v":6.1282062028001294E-2},"mg/kg","Eq"]
[null,"Lower ",{"$f":"C10*C15","v":1.8384618608400388E-2},null,"Eq"]
[null,"Upper ",{"$f":"C11*C16","v":0.18384618608400388},null,"Eq"]
["Receptor"]
["Body weight","BW",{"$f":"A02b!$C$52","v":70},"kg","Reid 2006"]
["Allometric coefficients for caloric requirement per day in kilocalories and BW in grams"]
[null,"alpha",{"$f":"A02b!$C$53","v":0.61670000000000003},null,"U.S. EPA/ORD 1993"]
[null,"beta",{"$f":"A02b!$C$54","v":0.86199999999999999},null,"U.S. EPA/ORD 1993"]
["Caloric requirement per day","KR",{"$f":"C24*(C22*1000)^C25","v":9258.6668828796119},"kcal/day","Eq"]
["Caloric content of commodity (dry weight)","KCD",4.47,"kcal/gdw [Note 1]","WkMk Documentation"]
["Food consumed per day (dry weight)","AmntDry"," = KR ÷ KCD"]
[null,null,{"$f":"C26/C27","v":2071.2901303981234},"gdry/day","Eq"]
["Water content of vegetation as a proportion","PropWater",0.7,"gwater/gfood","WkMk Documentation"]
["Dry weight content of vegetation as a proportion","PropDry"," = 1-PropWater"]
[null,null,{"$f":"1-C30","v":0.30000000000000004},"gdry/gfood","Eq"]
["Amount of fish consumed per day,  wet weight","AmntFish"," = (AmntDry ÷ PropDry) ÷ (1000g/kg)"]
[null,"Central ",{"$f":"(C29/C32)/1000","v":6.90430043466041},"kgfood/day","Eq"]
[null,"Lower ",{"$f":"C34*0.3","v":2.0712901303981228},"Note 1","Eq"]
[null,"Upper ",{"$f":"C34*1.7","v":11.737310738922696},"Note 1","Eq"]
["Proportion of diet that is contaminated","Prop"]
[null,"Central ",0.3,"Unitless","Scenario parameter"]
[null,"Lower ",0.1,null,"Scenario parameter"]
[null,"Upper ",1,null,"Scenario parameter"]
["Dose"]
["Toxic Equivalency Factor for formulation:  (See risk assessment if this has a value other than 1.)","TEF"]
[null,"Central ",{"$f":"'A01'!C$37","v":1},"Unitless","Worksheet A01"]
[null,"Lower ",{"$f":"'A01'!C$38","v":1},"Note 2","Worksheet A01"]
[null,"Upper ",{"$f":"'A01'!C$39","v":1},"Note 2","Worksheet A01"]
["Dose","Dose","= ConcFish × AmntFish × Prop ÷ BW"]
[null,"Central ",{"$f":"C18*C34*C38/C$22","v":1.8133275749863526E-3},"mg/kg","Eq"]
[null,"Lower ",{"$f":"C19*C35*C39/C$22","v":5.4399827249590565E-5},"mg/kg","Eq"]
[null,"Upper ",3.0826568774767988E-2,"mg/kg","Eq"]
[null,null,null,null,"FishKcalV6"]

{"sheet":"F09b","index":53,"n_rows":50,"n_cols":5,"rows_kept":50,"cut":false,"hidden":false,"merged":[[36,0,39,0],[41,0,44,0],[45,0,48,0],[12,0,15,0],[16,0,19,0],[22,0,24,0],[27,0,28,0],[30,0,31,0],[32,0,33,0],[7,0,10,0],[0,0,0,4],[1,1,1,3],[2,1,2,3],[3,1,3,3],[4,1,4,3]]}
["Acute scenario for the consumption of Contaminated Fish (Peak) by Mammal, carnivorous "]
["Short Title","Fish consumption, accidental spill",null,null,"FishKcalV6"]
["Predator","Mammal, carnivorous"]
["Food Item (Prey)","Fish"]
["Duration","Acute",null,null,"Scenario parameter"]
["Parameter/Assumption","Code / Range","Equation/   Value","Units","Reference/Designation"]
["Water"]
["Concentration in water","ConcWat"]
[null,"Central ",{"$f":"B04a!Acute_C","v":0.12256412405600259},"mg/L","='B04a'!Acute_C"]
[null,"Lower ",{"$f":"B04a!Acute_L","v":3.6769237216800775E-2},null,"='B04a'!Acute_L"]
[null,"Upper ",{"$f":"B04a!Acute_U","v":0.36769237216800776},null,"='B04a'!Acute_U"]
["Fish"]
["Bioconcentration factor","BCF"]
[null,"Central ",{"$f":"'B01'!$C$6","v":0.5},"L/kg","Section 3.2.3.5."]
[null,"Lower ",{"$f":"'B01'!$C$6","v":0.5},null,"Section 3.2.3.5."]
[null,"Upper ",{"$f":"'B01'!$C$6","v":0.5},null,"Section 3.2.3.5."]
["Concentration in fish","ConcFish","ConcWat × BCF"]
[null,"Central ",{"$f":"C9*C14","v":6.1282062028001294E-2},"mg/kg","Eq"]
[null,"Lower ",{"$f":"C10*C15","v":1.8384618608400388E-2},null,"Eq"]
[null,"Upper ",{"$f":"C11*C16","v":0.18384618608400388},null,"Eq"]
["Receptor"]
["Body weight","BW",{"$f":"A02b!$C$47","v":5},"kg","U.S. EPA/ORD 1993"]
["Allometric coefficients for caloric requirement per day in kilocalories and BW in grams"]
[null,"alpha",{"$f":"A02b!$C$48","v":0.61670000000000003},null,"U.S. EPA/ORD 1993"]
[null,"beta",{"$f":"A02b!$C$49","v":0.86199999999999999},null,"U.S. EPA/ORD 1993"]
["Caloric requirement per day","KR",{"$f":"C24*(C22*1000)^C25","v":951.88852658889334},"kcal/day","Eq"]
["Caloric content of commodity (dry weight)","KCD",4.47,"kcal/gdw [Note 1]","WkMk Documentation"]
["Food consumed per day (dry weight)","AmntDry"," = KR ÷ KCD"]
[null,null,{"$f":"C26/C27","v":212.95045337559137},"gdry/day","Eq"]
["Water content of vegetation as a proportion","PropWater",0.7,"gwater/gfood","WkMk Documentation"]
["Dry weight content of vegetation as a proportion","PropDry"," = 1-PropWater"]
[null,null,{"$f":"1-C30","v":0.30000000000000004},"gdry/gfood","Eq"]
["Amount of fish consumed per day,  wet weight","AmntFish"," = (AmntDry ÷ PropDry) ÷ (1000g/kg)"]
[null,"Central ",{"$f":"(C29/C32)/1000","v":0.70983484458530455},"kgfood/day","Eq"]
[null,"Lower ",{"$f":"C34*0.3","v":0.21295045337559135},"Note 1","Eq"]
[null,"Upper ",{"$f":"C34*1.7","v":1.2067192357950176},"Note 1","Eq"]
["Proportion of diet that is contaminated","Prop"]
[null,"Central ",0.3,"Unitless","Scenario parameter"]
[null,"Lower ",0.1,null,"Scenario parameter"]
[null,"Upper ",1,null,"Scenario parameter"]
["Dose"]
["Toxic Equivalency Factor for formulation:  (See risk assessment if this has a value other than 1.)","TEF"]
[null,"Central ",{"$f":"'A01'!C$37","v":1},"Unitless","Worksheet A01"]
[null,"Lower ",{"$f":"'A01'!C$38","v":1},"Note 2","Worksheet A01"]
[null,"Upper ",{"$f":"'A01'!C$39","v":1},"Note 2","Worksheet A01"]
["Dose","Dose","= ConcFish × AmntFish × Prop ÷ BW"]
[null,"Central ",{"$f":"C18*C34*C38/C$22","v":2.6100085785307975E-3},"mg/kg","Eq"]
[null,"Lower ",{"$f":"C19*C35*C39/C$22","v":7.8300257355923931E-5},"mg/kg","Eq"]
[null,"Upper ",4.4370145835023557E-2,"mg/kg","Eq"]
[null,null,null,null,"FishKcalV6"]

{"sheet":"F09c","index":54,"n_rows":50,"n_cols":5,"rows_kept":50,"cut":false,"hidden":false,"merged":[[36,0,39,0],[41,0,44,0],[45,0,48,0],[12,0,15,0],[16,0,19,0],[22,0,24,0],[27,0,28,0],[30,0,31,0],[32,0,33,0],[7,0,10,0],[0,0,0,4],[1,1,1,3],[2,1,2,3],[3,1,3,3],[4,1,4,3]]}
["Acute scenario for the consumption of Contaminated Fish (Peak) by Bird, piscivorous "]
["Short Title","Fish consumption, accidental spill",null,null,"FishKcalV6"]
["Predator","Bird, piscivorous"]
["Food Item (Prey)","Fish"]
["Duration","Acute",null,null,"Scenario parameter"]
["Parameter/Assumption","Code / Range","Equation/   Value","Units","Reference/Designation"]
["Water"]
["Concentration in water","ConcWat"]
[null,"Central ",{"$f":"B04a!Acute_C","v":0.12256412405600259},"mg/L","='B04a'!Acute_C"]
[null,"Lower ",{"$f":"B04a!Acute_L","v":3.6769237216800775E-2},null,"='B04a'!Acute_L"]
[null,"Upper ",{"$f":"B04a!Acute_U","v":0.36769237216800776},null,"='B04a'!Acute_U"]
["Fish"]
["Bioconcentration factor","BCF"]
[null,"Central ",{"$f":"'B01'!$C$6","v":0.5},"L/kg","Section 3.2.3.5."]
[null,"Lower ",{"$f":"'B01'!$C$6","v":0.5},null,"Section 3.2.3.5."]
[null,"Upper ",{"$f":"'B01'!$C$6","v":0.5},null,"Section 3.2.3.5."]
["Concentration in fish","ConcFish","ConcWat × BCF"]
[null,"Central ",{"$f":"C9*C14","v":6.1282062028001294E-2},"mg/kg","Eq"]
[null,"Lower ",{"$f":"C10*C15","v":1.8384618608400388E-2},null,"Eq"]
[null,"Upper ",{"$f":"C11*C16","v":0.18384618608400388},null,"Eq"]
["Receptor"]
["Body weight","BW",{"$f":"A02b!$C$24","v":2.4},"kg","Sibley 2000"]
["Allometric coefficients for caloric requirement per day in kilocalories and BW in grams"]
[null,"alpha",{"$f":"A02b!$C$27","v":1.9159999999999999},null,"U.S. EPA/ORD 1993"]
[null,"beta",{"$f":"A02b!$C$28","v":0.70399999999999996},null,"U.S. EPA/ORD 1993"]
["Caloric requirement per day","KR",{"$f":"C24*(C22*1000)^C25","v":459.26591923752829},"kcal/day","Eq"]
["Caloric content of commodity (dry weight)","KCD",3.87,"kcal/gdw [Note 1]","WkMk Documentation"]
["Food consumed per day (dry weight)","AmntDry"," = KR ÷ KCD"]
[null,null,{"$f":"C26/C27","v":118.67336414406415},"gdry/day","Eq"]
["Water content of vegetation as a proportion","PropWater",0.7,"gwater/gfood","WkMk Documentation"]
["Dry weight content of vegetation as a proportion","PropDry"," = 1-PropWater"]
[null,null,{"$f":"1-C30","v":0.30000000000000004},"gdry/gfood","Eq"]
["Amount of fish consumed per day,  wet weight","AmntFish"," = (AmntDry ÷ PropDry) ÷ (1000g/kg)"]
[null,"Central ",{"$f":"(C29/C32)/1000","v":0.39557788048021375},"kgfood/day","Eq"]
[null,"Lower ",{"$f":"C34*0.3","v":0.11867336414406413},"Note 1","Eq"]
[null,"Upper ",{"$f":"C34*1.7","v":0.67248239681636335},"Note 1","Eq"]
["Proportion of diet that is contaminated","Prop"]
[null,"Central ",0.3,"Unitless","Scenario parameter"]
[null,"Lower ",0.1,null,"Scenario parameter"]
[null,"Upper ",1,null,"Scenario parameter"]
["Dose"]
["Toxic Equivalency Factor for formulation:  (See risk assessment if this has a value other than 1.)","TEF"]
[null,"Central ",{"$f":"'A01'!C$37","v":1},"Unitless","Worksheet A01"]
[null,"Lower ",{"$f":"'A01'!C$38","v":1},"Note 2","Worksheet A01"]
[null,"Upper ",{"$f":"'A01'!C$39","v":1},"Note 2","Worksheet A01"]
["Dose","Dose","= ConcFish × AmntFish × Prop ÷ BW"]
[null,"Central ",{"$f":"C18*C34*C38/C$22","v":3.0302285260617179E-3},"mg/kg","Eq"]
[null,"Lower ",{"$f":"C19*C35*C39/C$22","v":9.0906855781851538E-5},"mg/kg","Eq"]
[null,"Upper ",5.1513884943049197E-2,"mg/kg","Eq"]
[null,null,null,null,"FishKcalV6"]

{"sheet":"F12a","index":55,"n_rows":20,"n_cols":5,"rows_kept":20,"cut":false,"hidden":false,"merged":[[16,0,19,0],[0,0,0,4],[1,1,1,3],[2,1,2,3],[5,0,8,0],[11,0,13,0],[14,0,15,0]]}
["Consumption of contaminated water by Mammal, small, Longer-term Concentrations "]
["Short Title","Longer-term Concentrations",null,null,"WatAlloV6"]
["Receptor","Mammal, small"]
["Duration","Chronic",null,null,"Scenario parameter"]
["Parameter/Assumption","Code / Range","Equation/   Value","Units","Reference/Designation"]
["Concentration in water","ConcWat"]
[null,"Central ",{"$f":"B04a!Chronic_C","v":7.8795213389830948E-2},"mg/L","='B04a'!Chronic_C"]
[null,"Lower ",{"$f":"B04a!Chronic_L","v":1.3520018608079512E-2},null,"='B04a'!Chronic_L"]
[null,"Upper ",{"$f":"B04a!Chronic_U","v":0.3107409376763034},null,"='B04a'!Chronic_U"]
["Receptor"]
["Body weight","BW",{"$f":"A02b!$C$71","v":0.02},"kg","Default"]
["Allometric coefficients forwater consumption per day in liters and BW in kilograms"]
[null,"alpha",{"$f":"A02b!$C$79","v":9.9000000000000005E-2},null,"U.S. EPA/ORD 1993"]
[null,"beta",{"$f":"A02b!$C$80","v":0.9},null,"U.S. EPA/ORD 1993"]
["Amount of water consumed per day",null,"Amnt = alpha BW beta"]
[null,"Amnt",{"$f":"C13*(C11^C14)","v":2.9279401205240612E-3},"liters","Eq"]
["Absorbed Dose","Dose","ConcWat  × Amnt ÷ BW"]
[null,"Central ",{"$f":"C7*C$16/C$11","v":1.1535383329467037E-2},"mg/kg","Eq"]
[null,"Lower ",{"$f":"C8*C$16/C$11","v":1.9792902456413938E-3},"mg/kg","Eq"]
[null,"Upper ",{"$f":"C9*C$16/C$11","v":4.5491542925585778E-2},"mg/kg","Eq"]

{"sheet":"F12b","index":56,"n_rows":20,"n_cols":5,"rows_kept":20,"cut":false,"hidden":false,"merged":[[16,0,19,0],[0,0,0,4],[1,1,1,3],[2,1,2,3],[5,0,8,0],[11,0,13,0],[14,0,15,0]]}
["Consumption of contaminated water by Mammal, 400 g, Longer-term Concentrations "]
["Short Title","Longer-term Concentrations",null,null,"WatAlloV6"]
["Receptor","Mammal, 400 g"]
["Duration","Chronic",null,null,"Scenario parameter"]
["Parameter/Assumption","Code / Range","Equation/   Value","Units","Reference/Designation"]
["Concentration in water","ConcWat"]
[null,"Central ",{"$f":"B04a!Chronic_C","v":7.8795213389830948E-2},"mg/L","='B04a'!Chronic_C"]
[null,"Lower ",{"$f":"B04a!Chronic_L","v":1.3520018608079512E-2},null,"='B04a'!Chronic_L"]
[null,"Upper ",{"$f":"B04a!Chronic_U","v":0.3107409376763034},null,"='B04a'!Chronic_U"]
["Receptor"]
["Body weight","BW",{"$f":"A02b!$C$40","v":0.4},"kg","Default"]
["Allometric coefficients forwater consumption per day in liters and BW in kilograms"]
[null,"alpha",{"$f":"A02b!$C$45","v":9.9000000000000005E-2},null,"U.S. EPA/ORD 1993"]
[null,"beta",{"$f":"A02b!$C$46","v":0.9},null,"U.S. EPA/ORD 1993"]
["Amount of water consumed per day",null,"Amnt = alpha BW beta"]
[null,"Amnt",{"$f":"C13*(C11^C14)","v":4.3399945764854612E-2},"liters","Eq"]
["Absorbed Dose","Dose","ConcWat  × Amnt ÷ BW"]
[null,"Central ",{"$f":"C7*C$16/C$11","v":8.5492699691220222E-3},"mg/kg","Eq"]
[null,"Lower ",{"$f":"C8*C$16/C$11","v":1.46692018582619E-3},"mg/kg","Eq"]
[null,"Upper ",{"$f":"C9*C$16/C$11","v":3.3715349605179086E-2},"mg/kg","Eq"]

{"sheet":"F12c","index":57,"n_rows":20,"n_cols":5,"rows_kept":20,"cut":false,"hidden":false,"merged":[[16,0,19,0],[0,0,0,4],[1,1,1,3],[2,1,2,3],[5,0,8,0],[11,0,13,0],[14,0,15,0]]}
["Consumption of contaminated water by Mammal, carnivorous, Longer-term Concentrations "]
["Short Title","Longer-term Concentrations",null,null,"WatAlloV6"]
["Receptor","Mammal, carnivorous"]
["Duration","Chronic",null,null,"Scenario parameter"]
["Parameter/Assumption","Code / Range","Equation/   Value","Units","Reference/Designation"]
["Concentration in water","ConcWat"]
[null,"Central ",{"$f":"B04a!Chronic_C","v":7.8795213389830948E-2},"mg/L","='B04a'!Chronic_C"]
[null,"Lower ",{"$f":"B04a!Chronic_L","v":1.3520018608079512E-2},null,"='B04a'!Chronic_L"]
[null,"Upper ",{"$f":"B04a!Chronic_U","v":0.3107409376763034},null,"='B04a'!Chronic_U"]
["Receptor"]
["Body weight","BW",{"$f":"A02b!$C$47","v":5},"kg","U.S. EPA/ORD 1993"]
["Allometric coefficients forwater consumption per day in liters and BW in kilograms"]
[null,"alpha",{"$f":"A02b!$C$50","v":9.9000000000000005E-2},null,"U.S. EPA/ORD 1993"]
[null,"beta",{"$f":"A02b!$C$51","v":0.9},null,"U.S. EPA/ORD 1993"]
["Amount of water consumed per day",null,"Amnt = alpha BW beta"]
[null,"Amnt",{"$f":"C13*(C11^C14)","v":0.42141326164778842},"liters","Eq"]
["Absorbed Dose","Dose","ConcWat  × Amnt ÷ BW"]
[null,"Central ",{"$f":"C7*C$16/C$11","v":6.6410695753684303E-3},"mg/kg","Eq"]
[null,"Lower ",{"$f":"C8*C$16/C$11","v":1.139503027833916E-3},"mg/kg","Eq"]
[null,"Upper ",{"$f":"C9*C$16/C$11","v":2.619007041473263E-2},"mg/kg","Eq"]

{"sheet":"F12d","index":58,"n_rows":20,"n_cols":5,"rows_kept":20,"cut":false,"hidden":false,"merged":[[16,0,19,0],[0,0,0,4],[1,1,1,3],[2,1,2,3],[5,0,8,0],[11,0,13,0],[14,0,15,0]]}
["Consumption of contaminated water by Mammal, large, Longer-term Concentrations "]
["Short Title","Longer-term Concentrations",null,null,"WatAlloV6"]
["Receptor","Mammal, large"]
["Duration","Chronic",null,null,"Scenario parameter"]
["Parameter/Assumption","Code / Range","Equation/   Value","Units","Reference/Designation"]
["Concentration in water","ConcWat"]
[null,"Central ",{"$f":"B04a!Chronic_C","v":7.8795213389830948E-2},"mg/L","='B04a'!Chronic_C"]
[null,"Lower ",{"$f":"B04a!Chronic_L","v":1.3520018608079512E-2},null,"='B04a'!Chronic_L"]
[null,"Upper ",{"$f":"B04a!Chronic_U","v":0.3107409376763034},null,"='B04a'!Chronic_U"]
["Receptor"]
["Body weight","BW",{"$f":"A02b!$C$61","v":70},"kg","Default"]
["Allometric coefficients forwater consumption per day in liters and BW in kilograms"]
[null,"alpha",{"$f":"A02b!$C$64","v":9.9000000000000005E-2},null,"U.S. EPA/ORD 1993"]
[null,"beta",{"$f":"A02b!$C$65","v":0.9},null,"U.S. EPA/ORD 1993"]
["Amount of water consumed per day",null,"Amnt = alpha BW beta"]
[null,"Amnt",{"$f":"C13*(C11^C14)","v":4.5313064115862725},"liters","Eq"]
["Absorbed Dose","Dose","ConcWat  × Amnt ÷ BW"]
[null,"Central ",{"$f":"C7*C$16/C$11","v":5.1006465090807068E-3},"mg/kg","Eq"]
[null,"Lower ",{"$f":"C8*C$16/C$11","v":8.7519067147937718E-4},"mg/kg","Eq"]
[null,"Upper ",{"$f":"C9*C$16/C$11","v":2.011517718907091E-2},"mg/kg","Eq"]

{"sheet":"F12e","index":59,"n_rows":20,"n_cols":5,"rows_kept":20,"cut":false,"hidden":false,"merged":[[16,0,19,0],[0,0,0,4],[1,1,1,3],[2,1,2,3],[5,0,8,0],[11,0,13,0],[14,0,15,0]]}
["Consumption of contaminated water by Bird, small, Longer-term Concentrations "]
["Short Title","Longer-term Concentrations",null,null,"WatAlloV6"]
["Receptor","Bird, small"]
["Duration","Chronic",null,null,"Scenario parameter"]
["Parameter/Assumption","Code / Range","Equation/   Value","Units","Reference/Designation"]
["Concentration in water","ConcWat"]
[null,"Central ",{"$f":"B04a!Chronic_C","v":7.8795213389830948E-2},"mg/L","='B04a'!Chronic_C"]
[null,"Lower ",{"$f":"B04a!Chronic_L","v":1.3520018608079512E-2},null,"='B04a'!Chronic_L"]
[null,"Upper ",{"$f":"B04a!Chronic_U","v":0.3107409376763034},null,"='B04a'!Chronic_U"]
["Receptor"]
["Body weight","BW",{"$f":"A02b!$C$31","v":0.01},"kg","Default"]
["Allometric coefficients forwater consumption per day in liters and BW in kilograms"]
[null,"alpha",{"$f":"A02b!$C$34","v":5.8999999999999997E-2},null,"U.S. EPA/ORD 1993"]
[null,"beta",{"$f":"A02b!$C$35","v":0.67},null,"U.S. EPA/ORD 1993"]
["Amount of water consumed per day",null,"Amnt = alpha BW beta"]
[null,"Amnt",{"$f":"C13*(C11^C14)","v":2.6968203187277624E-3},"liters","Eq"]
["Absorbed Dose","Dose","ConcWat  × Amnt ÷ BW"]
[null,"Central ",{"$f":"C7*C$16/C$11","v":2.1249653248818594E-2},"mg/kg","Eq"]
[null,"Lower ",{"$f":"C8*C$16/C$11","v":3.6461060891846268E-3},"mg/kg","Eq"]
[null,"Upper ",{"$f":"C9*C$16/C$11","v":8.3801247458597225E-2},"mg/kg","Eq"]

{"sheet":"F12f","index":60,"n_rows":20,"n_cols":5,"rows_kept":20,"cut":false,"hidden":false,"merged":[[16,0,19,0],[0,0,0,4],[1,1,1,3],[2,1,2,3],[5,0,8,0],[11,0,13,0],[14,0,15,0]]}
["Consumption of contaminated water by Bird, large, Longer-term Concentrations "]
["Short Title","Longer-term Concentrations",null,null,"WatAlloV6"]
["Receptor","Bird, large"]
["Duration","Chronic",null,null,"Scenario parameter"]
["Parameter/Assumption","Code / Range","Equation/   Value","Units","Reference/Designation"]
["Concentration in water","ConcWat"]
[null,"Central ",{"$f":"B04a!Chronic_C","v":7.8795213389830948E-2},"mg/L","='B04a'!Chronic_C"]
[null,"Lower ",{"$f":"B04a!Chronic_L","v":1.3520018608079512E-2},null,"='B04a'!Chronic_L"]
[null,"Upper ",{"$f":"B04a!Chronic_U","v":0.3107409376763034},null,"='B04a'!Chronic_U"]
["Receptor"]
["Body weight","BW",{"$f":"A02b!$C$15","v":4},"kg","Default"]
["Allometric coefficients forwater consumption per day in liters and BW in kilograms"]
[null,"alpha",{"$f":"A02b!$C$18","v":5.8999999999999997E-2},null,"U.S. EPA/ORD 1993"]
[null,"beta",{"$f":"A02b!$C$19","v":0.67},null,"U.S. EPA/ORD 1993"]
["Amount of water consumed per day",null,"Amnt = alpha BW beta"]
[null,"Amnt",{"$f":"C13*(C11^C14)","v":0.14935927808849303},"liters","Eq"]
["Absorbed Dose","Dose","ConcWat  × Amnt ÷ BW"]
[null,"Central ",{"$f":"C7*C$16/C$11","v":2.9421990471834776E-3},"mg/kg","Eq"]
[null,"Lower ",{"$f":"C8*C$16/C$11","v":5.0483505476143706E-4},"mg/kg","Eq"]
[null,"Upper ",{"$f":"C9*C$16/C$11","v":1.160301053096852E-2},"mg/kg","Eq"]

{"sheet":"F13a","index":61,"n_rows":50,"n_cols":5,"rows_kept":50,"cut":false,"hidden":false,"merged":[[36,0,39,0],[41,0,44,0],[45,0,48,0],[12,0,15,0],[16,0,19,0],[22,0,24,0],[27,0,28,0],[30,0,31,0],[32,0,33,0],[7,0,10,0],[0,0,0,4],[1,1,1,3],[2,1,2,3],[3,1,3,3],[4,1,4,3]]}
["Chronic scenario for the consumption of Contaminated Fish (Longer-term) by Mammal, large carnivorous "]
["Short Title","Fish consumption, accidental spill",null,null,"FishKcalV6"]
["Predator","Mammal, large carnivorous"]
["Food Item (Prey)","Fish"]
["Duration","Chronic",null,null,"Scenario parameter"]
["Parameter/Assumption","Code / Range","Equation/   Value","Units","Reference/Designation"]
["Water"]
["Concentration in water","ConcWat"]
[null,"Central ",{"$f":"B04a!Chronic_C","v":7.8795213389830948E-2},"mg/L","='B04a'!Chronic_C"]
[null,"Lower ",{"$f":"B04a!Chronic_L","v":1.3520018608079512E-2},null,"='B04a'!Chronic_L"]
[null,"Upper ",{"$f":"B04a!Chronic_U","v":0.3107409376763034},null,"='B04a'!Chronic_U"]
["Fish"]
["Bioconcentration factor","BCF"]
[null,"Central ",{"$f":"'B01'!$C$6","v":0.5},"L/kg","Section 3.2.3.5."]
[null,"Lower ",{"$f":"'B01'!$C$6","v":0.5},null,"Section 3.2.3.5."]
[null,"Upper ",{"$f":"'B01'!$C$6","v":0.5},null,"Section 3.2.3.5."]
["Concentration in fish","ConcFish","ConcWat × BCF"]
[null,"Central ",{"$f":"C9*C14","v":3.9397606694915474E-2},"mg/kg","Eq"]
[null,"Lower ",{"$f":"C10*C15","v":6.760009304039756E-3},null,"Eq"]
[null,"Upper ",{"$f":"C11*C16","v":0.1553704688381517},null,"Eq"]
["Receptor"]
["Body weight","BW",{"$f":"A02b!$C$52","v":70},"kg","Reid 2006"]
["Allometric coefficients for caloric requirement per day in kilocalories and BW in grams"]
[null,"alpha",{"$f":"A02b!$C$53","v":0.61670000000000003},null,"U.S. EPA/ORD 1993"]
[null,"beta",{"$f":"A02b!$C$54","v":0.86199999999999999},null,"U.S. EPA/ORD 1993"]
["Caloric requirement per day","KR",{"$f":"C24*(C22*1000)^C25","v":9258.6668828796119},"kcal/day","Eq"]
["Caloric content of commodity (dry weight)","KCD",4.47,"kcal/gdw [Note 1]","WkMk Documentation"]
["Food consumed per day (dry weight)","AmntDry"," = KR ÷ KCD"]
[null,null,{"$f":"C26/C27","v":2071.2901303981234},"gdry/day","Eq"]
["Water content of vegetation as a proportion","PropWater",0.7,"gwater/gfood","WkMk Documentation"]
["Dry weight content of vegetation as a proportion","PropDry"," = 1-PropWater"]
[null,null,{"$f":"1-C30","v":0.30000000000000004},"gdry/gfood","Eq"]
["Amount of fish consumed per day,  wet weight","AmntFish"," = (AmntDry ÷ PropDry) ÷ (1000g/kg)"]
[null,"Central ",{"$f":"(C29/C32)/1000","v":6.90430043466041},"kgfood/day","Eq"]
[null,"Lower ",{"$f":"C34*0.3","v":2.0712901303981228},"Note 1","Eq"]
[null,"Upper ",{"$f":"C34*1.7","v":11.737310738922696},"Note 1","Eq"]
["Proportion of diet that is contaminated","Prop"]
[null,"Central ",0.3,"Unitless","Scenario parameter"]
[null,"Lower ",0.1,null,"Scenario parameter"]
[null,"Upper ",1,null,"Scenario parameter"]
["Dose"]
["Toxic Equivalency Factor for formulation:  (See risk assessment if this has a value other than 1.)","TEF"]
[null,"Central ",{"$f":"'A01'!C$37","v":1},"Unitless","Worksheet A01"]
[null,"Lower ",{"$f":"'A01'!C$38","v":1},"Note 2","Worksheet A01"]
[null,"Upper ",{"$f":"'A01'!C$39","v":1},"Note 2","Worksheet A01"]
["Dose","Dose","= ConcFish × AmntFish × Prop ÷ BW"]
[null,"Central ",{"$f":"C18*C34*C38/C$22","v":1.1657696272640776E-3},"mg/kg","Eq"]
[null,"Lower ",{"$f":"C19*C35*C39/C$22","v":2.0002772218367189E-5},"mg/kg","Eq"]
[null,"Upper ",2.6051878177221315E-2,"mg/kg","Eq"]
[null,null,null,null,"FishKcalV6"]

{"sheet":"F13b","index":62,"n_rows":50,"n_cols":5,"rows_kept":50,"cut":false,"hidden":false,"merged":[[36,0,39,0],[41,0,44,0],[45,0,48,0],[12,0,15,0],[16,0,19,0],[22,0,24,0],[27,0,28,0],[30,0,31,0],[32,0,33,0],[7,0,10,0],[0,0,0,4],[1,1,1,3],[2,1,2,3],[3,1,3,3],[4,1,4,3]]}
["Chronic scenario for the consumption of Contaminated Fish (Longer-term) by Mammal, carnivorous "]
["Short Title","Fish consumption, accidental spill",null,null,"FishKcalV6"]
["Predator","Mammal, carnivorous"]
["Food Item (Prey)","Fish"]
["Duration","Chronic",null,null,"Scenario parameter"]
["Parameter/Assumption","Code / Range","Equation/   Value","Units","Reference/Designation"]
["Water"]
["Concentration in water","ConcWat"]
[null,"Central ",{"$f":"B04a!Chronic_C","v":7.8795213389830948E-2},"mg/L","='B04a'!Chronic_C"]
[null,"Lower ",{"$f":"B04a!Chronic_L","v":1.3520018608079512E-2},null,"='B04a'!Chronic_L"]
[null,"Upper ",{"$f":"B04a!Chronic_U","v":0.3107409376763034},null,"='B04a'!Chronic_U"]
["Fish"]
["Bioconcentration factor","BCF"]
[null,"Central ",{"$f":"'B01'!$C$6","v":0.5},"L/kg","Section 3.2.3.5."]
[null,"Lower ",{"$f":"'B01'!$C$6","v":0.5},null,"Section 3.2.3.5."]
[null,"Upper ",{"$f":"'B01'!$C$6","v":0.5},null,"Section 3.2.3.5."]
["Concentration in fish","ConcFish","ConcWat × BCF"]
[null,"Central ",{"$f":"C9*C14","v":3.9397606694915474E-2},"mg/kg","Eq"]
[null,"Lower ",{"$f":"C10*C15","v":6.760009304039756E-3},null,"Eq"]
[null,"Upper ",{"$f":"C11*C16","v":0.1553704688381517},null,"Eq"]
["Receptor"]
["Body weight","BW",{"$f":"A02b!$C$47","v":5},"kg","U.S. EPA/ORD 1993"]
["Allometric coefficients for caloric requirement per day in kilocalories and BW in grams"]
[null,"alpha",{"$f":"A02b!$C$48","v":0.61670000000000003},null,"U.S. EPA/ORD 1993"]
[null,"beta",{"$f":"A02b!$C$49","v":0.86199999999999999},null,"U.S. EPA/ORD 1993"]
["Caloric requirement per day","KR",{"$f":"C24*(C22*1000)^C25","v":951.88852658889334},"kcal/day","Eq"]
["Caloric content of commodity (dry weight)","KCD",4.47,"kcal/gdw [Note 1]","WkMk Documentation"]
["Food consumed per day (dry weight)","AmntDry"," = KR ÷ KCD"]
[null,null,{"$f":"C26/C27","v":212.95045337559137},"gdry/day","Eq"]
["Water content of vegetation as a proportion","PropWater",0.7,"gwater/gfood","WkMk Documentation"]
["Dry weight content of vegetation as a proportion","PropDry"," = 1-PropWater"]
[null,null,{"$f":"1-C30","v":0.30000000000000004},"gdry/gfood","Eq"]
["Amount of fish consumed per day,  wet weight","AmntFish"," = (AmntDry ÷ PropDry) ÷ (1000g/kg)"]
[null,"Central ",{"$f":"(C29/C32)/1000","v":0.70983484458530455},"kgfood/day","Eq"]
[null,"Lower ",{"$f":"C34*0.3","v":0.21295045337559135},"Note 1","Eq"]
[null,"Upper ",{"$f":"C34*1.7","v":1.2067192357950176},"Note 1","Eq"]
["Proportion of diet that is contaminated","Prop"]
[null,"Central ",0.3,"Unitless","Scenario parameter"]
[null,"Lower ",0.1,null,"Scenario parameter"]
[null,"Upper ",1,null,"Scenario parameter"]
["Dose"]
["Toxic Equivalency Factor for formulation:  (See risk assessment if this has a value other than 1.)","TEF"]
[null,"Central ",{"$f":"'A01'!C$37","v":1},"Unitless","Worksheet A01"]
[null,"Lower ",{"$f":"'A01'!C$38","v":1},"Note 2","Worksheet A01"]
[null,"Upper ",{"$f":"'A01'!C$39","v":1},"Note 2","Worksheet A01"]
["Dose","Dose","= ConcFish × AmntFish × Prop ÷ BW"]
[null,"Central ",{"$f":"C18*C34*C38/C$22","v":1.6779476415190967E-3},"mg/kg","Eq"]
[null,"Lower ",{"$f":"C19*C35*C39/C$22","v":2.8790940922369635E-5},"mg/kg","Eq"]
[null,"Upper ",3.7497706684297603E-2,"mg/kg","Eq"]
[null,null,null,null,"FishKcalV6"]

{"sheet":"F13c","index":63,"n_rows":50,"n_cols":5,"rows_kept":50,"cut":false,"hidden":false,"merged":[[36,0,39,0],[41,0,44,0],[45,0,48,0],[12,0,15,0],[16,0,19,0],[22,0,24,0],[27,0,28,0],[30,0,31,0],[32,0,33,0],[7,0,10,0],[0,0,0,4],[1,1,1,3],[2,1,2,3],[3,1,3,3],[4,1,4,3]]}
["Chronic scenario for the consumption of Contaminated Fish (Longer-term) by Bird, piscivorous "]
["Short Title","Fish consumption, accidental spill",null,null,"FishKcalV6"]
["Predator","Bird, piscivorous"]
["Food Item (Prey)","Fish"]
["Duration","Chronic",null,null,"Scenario parameter"]
["Parameter/Assumption","Code / Range","Equation/   Value","Units","Reference/Designation"]
["Water"]
["Concentration in water","ConcWat"]
[null,"Central ",{"$f":"B04a!Chronic_C","v":7.8795213389830948E-2},"mg/L","='B04a'!Chronic_C"]
[null,"Lower ",{"$f":"B04a!Chronic_L","v":1.3520018608079512E-2},null,"='B04a'!Chronic_L"]
[null,"Upper ",{"$f":"B04a!Chronic_U","v":0.3107409376763034},null,"='B04a'!Chronic_U"]
["Fish"]
["Bioconcentration factor","BCF"]
[null,"Central ",{"$f":"'B01'!$C$6","v":0.5},"L/kg","Section 3.2.3.5."]
[null,"Lower ",{"$f":"'B01'!$C$6","v":0.5},null,"Section 3.2.3.5."]
[null,"Upper ",{"$f":"'B01'!$C$6","v":0.5},null,"Section 3.2.3.5."]
["Concentration in fish","ConcFish","ConcWat × BCF"]
[null,"Central ",{"$f":"C9*C14","v":3.9397606694915474E-2},"mg/kg","Eq"]
[null,"Lower ",{"$f":"C10*C15","v":6.760009304039756E-3},null,"Eq"]
[null,"Upper ",{"$f":"C11*C16","v":0.1553704688381517},null,"Eq"]
["Receptor"]
["Body weight","BW",{"$f":"A02b!$C$24","v":2.4},"kg","Sibley 2000"]
["Allometric coefficients for caloric requirement per day in kilocalories and BW in grams"]
[null,"alpha",{"$f":"A02b!$C$27","v":1.9159999999999999},null,"U.S. EPA/ORD 1993"]
[null,"beta",{"$f":"A02b!$C$28","v":0.70399999999999996},null,"U.S. EPA/ORD 1993"]
["Caloric requirement per day","KR",{"$f":"C24*(C22*1000)^C25","v":459.26591923752829},"kcal/day","Eq"]
["Caloric content of commodity (dry weight)","KCD",3.87,"kcal/gdw [Note 1]","WkMk Documentation"]
["Food consumed per day (dry weight)","AmntDry"," = KR ÷ KCD"]
[null,null,{"$f":"C26/C27","v":118.67336414406415},"gdry/day","Eq"]
["Water content of vegetation as a proportion","PropWater",0.7,"gwater/gfood","WkMk Documentation"]
["Dry weight content of vegetation as a proportion","PropDry"," = 1-PropWater"]
[null,null,{"$f":"1-C30","v":0.30000000000000004},"gdry/gfood","Eq"]
["Amount of fish consumed per day,  wet weight","AmntFish"," = (AmntDry ÷ PropDry) ÷ (1000g/kg)"]
[null,"Central ",{"$f":"(C29/C32)/1000","v":0.39557788048021375},"kgfood/day","Eq"]
[null,"Lower ",{"$f":"C34*0.3","v":0.11867336414406413},"Note 1","Eq"]
[null,"Upper ",{"$f":"C34*1.7","v":0.67248239681636335},"Note 1","Eq"]
["Proportion of diet that is contaminated","Prop"]
[null,"Central ",0.3,"Unitless","Scenario parameter"]
[null,"Lower ",0.1,null,"Scenario parameter"]
[null,"Upper ",1,null,"Scenario parameter"]
["Dose"]
["Toxic Equivalency Factor for formulation:  (See risk assessment if this has a value other than 1.)","TEF"]
[null,"Central ",{"$f":"'A01'!C$37","v":1},"Unitless","Worksheet A01"]
[null,"Lower ",{"$f":"'A01'!C$38","v":1},"Note 2","Worksheet A01"]
[null,"Upper ",{"$f":"'A01'!C$39","v":1},"Note 2","Worksheet A01"]
["Dose","Dose","= ConcFish × AmntFish × Prop ÷ BW"]
[null,"Central ",{"$f":"C18*C34*C38/C$22","v":1.9481027190459681E-3},"mg/kg","Eq"]
[null,"Lower ",{"$f":"C19*C35*C39/C$22","v":3.3426376906482148E-5},"mg/kg","Eq"]
[null,"Upper ",4.3534960532817649E-2,"mg/kg","Eq"]
[null,null,null,null,"FishKcalV6"]

{"sheet":"G01","index":64,"n_rows":74,"n_cols":10,"rows_kept":74,"cut":false,"hidden":false,"merged":[[2,5,3,5],[0,0,0,4],[1,2,1,4],[2,0,3,0],[2,1,3,1],[2,2,2,4]]}
["Summary of Exposure Assessments for the Terrestrial Animals",null,null,null,null,"G01V6"]
["Application Rate:",{"$f":"'A01'!ApRt_C","v":1}," lb a.e./acre",null,null,"G01V6"]
["Scenario","Receptor","mg/kg/day or mg/kg/event",null,null,"Detail Worksheet"]
[null,null,"Central","Lower","Upper"]
["Accidental Acute Exposures"]
["   Direct Spray",null,null,null,null,null,null,null,null,"Spray: Partial Abs"]
["first-order absorption","Small mammal (20g)","No Exposure Assessment",null,null,"F01a",null,null,null,"Spray: 100% Abs"]
["100% absorption","Small mammal (20g)","No Exposure Assessment",null,null,"F01b"]
["   Contaminated Water",null,null,null,null,null,null,null,null,"Spill: Sm Mam"]
["Spill","Small mammal (20g)",{"$f":"F02a!Dose_C","v":0.33246760068550713},{"$f":"F02a!Dose_L","v":1.3298704027420285E-2},{"$f":"F02a!Dose_U","v":2.659740805484057},"F02a",null,null,null,"Spill: Med Mam"]
["Spill","Larger Mammal (400g)",{"$f":"F02b!Dose_C","v":0.24640319207996203},{"$f":"F02b!Dose_L","v":9.8561276831984831E-3},{"$f":"F02b!Dose_U","v":1.9712255366396962},"F02b",null,null,null,"Spill: Canid"]
["Spill","Canid (5 kg)",{"$f":"F02c!Dose_C","v":0.19140590344042549},{"$f":"F02c!Dose_L","v":7.6562361376170205E-3},{"$f":"F02c!Dose_U","v":1.5312472275234039},"F02c",null,null,null,"Spill: Lrg Mam"]
["Spill","Large Mammal (70g)",{"$f":"F02d!Dose_C","v":0.14700852658160607},{"$f":"F02d!Dose_L","v":5.8803410632642427E-3},{"$f":"F02d!Dose_U","v":1.1760682126528486},"F02d",null,null,null,"Spill: Sm Brd"]
["Spill","Small bird (10g)",{"$f":"F02e!Dose_C","v":0.61244789438307479},{"$f":"F02e!Dose_L","v":2.4497915775322995E-2},{"$f":"F02e!Dose_U","v":4.8995831550645983},"F02e",null,null,null,"Spill: Lrg Brd"]
["Spill","Large Bird (4 kg)",{"$f":"F02f!Dose_C","v":8.4798730134741915E-2},{"$f":"F02f!Dose_L","v":3.3919492053896771E-3},{"$f":"F02f!Dose_U","v":0.67838984107793532},"F02f"]
["   Consumption of contaminated Fish",null,null,null,null,null,null,null,null,"Fish: Bear"]
["Spill","Large Mammalian Carnivore (70 kg)",{"$f":"F03a!Dose_C","v":3.3599284900958121E-2},{"$f":"F03a!Dose_L","v":1.343971396038325E-4},{"$f":"F03a!Dose_U","v":1.5231675821767681},"F03a",null,null,null,"Fish: Fox"]
["Spill","Canid (5 kg)",{"$f":"F03b!Dose_C","v":4.8361047961596793E-2},{"$f":"F03b!Dose_L","v":1.9344419184638722E-4},{"$f":"F03b!Dose_U","v":2.1923675075923876},"F03b",null,null,null,"Fish: Bird"]
["Spill","Fish-eating bird (2.4 kg)",{"$f":"F03c!Dose_C","v":5.6147335410660339E-2},{"$f":"F03c!Dose_L","v":2.245893416426414E-4},{"$f":"F03c!Dose_U","v":2.5453458719499351},"F03c"]
["Non-Accidental Acute Exposures"]
["   Contaminated Fruit (Lowest Residue Rate)"]
[null,"Small mammal (20g)","No Exposure Assessment",null,null,"F04a",null,null,null,"Grass: Sm Mam"]
[null,"Larger Mammal (400g)","No Exposure Assessment",null,null,"F04b",null,null,null,"Grass: Med Mam"]
[null,"Large Mammal (70g)","No Exposure Assessment",null,null,"F04c",null,null,null,"Grass: Lrg Mam"]
[null,"Small bird (10g)","No Exposure Assessment",null,null,"F04d",null,null,null,"Grass: Sm Brd"]
[null,"Large Bird (4 kg)","No Exposure Assessment",null,null,"F04e",null,null,null,"Grass: Lrg Brd"]
["   Contaminated Vegetation (Short Grass - Highest Residue Rate)"]
[null,"Small mammal (20g)","No Exposure Assessment",null,null,"F05a",null,null,null,"Veg: Sm Mam"]
[null,"Larger Mammal (400g)","No Exposure Assessment",null,null,"F05b",null,null,null,"Veg: Med Mam"]
[null,"Large Mammal","No Exposure Assessment",null,null,"F05c",null,null,null,"Veg: Lrg Mam"]
[null,"Small bird (10g)","No Exposure Assessment",null,null,"F05d",null,null,null,"Veg: Sm Brd"]
[null,"Large Bird (4 kg)","No Exposure Assessment",null,null,"F05e",null,null,null,"Veg: Lrg Brd"]
["   Contaminated Water"]
[null,"Small mammal (20g)",{"$f":"F06a!Dose_C","v":1.7943020808022909E-2},{"$f":"F06a!Dose_L","v":5.382906242406873E-3},{"$f":"F06a!Dose_U","v":5.3829062424068728E-2},"F06a",null,null,null,"Water: Sm Mam"]
[null,"Larger Mammal (400g)",{"$f":"F06b!Dose_C","v":1.3298190841868561E-2},{"$f":"F06b!Dose_L","v":3.989457252560568E-3},{"$f":"F06b!Dose_U","v":3.9894572525605687E-2},"F06b",null,null,null,"Water: Med Mam"]
[null,"Canid (5 kg)",{"$f":"F06c!Dose_C","v":1.0330029455888843E-2},{"$f":"F06c!Dose_L","v":3.0990088367666528E-3},{"$f":"F06c!Dose_U","v":3.0990088367666528E-2},"F06c",null,null,null,"Water: Canid"]
[null,"Large Mammal (70g)",{"$f":"F06d!Dose_C","v":7.9339371595059972E-3},{"$f":"F06d!Dose_L","v":2.3801811478517993E-3},{"$f":"F06d!Dose_U","v":2.3801811478517992E-2},"F06d",null,null,null,"Water: Lrg Mam"]
[null,"Small bird (10g)",{"$f":"F06e!Dose_C","v":3.3053342010129792E-2},{"$f":"F06e!Dose_L","v":9.9160026030389366E-3},{"$f":"F06e!Dose_U","v":9.916002603038937E-2},"F06e",null,null,null,"Water: Sm Brd"]
[null,"Large Bird (4 kg)",{"$f":"F06f!Dose_C","v":4.576522272138262E-3},{"$f":"F06f!Dose_L","v":1.3729566816414786E-3},{"$f":"F06f!Dose_U","v":1.3729566816414787E-2},"F06f",null,null,null,"Water: Lrg Brd"]
["   Contaminated Insects"]
[null,"Small mammal (20g)","No Exposure Assessment",null,null,"F07a",null,null,null,"Insects: Sm Mam"]
[null,"Larger Mammal (400g)","No Exposure Assessment",null,null,"F07b",null,null,null,"Insects: Med Mam"]
[null,"Small bird (10g)","No Exposure Assessment",null,null,"F07c",null,null,null,"Insects: Sm Brd"]
["   Consumption of small mammal (after direct spray) by predator"]
[null,"Canid (5 kg)","No Exposure Assessment",null,null,"F08a",null,null,null,"Canid Eats Sm Mam"]
[null,"Carnivorous bird (640 g)","No Exposure Assessment",null,null,"F08b",null,null,null,"Bird Eats Sm Mam"]
["   Consumption of contaminated Fish"]
[null,"Large Mammalian Carnivore (70 kg)",{"$f":"F09a!Dose_C","v":1.8133275749863526E-3},{"$f":"F09a!Dose_L","v":5.4399827249590565E-5},{"$f":"F09a!Dose_U","v":3.0826568774767988E-2},"F09a",null,null,null,"Fish: Lrg Mam"]
[null,"Canid (5 kg)",{"$f":"F09b!Dose_C","v":2.6100085785307975E-3},{"$f":"F09b!Dose_L","v":7.8300257355923931E-5},{"$f":"F09b!Dose_U","v":4.4370145835023557E-2},"F09b",null,null,null,"Fish: Canid"]
[null,"Fish-eating bird (2.4 kg)",{"$f":"F09c!Dose_C","v":3.0302285260617179E-3},{"$f":"F09c!Dose_L","v":9.0906855781851538E-5},{"$f":"F09c!Dose_U","v":5.1513884943049197E-2},"F09c",null,null,null,"Fish: Brd"]
["Chronic/Longer Term Exposures"]
["   Contaminated Fruit (Lowest Residue Rate)"]
[null,"Small mammal (20g)","No Exposure Assessment",null,null,"F10a",null,null,"Grass: Sm Mam"]
[null,"Larger Mammal (400g)","No Exposure Assessment",null,null,"F10b",null,null,"Grass: Med Mam"]
[null,"Large Mammal (70g)","No Exposure Assessment",null,null,"F10c",null,null,"Grass: Lrg Mam"]
[null,"Small bird (10g)","No Exposure Assessment",null,null,"F10d",null,null,"Grass: Sm Brd"]
[null,"Large Bird (4 kg)","No Exposure Assessment",null,null,"F10e",null,null,"Grass: Lrg Brd"]
["   Contaminated Vegetation (Short Grass - Highest Residue Rate)"]
[null,"Small mammal (20g)","No Exposure Assessment",null,null,"F11a",null,null,"Veg: Sm Mam"]
[null,"Larger Mammal (400g)","No Exposure Assessment",null,null,"F11b",null,null,"Veg: Med Mam"]
[null,"Large Mammal (70g)","No Exposure Assessment",null,null,"F11c",null,null,"Veg: Lrg Mam"]
[null,"Small bird (10g)","No Exposure Assessment",null,null,"F11d",null,null,"Veg: Sm Brd"]
[null,"Large Bird (4 kg)","No Exposure Assessment",null,null,"F11e",null,null,"Veg: Lrg Brd"]
["   Contaminated Water"]
[null,"Small mammal (20g)",{"$f":"F12a!Dose_C","v":1.1535383329467037E-2},{"$f":"F12a!Dose_L","v":1.9792902456413938E-3},{"$f":"F12a!Dose_U","v":4.5491542925585778E-2},"F12a",null,null,"Water: Sm Mam"]
[null,"Larger Mammal (400g)",{"$f":"F12b!Dose_C","v":8.5492699691220222E-3},{"$f":"F12b!Dose_L","v":1.46692018582619E-3},{"$f":"F12b!Dose_U","v":3.3715349605179086E-2},"F12b",null,null,"Water: Med Mam"]
[null,"Canid (5 kg)",{"$f":"F12c!Dose_C","v":6.6410695753684303E-3},{"$f":"F12c!Dose_L","v":1.139503027833916E-3},{"$f":"F12c!Dose_U","v":2.619007041473263E-2},"F12c",null,null,"Water: Canid"]
[null,"Large Mammal (70g)",{"$f":"F12d!Dose_C","v":5.1006465090807068E-3},{"$f":"F12d!Dose_L","v":8.7519067147937718E-4},{"$f":"F12d!Dose_U","v":2.011517718907091E-2},"F12d",null,null,"Water: Lrg Mam"]
[null,"Small bird (10g)",{"$f":"F12e!Dose_C","v":2.1249653248818594E-2},{"$f":"F12e!Dose_L","v":3.6461060891846268E-3},{"$f":"F12e!Dose_U","v":8.3801247458597225E-2},"F12e",null,null,"Water: Sm Brd"]
[null,"Large Bird (4 kg)",{"$f":"F12f!Dose_C","v":2.9421990471834776E-3},{"$f":"F12f!Dose_L","v":5.0483505476143706E-4},{"$f":"F12f!Dose_U","v":1.160301053096852E-2},"F12f",null,null,"Water: Lrg Brd"]
["   Consumption of contaminated Fish"]
[null,"Large Mammalian Carnivore (70 kg)",{"$f":"F13a!Dose_C","v":1.1657696272640776E-3},{"$f":"F13a!Dose_L","v":2.0002772218367189E-5},{"$f":"F13a!Dose_U","v":2.6051878177221315E-2},"F13a",null,null,"Fish: Lrg Mam"]
[null,"Canid (5 kg)",{"$f":"F13b!Dose_C","v":1.6779476415190967E-3},{"$f":"F13b!Dose_L","v":2.8790940922369635E-5},{"$f":"F13b!Dose_U","v":3.7497706684297603E-2},"F13b",null,null,"Fish: Canid"]
[null,"Fish-eating bird (2.4 kg)",{"$f":"F13c!Dose_C","v":1.9481027190459681E-3},{"$f":"F13c!Dose_L","v":3.3426376906482148E-5},{"$f":"F13c!Dose_U","v":4.3534960532817649E-2},"F13c",null,null,"Fish: Brd"]

{"sheet":"G02","index":65,"n_rows":74,"n_cols":10,"rows_kept":74,"cut":false,"hidden":false,"merged":[[2,5,3,5],[0,0,0,4],[1,2,1,4],[2,0,3,0],[2,1,3,1],[2,2,2,4]]}
["Summary of Hazard Quotients (Toxicity) for the Terrestrial Animals",null,null,null,null,"G01V6"]
["Application Rate:",{"$f":"'A01'!ApRt_C","v":1}," lb a.e./acre",null,null,"G01V6"]
["Scenario","Receptor","Hazard Quotients",null,null,"Toxicity Value"]
[null,null,"Central","Lower","Upper"]
["Accidental Acute Exposures"]
["   Direct Spray",null,null,null,null,null,null,null,null,"Spray: Partial Abs"]
["first-order absorption","Small mammal (20g)","No exposure assessment.",null,null,null,null,null,null,"Spray: 100% Abs"]
["100% absorption","Small mammal (20g)","No exposure assessment."]
["   Contaminated Water",null,null,null,null,null,null,null,null,"Spill: Sm Mam"]
["Spill","Small mammal (20g)",{"$f":"F02a!$C$18/$F$10","v":4.5049810390990127E-4},{"$f":"F02a!$C$19/$F$10","v":1.8019924156396051E-5},{"$f":"F02a!$C$20/$F$10","v":3.6039848312792101E-3},{"$f":"'B02'!$E$6","v":738},"NOAEL",null,null,"Spill: Med Mam"]
["Spill","Larger Mammal (400g)",{"$f":"F02b!$C$18/$F$11","v":3.3387966406498917E-4},{"$f":"F02b!$C$19/$F$11","v":1.335518656259957E-5},{"$f":"F02b!$C$20/$F$11","v":2.6710373125199134E-3},{"$f":"'B02'!$E$6","v":738},"NOAEL",null,null,"Spill: Canid"]
["Spill","Canid (5 kg)",{"$f":"F02c!$C$18/$F$12","v":7.6562361376170194E-4},{"$f":"F02c!$C$19/$F$12","v":3.0624944550468084E-5},{"$f":"F02c!$C$20/$F$12","v":6.1249889100936155E-3},{"$f":"'B02'!$E$18","v":250},"NOAEL",null,null,"Spill: Lrg Mam"]
["Spill","Large Mammal (70g)",{"$f":"F02d!$C$18/$F$13","v":1.9919854550353125E-4},{"$f":"F02d!$C$19/$F$13","v":7.9679418201412496E-6},{"$f":"F02d!$C$20/$F$13","v":1.59358836402825E-3},{"$f":"'B02'!$E$6","v":738},"NOAEL",null,null,"Spill: Sm Brd"]
["Spill","Small bird (10g)",{"$f":"F02e!$C$18/$F$14","v":2.4400314517253975E-4},{"$f":"F02e!$C$19/$F$14","v":9.7601258069015918E-6},{"$f":"F02e!$C$20/$F$14","v":1.952025161380318E-3},{"$f":"'B02'!$E$8","v":2510},"NOAEL",null,null,"Spill: Lrg Brd"]
["Spill","Large Bird (4 kg)",{"$f":"F02f!$C$18/$F$15","v":3.3784354635355343E-5},{"$f":"F02f!$C$19/$F$15","v":1.3513741854142139E-6},{"$f":"F02f!$C$20/$F$15","v":2.7027483708284275E-4},{"$f":"'B02'!$E$8","v":2510},"NOAEL"]
["   Consumption of contaminated Fish",null,null,null,null,null,null,null,null,"Fish: Bear"]
["Spill","Large Mammalian Carnivore (70 kg)",{"$f":"F03a!$C$47/$F$17","v":4.5527486315661413E-5},{"$f":"F03a!$C$48/$F$17","v":1.8210994526264567E-7},{"$f":"F03a!$C$49/$F$17","v":2.0639127129766506E-3},{"$f":"'B02'!$E$6","v":738},"NOAEL",null,null,"Fish: Fox"]
["Spill","Canid (5 kg)",{"$f":"F03b!$C$47/$F$18","v":1.9344419184638716E-4},{"$f":"F03b!$C$48/$F$18","v":7.7377676738554887E-7},{"$f":"F03b!$C$49/$F$18","v":8.7694700303695503E-3},{"$f":"'B02'!$E$18","v":250},"NOAEL",null,null,"Fish: Bird"]
["Spill","Fish-eating bird (2.4 kg)",{"$f":"F03c!$C$47/$F$19","v":2.23694563389085E-5},{"$f":"F03c!$C$48/$F$19","v":8.9477825355634025E-8},{"$f":"F03c!$C$49/$F$19","v":1.0140820206971852E-3},{"$f":"'B02'!$E$8","v":2510},"NOAEL"]
["Non-Accidental Acute Exposures"]
["   Contaminated Fruit (Lowest Residue Rate)"]
[null,"Small mammal (20g)","No exposure assessment.",null,null,null,null,null,null,"Grass: Sm Mam"]
[null,"Larger Mammal (400g)","No exposure assessment.",null,null,null,null,null,null,"Grass: Med Mam"]
[null,"Large Mammal (70g)","No exposure assessment.",null,null,null,null,null,null,"Grass: Lrg Mam"]
[null,"Small bird (10g)","No exposure assessment.",null,null,null,null,null,null,"Grass: Sm Brd"]
[null,"Large Bird (4 kg)","No exposure assessment.",null,null,null,null,null,null,"Grass: Lrg Brd"]
["   Contaminated Vegetation (Short Grass - Highest Residue Rate)"]
[null,"Small mammal (20g)","No exposure assessment.",null,null,null,null,null,null,"Veg: Sm Mam"]
[null,"Larger Mammal (400g)","No exposure assessment.",null,null,null,null,null,null,"Veg: Med Mam"]
[null,"Large Mammal","No exposure assessment.",null,null,null,null,null,null,"Veg: Lrg Mam"]
[null,"Small bird (10g)","No exposure assessment.",null,null,null,null,null,null,"Veg: Sm Brd"]
[null,"Large Bird (4 kg)","No exposure assessment.",null,null,null,null,null,null,"Veg: Lrg Brd"]
["   Contaminated Water"]
[null,"Small mammal (20g)",{"$f":"F06a!$C$18/$F$34","v":2.4313036325234293E-5},{"$f":"F06a!$C$19/$F$34","v":7.2939108975702884E-6},{"$f":"F06a!$C$20/$F$34","v":7.2939108975702879E-5},{"$f":"'B02'!$E$6","v":738},"NOAEL",null,null,"Water: Sm Mam"]
[null,"Larger Mammal (400g)",{"$f":"F06b!$C$18/$F$35","v":1.8019228783019728E-5},{"$f":"F06b!$C$19/$F$35","v":5.405768634905919E-6},{"$f":"F06b!$C$20/$F$35","v":5.4057686349059199E-5},{"$f":"'B02'!$E$6","v":738},"NOAEL",null,null,"Water: Med Mam"]
[null,"Canid (5 kg)",{"$f":"F06c!$C$18/$F$36","v":4.1320117823555373E-5},{"$f":"F06c!$C$19/$F$36","v":1.2396035347066611E-5},{"$f":"F06c!$C$20/$F$36","v":1.2396035347066612E-4},{"$f":"'B02'!$E$18","v":250},"NOAEL",null,null,"Water: Canid"]
[null,"Large Mammal (70g)",{"$f":"F06d!$C$18/$F$37","v":1.0750592357054198E-5},{"$f":"F06d!$C$19/$F$37","v":3.2251777071162593E-6},{"$f":"F06d!$C$20/$F$37","v":3.2251777071162591E-5},{"$f":"'B02'!$E$6","v":738},"NOAEL",null,null,"Water: Lrg Mam"]
[null,"Small bird (10g)",{"$f":"F06e!$C$18/$F$38","v":1.3168662155430196E-5},{"$f":"F06e!$C$19/$F$38","v":3.9505986466290586E-6},{"$f":"F06e!$C$20/$F$38","v":3.9505986466290586E-5},{"$f":"'B02'!$E$8","v":2510},"NOAEL",null,null,"Water: Sm Brd"]
[null,"Large Bird (4 kg)",{"$f":"F06f!$C$18/$F$39","v":1.8233156462702238E-6},{"$f":"F06f!$C$19/$F$39","v":5.4699469388106719E-7},{"$f":"F06f!$C$20/$F$39","v":5.4699469388106721E-6},{"$f":"'B02'!$E$8","v":2510},"NOAEL",null,null,"Water: Lrg Brd"]
["   Contaminated Insects"]
[null,"Small mammal (20g)","No exposure assessment.",null,null,null,null,null,null,"Insects: Sm Mam"]
[null,"Larger Mammal (400g)","No exposure assessment.",null,null,null,null,null,null,"Insects: Med Mam"]
[null,"Small bird (10g)","No exposure assessment.",null,null,null,null,null,null,"Insects: Sm Brd"]
["   Consumption of small mammal (after direct spray) by predator"]
[null,"Canid (5 kg)","No exposure assessment.",null,null,null,null,null,null,"Canid Eats Sm Mam"]
[null,"Carnivorous bird (640 g)","No exposure assessment.",null,null,null,null,null,null,"Bird Eats Sm Mam"]
["   Consumption of contaminated Fish"]
[null,"Large Mammalian Carnivore (70 kg)",{"$f":"F09a!$C$47/$F$48","v":2.4570834349408571E-6},{"$f":"F09a!$C$48/$F$48","v":7.3712503048225692E-8},{"$f":"F09a!$C$49/$F$48","v":4.1770418393994562E-5},{"$f":"'B02'!$E$6","v":738},"NOAEL",null,null,"Fish: Lrg Mam"]
[null,"Canid (5 kg)",{"$f":"F09b!$C$47/$F$49","v":1.044003431412319E-5},{"$f":"F09b!$C$48/$F$49","v":3.1320102942369573E-7},{"$f":"F09b!$C$49/$F$49","v":1.7748058334009423E-4},{"$f":"'B02'!$E$18","v":250},"NOAEL",null,null,"Fish: Canid"]
[null,"Fish-eating bird (2.4 kg)",{"$f":"F09c!$C$47/$F$50","v":1.2072623609807641E-6},{"$f":"F09c!$C$48/$F$50","v":3.6217870829422926E-8},{"$f":"F09c!$C$49/$F$50","v":2.0523460136672986E-5},{"$f":"'B02'!$E$8","v":2510},"NOAEL",null,null,"Fish: Brd"]
["Chronic/Longer Term Exposures"]
["   Contaminated Fruit (Lowest Residue Rate)"]
[null,"Small mammal (20g)","No exposure assessment.",null,null,null,null,null,"Grass: Sm Mam"]
[null,"Larger Mammal (400g)","No exposure assessment.",null,null,null,null,null,"Grass: Med Mam"]
[null,"Large Mammal (70g)","No exposure assessment.",null,null,null,null,null,"Grass: Lrg Mam"]
[null,"Small bird (10g)","No exposure assessment.",null,null,null,null,null,"Grass: Sm Brd"]
[null,"Large Bird (4 kg)","No exposure assessment.",null,null,null,null,null,"Grass: Lrg Brd"]
["   Contaminated Vegetation (Short Grass - Highest Residue Rate)"]
[null,"Small mammal (20g)","No exposure assessment.",null,null,null,null,null,"Veg: Sm Mam"]
[null,"Larger Mammal (400g)","No exposure assessment.",null,null,null,null,null,"Veg: Med Mam"]
[null,"Large Mammal (70g)","No exposure assessment.",null,null,null,null,null,"Veg: Lrg Mam"]
[null,"Small bird (10g)","No exposure assessment.",null,null,null,null,null,"Veg: Sm Brd"]
[null,"Large Bird (4 kg)","No exposure assessment.",null,null,null,null,null,"Veg: Lrg Brd"]
["   Contaminated Water"]
[null,"Small mammal (20g)",{"$f":"F12a!$C$18/$F$65","v":1.5630600717435008E-5},{"$f":"F12a!$C$19/$F$65","v":2.6819651024951134E-6},{"$f":"F12a!$C$20/$F$65","v":6.1641657080739538E-5},{"$f":"'B02'!$E$7","v":738},"NOAEL",null,"Water: Sm Mam"]
[null,"Larger Mammal (400g)",{"$f":"F12b!$C$18/$F$66","v":1.158437665192686E-5},{"$f":"F12b!$C$19/$F$66","v":1.9876967287617749E-6},{"$f":"F12b!$C$20/$F$66","v":4.5684755562573287E-5},{"$f":"'B02'!$E$7","v":738},"NOAEL",null,"Water: Med Mam"]
[null,"Canid (5 kg)",{"$f":"F12c!$C$18/$F$67","v":2.6564278301473723E-5},{"$f":"F12c!$C$19/$F$67","v":4.5580121113356637E-6},{"$f":"F12c!$C$20/$F$67","v":1.0476028165893052E-4},{"$f":"'B02'!$E$25","v":250},"NOAEL",null,"Water: Canid"]
[null,"Large Mammal (70g)",{"$f":"F12d!$C$18/$F$68","v":6.9114451342556998E-6},{"$f":"F12d!$C$19/$F$68","v":1.1858952188067442E-6},{"$f":"F12d!$C$20/$F$68","v":2.7256337654567627E-5},{"$f":"'B02'!$E$7","v":738},"NOAEL",null,"Water: Lrg Mam"]
[null,"Small bird (10g)",{"$f":"F12e!$C$18/$F$69","v":3.4835497129210811E-5},{"$f":"F12e!$C$19/$F$69","v":5.9772230970239782E-6},{"$f":"F12e!$C$20/$F$69","v":1.3737909419442169E-4},{"$f":"'B02'!$E$9","v":610},"NOAEL",null,"Water: Sm Brd"]
[null,"Large Bird (4 kg)",{"$f":"F12f!$C$18/$F$70","v":4.8232771265302912E-6},{"$f":"F12f!$C$19/$F$70","v":8.2759845042858535E-7},{"$f":"F12f!$C$20/$F$70","v":1.9021328739292654E-5},{"$f":"'B02'!$E$9","v":610},"NOAEL",null,"Water: Lrg Brd"]
["   Consumption of contaminated Fish"]
[null,"Large Mammalian Carnivore (70 kg)",{"$f":"F13a!$C$47/$F$72","v":1.579633641279238E-6},{"$f":"F13a!$C$48/$F$72","v":2.7104027396161503E-8},{"$f":"F13a!$C$49/$F$72","v":3.5300647936614244E-5},{"$f":"'B02'!$E$7","v":738},"NOAEL",null,"Fish: Lrg Mam"]
[null,"Canid (5 kg)",{"$f":"F13b!$C$47/$F$73","v":6.7117905660763868E-6},{"$f":"F13b!$C$48/$F$73","v":1.1516376368947854E-7},{"$f":"F13b!$C$49/$F$73","v":1.4999082673719042E-4},{"$f":"'B02'!$E$25","v":250},"NOAEL",null,"Fish: Canid"]
[null,"Fish-eating bird (2.4 kg)",{"$f":"F13c!$C$47/$F$74","v":3.1936110148294559E-6},{"$f":"F13c!$C$48/$F$74","v":5.4797339190954343E-8},{"$f":"F13c!$C$49/$F$74","v":7.1368787758717455E-5},{"$f":"'B02'!$E$9","v":610},"NOAEL",null,"Fish: Brd"]

{"sheet":"G03","index":66,"n_rows":42,"n_cols":10,"rows_kept":42,"cut":false,"hidden":false,"merged":[[7,6,8,6],[0,0,0,5],[2,2,2,4],[7,0,8,0],[7,1,8,1],[7,2,7,4],[7,5,8,5]]}
["Worksheet G03: Summary of Hazard Quotients for Aquatic Species"]
["Application Rate:",1," lb a.e./acre",null,null,"AqToxSumV6"]
["Exposures",null,"Concentrations (mg/L)"]
[null,"Scenario","Central","Lower","Upper","Worksheet"]
[null,"Accidental Spill",{"$f":"B04b!Acute_C","v":2.2709999999999999},{"$f":"B04b!Acute_L","v":9.0840000000000004E-2},{"$f":"B04b!Acute_U","v":18.167999999999999},"B04b"]
[null,"Peak EEC",{"$f":"B04a!Acute_C","v":0.12256412405600259},{"$f":"B04a!Acute_L","v":3.6769237216800775E-2},{"$f":"B04a!Acute_U","v":0.36769237216800776},"B04a"]
[null,"Chronic",{"$f":"B04a!Chronic_C","v":7.8795213389830948E-2},{"$f":"B04a!Chronic_L","v":1.3520018608079512E-2},{"$f":"B04a!Chronic_U","v":0.3107409376763034},"B04a"]
["Receptor","Type","Hazard Quotients",null,null,"Toxicity Value","Toxicity Endpoint"]
[null,null,"Central","Lower","Upper"]
["Accidental Acute Exposures"]
["Fish","Sensitive",{"$f":"C$5/$F11","v":0.2183653846153846},8.7346153846153841E-3,1.7469230769230768,{"$f":"'B02'!$E$11","v":10.4},"NOAEC",null,null,"Fish Sn"]
[null,"Tolerant","No toxicity data.",null,null,"N/A",null,null,null,"Fish Tl"]
["Amphibian","Sensitive","No toxicity data.",null,null,"N/A",null,null,null,"Amph Sn"]
[null,"Tolerant","No toxicity data.",null,null,"N/A",null,null,null,"Amph To"]
["Invertebrate","Sensitive","No toxicity data.",null,null,"N/A",null,null,null,"Invt Sn"]
[null,"Tolerant",5.5390243902439025E-2,2.2156097560975612E-3,0.4431219512195122,{"$f":"'B02'!$E$14","v":41},"NOAEC",null,null,"Invt Tl"]
["Macrophyte","Sensitive",757,30.28,6056,{"$f":"'B02'!$E$19","v":3.0000000000000001E-3},"NOAEC",null,null,"Plant Sn"]
[null,"Tolerant",22.709999999999997,0.90839999999999999,181.67999999999998,{"$f":"'B02'!$E$20","v":0.1},"NOAEC",null,null,"Plant Tl"]
["Algae","Sensitive",0.2988157894736842,1.1952631578947369E-2,2.3905263157894736,{"$f":"'B02'!$E$16","v":7.6},"NOAEC",null,null,"Algae Sn"]
[null,"Tolerant",4.4616895874263263E-2,1.7846758349705305E-3,0.3569351669941061,{"$f":"'B02'!$E$17","v":50.9},"NOEC",null,null,"Algae Tl"]
["Non-Accidental Acute Exposures"]
["Fish","Sensitive",{"$f":"C$6/$F22","v":1.1785011928461786E-2},3.5355035785385358E-3,3.5355035785385361E-2,{"$f":"'B02'!$E$11","v":10.4},"NOAEC"]
[null,"Tolerant","No toxicity data.",null,null,"N/A"]
["Amphibian","Sensitive","No toxicity data.",null,null,"N/A"]
[null,"Tolerant","No toxicity data.",null,null,"N/A"]
["Invertebrate","Sensitive","No toxicity data.",null,null,"N/A"]
[null,"Tolerant",2.9893688794146974E-3,8.9681066382440913E-4,8.9681066382440913E-3,{"$f":"'B02'!$E$14","v":41},"NOAEC"]
["Macrophyte","Sensitive",40.85470801866753,12.256412405600258,122.56412405600258,{"$f":"'B02'!$E$19","v":3.0000000000000001E-3},"NOAEC"]
[null,"Tolerant",1.2256412405600259,0.36769237216800771,3.6769237216800774,{"$f":"'B02'!$E$20","v":0.1},"NOAEC"]
["Algae","Sensitive",1.6126858428421393E-2,4.8380575285264177E-3,4.8380575285264182E-2,{"$f":"'B02'!$E$16","v":7.6},"NOAEC"]
[null,"Tolerant",2.4079395688802081E-3,7.2238187066406235E-4,7.2238187066406244E-3,{"$f":"'B02'!$E$17","v":50.9},"NOEC"]
["Chronic/Longer Term Exposures"]
["Fish","Sensitive",{"$f":"C$7/$F33","v":1.9698803347457737E-2},3.380004652019878E-3,7.7685234419075849E-2,{"$f":"'B02'!$E$12","v":4},"NOAEC*"]
[null,"Tolerant",6.5662677824859126E-3,1.1266682173399593E-3,2.5895078139691951E-2,{"$f":"'B02'!$E$13","v":12},"NOEC"]
["Amphibian","Sensitive","No toxicity data.",null,null,"N/A"]
[null,"Tolerant","No toxicity data.",null,null,"N/A"]
["Invertebrate","Sensitive","No toxicity data.",null,null,"N/A"]
[null,"Tolerant",6.5662677824859126E-3,1.1266682173399593E-3,2.5895078139691951E-2,{"$f":"'B02'!$E$15","v":12},"NOAEC"]
["Macrophyte","Sensitive",26.265071129943649,4.5066728693598375,103.5803125587678,{"$f":"'B02'!$E$19","v":3.0000000000000001E-3},"NOAEC"]
[null,"Tolerant",0.78795213389830943,0.13520018608079512,3.1074093767630337,{"$f":"'B02'!$E$20","v":0.1},"NOAEC"]
["Algae","Sensitive",1.0367791235504072E-2,1.7789498168525675E-3,4.0886965483724134E-2,{"$f":"'B02'!$E$16","v":7.6},"NOAEC"]
[null,"Tolerant",1.5480395557923566E-3,2.6561922609193541E-4,6.1049300132869034E-3,{"$f":"'B02'!$E$17","v":50.9},"NOEC"]

{"sheet":"G06a","index":67,"n_rows":38,"n_cols":5,"rows_kept":38,"cut":false,"hidden":false,"merged":[[17,0,20,0],[21,0,24,0],[26,0,29,0],[0,0,0,4],[1,1,1,3],[2,1,2,3],[3,1,3,3],[8,0,11,0],[12,0,15,0]]}
["Potential exposure of non-target plants through the use of contaminated irrigation water based on estimates concentrations in ambient water."]
["Short Title","Irrigation Water",null,null,"PlntWatIrrgAq"]
["Receptor","Non-target plants"]
["Duration","acute"]
["Parameter/Assumption","Code / Range","Equation/   Value","Units","Reference/Designation"]
["Toxicity Values (Post-emergence in lb/ac)"]
["Sensitive species","NOAEL",{"$f":"'B02'!$E$23","v":6.3999999999999997E-5},"lb/acre","Table 21"]
["Tolerant species","NOAEL",{"$f":"'B02'!$E$24","v":0.4},"lb/acre","Table 21"]
["Concentration in irrigation water","ConcWat"]
[null,"Central ",{"$f":"B04a!Acute_C","v":0.12256412405600259},"mg/L","Worksheet B04a"]
[null,"Lower ",{"$f":"B04a!Acute_L","v":3.6769237216800775E-2},null,"Worksheet B04a"]
[null,"Upper ",{"$f":"B04a!Acute_U","v":0.36769237216800776},null,"Worksheet B04a"]
["Amount of irrigation water applied","IrrigAmnt"]
[null,"Central ",1,"inches","Scenario parameter"]
[null,"Lower ",0.25,null,"Scenario parameter"]
[null,"Upper ",2,null,"Scenario parameter"]
["Liters of water applied per acre per inch of irrigation water","LpApI",10279,"Liters/inch"]
["Liters of water applied per acre","LPA","IrrigAmnt × LpApl"]
[null,"Central ",{"$f":"C14*C$17","v":10279},"liters","Eq"]
[null,"Lower ",{"$f":"C15*C$17","v":2569.75},null,"Eq"]
[null,"Upper ",{"$f":"C16*C$17","v":20558},null,"Eq"]
["Application Rate (mg/acre)","ApRmg/a","ConcWat × LPA"]
[null,"Central ",{"$f":"C10*C19","v":1259.8366311716507},"mg/acre","Eq"]
[null,"Lower ",{"$f":"C11*C20","v":94.487747337873785},null,"Eq"]
[null,"Upper ",{"$f":"C12*C21","v":7559.0197870299035},null,"Eq"]
["Conversion factor for mg to lb ","Conv",{"$f":"A02d!$C$9","v":2.204E-6},null,"Budavari  1989"]
["Functional application rate (lb/acre)","FncApR","ApRmg/a × Conv"]
[null,"Central ",{"$f":"C23*C$26","v":2.7766799351023178E-3},"lb/acre","Eq"]
[null,"Lower ",{"$f":"C24*C$26","v":2.0825099513267382E-4},null,"Eq"]
[null,"Upper ",{"$f":"C25*C$26","v":1.6660079610613908E-2},null,"Eq"]
["Hazard Quotients (Sensitive Species)","HISens","= FncApRt / ToxValSens"]
[null,"Central",{"$f":"IF(ISNUMBER($C$7), C28/$C$7, \"N/A\")","v":43.385623985973716}]
[null,"Lower",{"$f":"IF(ISNUMBER($C$7), C29/$C$7, \"N/A\")","v":3.2539217989480287}]
[null,"Upper",260.31374391584234]
["Hazard Quotients (Tolerant Species)","HITol","= FncApRt / ToxValTol"]
[null,"Central",{"$f":" IF( ISNUMBER($C$8),  C28/$C$8, \"N/A\")","v":6.9416998377557944E-3}]
[null,"Lower",{"$f":" IF( ISNUMBER($C$8),  C29/$C$8, \"N/A\")","v":5.2062748783168451E-4}]
[null,"Upper",4.1650199026534766E-2]

{"sheet":"G09","index":68,"n_rows":63,"n_cols":7,"rows_kept":63,"cut":false,"hidden":false,"merged":[[54,1,54,3],[54,4,54,6],[27,1,27,3],[27,4,27,6],[36,1,36,3],[36,4,36,6],[45,1,45,3],[45,4,45,6],[0,0,0,4],[1,1,1,3],[2,1,2,3],[3,1,3,3],[26,0,26,3],[26,4,26,6]]}
["Exposures and HQs for a Terrestrial Insect (Honeybee) Associated with Direct Spray or Drift Following Terrestrial Applications"]
["Short Title","Direct Spray or Drift",null,null,"BeeSprayHQs3Apps"]
["Receptor","Honeybee"]
["Duration","Acute"]
["Parameter/Assumption","Code / Range","Equation/   Value","Units","Reference/Designation"]
["Toxicity Value (Spray)","ToxVal",{"$f":"'B02'!$E$10","v":860},"mg/kg bw","NOAEL"]
["Application rate","ApRtlb/ac",{"$f":"'A01'!ApRt_C","v":1},"lb/acre","Worksheet A01"]
["Conversion Factor for lbs/acre to mg/cm2","CnvF",1.1209999999999999E-2,"mg/cm2/lb/acre"]
["Application rate, mg/cm2","ApRmgcm","ApRlb/a × CnvF"]
[null,null,{"$f":"C7*C8","v":1.1209999999999999E-2},"lb/acre","Eq"]
["Body weight","BW",{"$f":"A02b!$C$36","v":1.16E-4},"kg","Winston 1987"]
[null,"SA",{"$f":"A02b!$C$37","v":1.42},"cm2","Humphery and Dykes 2008"]
["Proportion of body surface sprayed","PrpSA",0.5,"unitless","Scenario parameter"]
["Amount Deposited on Skin (Direct Spray)","Amnt","ApRmgcm× SA × PrpSA"]
[null,null,{"$f":"C$10*C$12*C$13","v":7.9590999999999985E-3},"mg","Eq"]
["Foliar Interception","FolInt","Lower","Central","Upper"]
[null,null,0,0.5,0.9]
[]
["Proportion of Drift at distances downwind in feet [0 feet = direct spray]","Prop","Aerial","High Boom Ground Broadcast","Low Boom Ground Broadcast","Backpack"]
[0,"feet",1,1,1,1]
[25,"feet",0.223,0.104,3.5000000000000003E-2,8.3199999999999993E-3]
[50,"feet",0.17100000000000001,0.05,1.77E-2,4.3299999999999996E-3]
[100,"feet",9.7900000000000001E-2,2.4799999999999999E-2,9.4800000000000006E-3,2.4099999999999998E-3]
[300,"feet",3.1199999999999999E-2,7.5300000000000002E-3,3.5000000000000001E-3,9.41E-4]
[500,"feet",1.9199999999999998E-2,3.9100000000000003E-3,2.0899999999999998E-3,5.7899999999999998E-4]
[900,"feet",1.24E-2,1.66E-3,1.09E-3,3.1199999999999999E-4]
["Doses (mg/kg bw) = Prop x FolInt x Amnt  ÷ BW)",null,null,null,"HQ = Absorbed Doses/ToxVal"]
["Aerial","Foliar Interception",null,null,"Foliar Interception"]
["Distance Downwind","None",0.5,0.9,"None",0.5,0.9]
[{"$f":"A20","v":0},{"$f":"$C20*(1-C$17)*$C$15/$C$11","v":68.612931034482742},34.306465517241371,6.8612931034482738,{"$f":"B30/$C$6","v":7.9782477947072952E-2},3.9891238973536476E-2,7.9782477947072956E-3]
[25,15.300683620689652,7.650341810344826,1.530068362068965,1.7791492582197269E-2,8.8957462910986343E-3,1.7791492582197267E-3]
[50,11.732811206896551,5.8664056034482757,1.1732811206896547,1.3642803728949479E-2,6.8214018644747396E-3,1.3642803728949474E-3]
[100,6.7172059482758613,3.3586029741379306,0.67172059482758595,7.8107045910184433E-3,3.9053522955092216E-3,7.8107045910184413E-4]
[300,2.1407234482758617,1.0703617241379308,0.21407234482758611,2.4892133119486762E-3,1.2446066559743381E-3,2.4892133119486758E-4]
[500,1.3173682758620684,0.6586841379310342,0.13173682758620683,1.5318235765838005E-3,7.6591178829190027E-4,1.5318235765838004E-4]
[900,0.85080034482758593,0.42540017241379297,8.5080034482758596E-2,9.893027265437046E-4,4.946513632718523E-4,9.8930272654370466E-5]
["Highboom Ground","Foliar Interception",null,null,"Foliar Interception"]
["Distance Downwind","None",0.5,0.9,"None",0.5,0.9]
[{"$f":"A29","v":"Distance Downwind"},{"$f":"$D20*(1-C$17)*$C$15/$C$11","v":68.612931034482742},{"$f":"$D20*(1-D$17)*$C$15/$C$11","v":34.306465517241371},{"$f":"$D20*(1-E$17)*$C$15/$C$11","v":6.8612931034482738},{"$f":"B39/$C$6","v":7.9782477947072952E-2},3.9891238973536476E-2,7.9782477947072956E-3]
[0,{"$f":"$D21*(1-C$17)*$C$15/$C$11","v":7.1357448275862048},3.5678724137931024,0.71357448275862045,8.2973777064955876E-3,4.1486888532477938E-3,8.297377706495587E-4]
[25,3.4306465517241378,1.7153232758620689,0.34306465517241369,3.9891238973536487E-3,1.9945619486768243E-3,3.9891238973536477E-4]
[50,1.7016006896551719,0.85080034482758593,0.17016006896551719,1.9786054530874092E-3,9.893027265437046E-4,1.9786054530874093E-4]
[100,0.51665537068965506,0.25832768534482753,5.1665537068965504E-2,6.0076205894145937E-4,3.0038102947072969E-4,6.0076205894145936E-5]
[300,0.26827656034482755,0.13413828017241378,2.6827656034482748E-2,3.1194948877305529E-4,1.5597474438652765E-4,3.1194948877305518E-5]
[500,0.11389746551724136,5.6948732758620682E-2,1.1389746551724133E-2,1.3243891339214113E-4,6.6219456696070566E-5,1.3243891339214107E-5]
["Low Ground","Foliar Interception",null,null,"Foliar Interception"]
["Distance Downwind","None",0.5,0.9,"None",0.5,0.9]
[{"$f":"A38","v":"Distance Downwind"},{"$f":"$E20*(1-C$17)*$C$15/$C$11","v":68.612931034482742},{"$f":"$E20*(1-D$17)*$C$15/$C$11","v":34.306465517241371},{"$f":"$E20*(1-E$17)*$C$15/$C$11","v":6.8612931034482738},{"$f":"B48/$C$6","v":7.9782477947072952E-2},3.9891238973536476E-2,7.9782477947072956E-3]
["Distance Downwind",{"$f":"$E21*(1-C$17)*$C$15/$C$11","v":2.4014525862068963},1.2007262931034481,0.24014525862068958,2.792386728147554E-3,1.396193364073777E-3,2.7923867281475531E-4]
[0,1.2144488793103445,0.60722443965517225,0.12144488793103443,1.4121498596631912E-3,7.0607492983159562E-4,1.4121498596631911E-4]
[25,0.65045058620689655,0.32522529310344828,6.5045058620689628E-2,7.5633789093825182E-4,3.7816894546912591E-4,7.5633789093825152E-5]
[50,0.24014525862068961,0.12007262931034481,2.4014525862068956E-2,2.7923867281475536E-4,1.3961933640737768E-4,2.7923867281475532E-5]
[100,0.14340102586206893,7.1700512931034466E-2,1.4340102586206889E-2,1.6674537890938248E-4,8.3372689454691242E-5,1.6674537890938242E-5]
[300,7.4788094827586193E-2,3.7394047413793097E-2,7.4788094827586181E-3,8.6962900962309531E-5,4.3481450481154765E-5,8.6962900962309517E-6]
["Backpack","Foliar Interception",null,null,"Foliar Interception"]
["Distance Downwind","None",0.5,0.9,"None",0.5,0.9]
[{"$f":"A47","v":"Distance Downwind"},{"$f":"$F20*(1-C$17)*$C$15/$C$11","v":68.612931034482742},{"$f":"$F20*(1-D$17)*$C$15/$C$11","v":34.306465517241371},{"$f":"$F20*(1-E$17)*$C$15/$C$11","v":6.8612931034482738},{"$f":"B57/$C$6","v":7.9782477947072952E-2},3.9891238973536476E-2,7.9782477947072956E-3]
["Distance Downwind",{"$f":"$F21*(1-C$17)*$C$15/$C$11","v":0.57085958620689636},0.28542979310344818,5.7085958620689624E-2,6.6379021651964698E-4,3.3189510825982349E-4,6.6379021651964682E-5]
["Distance Downwind",0.29709399137931031,0.14854699568965515,2.9709399137931018E-2,3.4545812951082593E-4,1.7272906475541297E-4,3.454581295108258E-5]
[0,0.16535716379310339,8.2678581896551695E-2,1.6535716379310336E-2,1.9227577185244581E-4,9.6137885926222903E-5,1.9227577185244577E-5]
[25,6.4564768103448272E-2,3.2282384051724136E-2,6.4564768103448252E-3,7.5075311748195667E-5,3.7537655874097834E-5,7.507531174819564E-6]
[50,3.9726887068965509E-2,1.9863443534482755E-2,3.9726887068965502E-3,4.6194054731355243E-5,2.3097027365677621E-5,4.6194054731355236E-6]
[100,2.1407234482758618E-2,1.0703617241379309E-2,2.1407234482758615E-3,2.4892133119486766E-5,1.2446066559743383E-5,2.489213311948676E-6]

{"sheet":"References","index":69,"n_rows":41,"n_cols":2,"rows_kept":41,"cut":false,"hidden":false,"merged":[[0,0,0,1]]}
["References cited in workbook"]
["Citation","Full Reference"]
["Boxenbaum and D’Souza 1990","Boxenbaum J; D'Souza R.  1990.  Interspecies pharmacokinetic scaling, biological design and neoteny.  Adv. Drug Res.  19: 139-195."]
["Budavari  1989","Budavari S. (Ed).  1989.  The Merck Index: An Encyclopedia of Chemicals, Drugs,and Biologicals, 11th ed.  Merck & Co., Inc., Rahway, New Jersey."]
["Burnmaster 1998","Burnmaster DE.  1998.  Lognormal distribution for total water intake and tap water intake by pregnant and lactating women in the United States.  Risk Analysis.  18(5): 215-219"]
["Default","These are plausible default values that are typically used in SERA risk assessments."]
["Dunning 1993","Dunning JB.  1993.  CRC Handbook of Avian Body Masses.  CRC Press, Boca Raton FL, 371 pp."]
["Durkin et al. 1995","Durkin PR; Rubin L; Withey J; Meylan W.  1995.  Methods of assessing dermal absorption with emphasis on uptake from contaminated vegetation.  Toxicol. Indust. Health.  11(1): 63-79."]
["Fletcher et al. 1994","Fletcher JS; Nellessen JE; Pfleeger TG. 1994. Literature review and evaluation of the EPA food-chain (Kenega) nomogram, an instrument for estimating pesticide residues on plants. Environ.  Toxicol. Chem. 13(9):1383-1391."]
["Harris and Solomon 1992","Harris SA; Solomon KR.  1992.  Human exposure to 2,4-D following controlled activities on recently sprayed turf.  J. Environ. Sci. Health.  B27(1): 9-22."]
["Hoerger and Kenaga 1972","Hoerger F; Kenaga EE.  1972.  Pesticide residues on plants: Correlation of representative data as a basis for estimation of their magnitude in the environment.  In: Environmental Quality and Safety, Volume I:  Global Aspects of Toxicology and Technology as Applied to the Environment.  F. Coulston and F. Kerte (eds.).  Academic Press, New York, NY.  pp. 9-28."]
["Humphery and Dykes 2008","Humphrey JAC; Dykes ES.  2008.  Thermal energy conduction in a honey bee comb due to cell-heating bees.  J Theoretical Biology.  250 (1): 194-208."]
["ICRP 1975","ICRP (International Commission on Radiologic Protection).  1975. Report of the Task Group on Reference Man.  Recommendations of the International Commission on Radiological Protection (ICRP) Publ. No. 23.   Pergamon Press, New York, NY."]
["Knisel et al. 1992","Knisel WG; Davis FM; Leonard RA.  1992.  GLEAMS Version 2.0 User Manual. U.S. Department of Agriculture, Agricultural Research Service, Southeast Watershed Research Laboratory, Tifton, GA.  202pp"]
["Manugistics 1995","Manugistics.  1995.  Statgraphics Plus for Windows. Version 3.  Available from Manugistics, Inc.  Rockville, Maryland."]
["Mason and Johnson 1987","Mason RW; Johnson BL.  1987.  Ergonomic factors in chemical hazard control.  In: Handbook of Human Factors.  Salveny, G; ed.  John Wiley and Sons, New York, NY.  pp. 772-741."]
["Mendenhall and Scheaffer 1973","Mendenhall W; Scheaffer RF.  1973.  Mathematical Statistics with Applications.  Duxbury Press, North Scituate, Massachusetts. 461 pp. plus appendices."]
["N/A","Not applicable"]
["Nagy 2005","Nagy KA.  2005.  Field metabolic rate and body size.  Journal of Experimental Biology.  208: 1621-1625."]
["Ratnapalan et al. 2003","Ratnapalan S; Potylitsina Y; Tan LH; Roifman M; Koren G.  2003.  Measuring a toddler's mouthful: toxicologic considerations.  J Pediatr.  142(6):729-30."]
["Reichle et al. 1973","Reichle DE, Goldstein RA; Van Hook RI; Dodson DJ.  1973.  Analysis of Insect Consumption in a Forest Canopy.  Ecology.  54: 1076-1084."]
["Reid 2006"," Reid FA. 2006.  A Field Guide to Mammals of North America North of Mexico.  Fourth Edition.  The Peterson Field Guide Series.  Houghton Mifflin Company, Boston MA.  570 pp."]
["Ruffle et al. 1994","Ruffle B; Burmaster DE; Anderson PD; Gordon HD.  1994.  Lognormal distributions for fish consumption by the general U.S. population.  Risk Analy.  14(4): 395-404."]
["SERA 1997","SERA (Syracuse Environmental Research Associates, Inc.).  1997. Reevaluation of Methods for Assessing Worker Exposure to Pesticides, SERA TR 96-21-08-01, draft dated December 31, 1997.  Prepared under USDA/FS Contract 53-3187-5-12.  Syracuse Environmental Research Associates, Inc., Fayetteville, NY."]
["SERA 2005","SERA (Syracuse Environmental Research Associates, Inc.).  2005. Hexazinone - Human Health and Ecological Risk Assessment– Final Report, SERA SERA TR 05-43-20-03d, Final Report dated October 25, 2005.  Available at: http://www.fs.fed.us/foresthealth/pesticide/risk.shtml."]
["SERA 2007","SERA (Syracuse Environmental Research Associates, Inc.).  2007. Preparation of Environmental Documentation and Risk Assessments, SERA MD 2007-01a, draft dated July 2001.  Syracuse Environmental Research Associates, Inc., Fayetteville, NY.  Available at www.sera-inc.com."]
["SERA 2010","SERA (Syracuse Environmental Research Associates, Inc.).  2010. Strychnine Human Health and Ecological Risk Assessment, SERA TR-052-17-02a, draft dated February 22, 2010.  Syracuse Environmental Research Associates, Inc., Manlius, NY.  Available at www.sera-inc.com."]
["Sibley 2000","Sibley DA.  2000.  The Sibley Guide to Birds.  National Audubon Society, Chanticleer Press Edition.  Alfred A. Knopf Inc., New York.  545 pp."]
["Teske et al. 2001","Teske ME; Bird SL; Esterly DM; Ray SL; Perry SG.  2001.  A User’s Guide for AgDRIFT 2.0: A Tiered Approach for the Assesment of Spray Drift.  Continuum Dynamics, Inc. Public Use Version.  C.D.I. Report No. 01-01.  Available, with executable model at: http://www.agdrift.com"]
["U.S. EPA/OPP 1999","U.S. EPA/OPP ((U.S. Environmental Protection Agency/Office of Pesticide Programs).  1999.  ECOFRAM:  Terrestrial ECOFRAM Terrestrial Draft Report.  Ecological Committee on FIFRA Risk Assessment Methods(ECOFRAM).  Report dated May 10, 1999.  Available at:  http://www.epa.gov/oppefed1/ ecorisk/terrreport.pdf."]
["U.S. EPA/ORD 1985","U.S. EPA/ORD (U.S. Environmental Protection Agency/Office of Research and Development).  1985. Development of Statistical Distributions or Ranges of Standard Factors Used in Exposure Assessments,  Report prepared by GCA Corp., Chapel Hill.  Available from NTIS: PB85-242667."]
["U.S. EPA/ORD 1992","U.S. EPA/ORD (U.S. Environmental Protection Agency/Office of Research and Development).  1992.  Dermal Exposure Assessment: Principles and Applications.  EPA/600/8-91/011B.  Interim Report.  Exposure Assessment Group, Office of Health and Environmental Assessment, Washington, DC."]
["U.S. EPA/ORD 1993","U.S. EPA/ORD (U.S. Environmental Protection Agency/Office of Research and Development).  1993.  Wildlife Exposure Factors Handbook.  Volumes 1 and 2.  EPA/600/R-93/187a,b.  Pagination not continuous.  Available NTIS: PB94-174778 and PB94-174779."]
["U.S. EPA/ORD 1996","U.S. EPA (U.S. Environmental Protection Agency/Office of Research and Development).  1996.  Exposure Factors Handbook. National Center for Environmental Assessment, U.S. EPA, Washington, DC.  EPA/600/P-95/002Ba-c.  Avail. NTIS: PB97-117683, 97-117691, PB97-117709."]
["U.S. EPA/ORD 1997","U.S. EPA (U.S. Environmental Protection Agency/Office of Research and Development).  1996.  Exposure Factors Handbook. National Center for Environmental Assessment, U.S. EPA, Washington, DC.  EPA/600/P-95/002Fa.  Available at: http://rais.ornl.gov/homepage/EFH_Final_1997_EPA600P95002Fa.pdf"]
["USDA 1989a","USDA (U.S. Department of Agriculture/Forest Service).  1989a.  Final Environmental Impact Statement: Vegetation Management in the Coastal Plain/Piedmont, Management Bulletin R8-MB-23, dated January, 1989.  1213 pp."]
["USDA 1989b","USDA (U.S. Department of Agriculture/Forest Service).  1989b.  Draft Environmental Impact Statement: Vegetation Management in the Ozark/Ouachita Mountains, Management Bulletin R8-MB-23, dated June, 1989.  499 pp."]
["USDA 1989c","USDA (U.S. Department of Agriculture/Forest Service).  1989c.  Final Environmental Impact Statement: Vegetation Management in the Appalachian Mountains, Management Bulletin R8-MB-38, dated July, 1989. 1104 pp."]
["Waldbauer 1968","Waldbauer GP.  1968.  The consumption and utilization of food by insects.  Advan Insect Physiol.  5: 229-288"]
["Winston 1987","Winston ML.  1987.  The Biology of the Honey Bee.  Harvard University Press, Cambridge, MA.  ISBN 0-674-07409-2  280 pp."]
["Wolfram Research 1997","Wolfram Research.  1997. Mathematica Version 3.0.1.  Available from Wolfram Research, Inc.  Champaign, IL."]

{"sheet":"PlntRunoV5","index":70,"n_rows":31,"n_cols":5,"rows_kept":31,"cut":false,"hidden":true,"merged":[[15,0,18,0],[19,0,22,0],[24,0,24,1],[0,0,0,4],[2,1,2,3],[3,1,3,3],[4,1,4,4],[8,1,8,3],[10,0,13,0]]}
["Summary of Exposure Assessment and Risk Characterization for Terrestrial Plants from Runoff"]
["Short Title","Runoff to terrestrial plants"]
["Receptor","Terrestrial vegetation"]
["Duration","Acute"]
["User-Specified Gleams-Driver File","None"]
["Parameter/Assumption","Code / Range","Value","Units","Reference"]
["Worksheet Application Rate","ApRtWB",0.2,"lb/acre","Prog!ApRt"]
["Offsite Application Rates Inputs"]
["Run ID:","See Risk Assessment"]
["Application Rate Used in Run:","ApRtRun",1,"lb/acre"]
["Functional Off-site Application Rate","ApRtOffsite"]
[null,"Central",2.7E-2,"lb/acre"]
[null,"Lower",9.4999999999999998E-3]
[null,"Upper",5.7000000000000002E-2]
["Calculated Values"]
["Normalized Off-site Functional Application Rate ","NormApRtOffsite","ApRtOffsite / ApRtRun"]
[null,"Central",{"$f":"C12/C$10","v":2.7E-2},"Unitless","Eq"]
[null,"Lower",{"$f":"C13/C$10","v":9.4999999999999998E-3},null,"Eq"]
[null,"Upper",{"$f":"C14/C$10","v":5.7000000000000002E-2},null,"Eq"]
["Off-site Application Rate at Workbook Application Rate","ApRtWB","ApRtWB x NormApRtOffsite"]
[null,"Central",{"$f":"C17*C$7","v":5.4000000000000003E-3},"lb/acre","Eq"]
[null,"Lower",{"$f":"C18*C$7","v":1.9E-3},null,"Eq"]
[null,"Upper",{"$f":"C19*C$7","v":1.14E-2},null,"Eq"]
["Toxicity Values  (seedling emergence) in units of lbs/acre"]
[null,null,"Sensitive","Tolerant"]
[null,"Endpoint"]
[null,null,3.7000000000000002E-3,0.37]
["Hazard Quotients"]
[null,"Central",{"$f":"IF(ISNUMBER(C$27), $C21/C$27, \"N/A\")","v":1.4594594594594594},1.4594594594594595E-2]
[null,"Lower",0.51351351351351349,5.1351351351351356E-3]
[null,"Upper",3.0810810810810811,3.0810810810810812E-2]